﻿Funding Source,FY,Payee Name,Purpose,Object Class,Expenditure Start Date,Expenditure End Date,Amount Obligated,Amount Spent
ATSDR's Partnership to Promote Local Efforts To Reduce Environmental Exposure - COVID-19 Supplement,2021,EASTERN RESEARCH GROUP INC,Health & Human Services,CONSULTANT SVCS (TO DEPTS) (HH),2021-01-08 00:00:00,2021-06-30 00:00:00,39477,39477
ATSDR's Partnership to Promote Local Efforts To Reduce Environmental Exposure - COVID-19 Supplement,2022,EASTERN RESEARCH GROUP INC,Health & Human Services,CONSULTANT SVCS (TO DEPTS) (HH),2021-07-01 00:00:00,2022-01-28 00:00:00,45136,45136
CDC COVID-19 Vaccine Funding,2021,BEHAVIORAL HEALTH NETWORK INC,Health & Human Services,PURCHASED CLIENT/PROGRAM SVCS (MM),2021-05-17 00:00:00,2021-06-30 00:00:00,38289.130000000005,38289.130000000005
CDC COVID-19 Vaccine Funding,2021,BOSTON HEALTH CARE FOR THE,Health & Human Services,PURCHASED CLIENT/PROGRAM SVCS (MM),2021-06-01 00:00:00,2021-06-30 00:00:00,37429,37429
CDC COVID-19 Vaccine Funding,2021,BOSTON MEDICAL CENTER,Health & Human Services,PURCHASED CLIENT/PROGRAM SVCS (MM),2021-05-18 00:00:00,2021-06-30 00:00:00,28992.910000000003,28992.91
CDC COVID-19 Vaccine Funding,2021,BOSTON PUBLIC HEALTH COMMIS,Health & Human Services,STATE AID/POL SUB (PP),2021-04-01 00:00:00,2021-06-30 00:00:00,963429,963429
CDC COVID-19 Vaccine Funding,2021,CAMBRIDGE PUBLIC HEALTH,Health & Human Services,PURCHASED CLIENT/PROGRAM SVCS (MM),2021-05-18 00:00:00,2021-06-30 00:00:00,52091.34999999999,52091.350000000006
CDC COVID-19 Vaccine Funding,2021,CAUSEMEDIA INC,Health & Human Services,CONSULTANT SVCS (TO DEPTS) (HH),2021-03-25 00:00:00,2021-06-30 00:00:00,2096280.29,2096280.2899999998
CDC COVID-19 Vaccine Funding,2021,CENTRO LAS AMERICAS INC,Health & Human Services,PURCHASED CLIENT/PROGRAM SVCS (MM),2021-05-17 00:00:00,2021-06-30 00:00:00,40363.34,40363.34
CDC COVID-19 Vaccine Funding,2021,CITY OF BROCKTON,Health & Human Services,STATE AID/POL SUB (PP),2021-04-02 00:00:00,2021-06-30 00:00:00,222064,222064
CDC COVID-19 Vaccine Funding,2021,CITY OF CHELSEA,Health & Human Services,STATE AID/POL SUB (PP),2021-04-01 00:00:00,2021-06-30 00:00:00,146791,146791
CDC COVID-19 Vaccine Funding,2021,CITY OF EVERETT,Health & Human Services,STATE AID/POL SUB (PP),2021-04-15 00:00:00,2021-06-30 00:00:00,160302,160302
CDC COVID-19 Vaccine Funding,2021,CITY OF FALL RIVER,Health & Human Services,STATE AID/POL SUB (PP),2021-04-02 00:00:00,2021-06-30 00:00:00,211129,211129
CDC COVID-19 Vaccine Funding,2021,CITY OF FITCHBURG,Health & Human Services,STATE AID/POL SUB (PP),2021-04-01 00:00:00,2021-06-30 00:00:00,152370,152370
CDC COVID-19 Vaccine Funding,2021,CITY OF FRAMINGHAM,Health & Human Services,STATE AID/POL SUB (PP),2021-04-01 00:00:00,2021-06-30 00:00:00,192517,192517
CDC COVID-19 Vaccine Funding,2021,CITY OF HAVERHILL,Health & Human Services,STATE AID/POL SUB (PP),2021-04-09 00:00:00,2021-06-30 00:00:00,181807,181807
CDC COVID-19 Vaccine Funding,2021,CITY OF HOLYOKE,Health & Human Services,STATE AID/POL SUB (PP),2021-04-06 00:00:00,2021-06-30 00:00:00,151192,151192
CDC COVID-19 Vaccine Funding,2021,CITY OF LAWRENCE,Health & Human Services,STATE AID/POL SUB (PP),2021-04-02 00:00:00,2021-06-30 00:00:00,209550,209550
CDC COVID-19 Vaccine Funding,2021,CITY OF LEOMINSTER,Health & Human Services,STATE AID/POL SUB (PP),2021-04-06 00:00:00,2021-06-30 00:00:00,150432,150432
CDC COVID-19 Vaccine Funding,2021,CITY OF LOWELL,Health & Human Services,STATE AID/POL SUB (PP),2021-04-02 00:00:00,2021-06-30 00:00:00,245185,245185
CDC COVID-19 Vaccine Funding,2021,CITY OF LYNN,Health & Human Services,STATE AID/POL SUB (PP),2021-04-01 00:00:00,2021-06-30 00:00:00,225362,225362
CDC COVID-19 Vaccine Funding,2021,CITY OF MALDEN,Health & Human Services,STATE AID/POL SUB (PP),2021-04-08 00:00:00,2021-06-30 00:00:00,184177,184177
CDC COVID-19 Vaccine Funding,2021,CITY OF METHUEN,Health & Human Services,STATE AID/POL SUB (PP),2021-04-02 00:00:00,2021-06-30 00:00:00,166532,166532
CDC COVID-19 Vaccine Funding,2021,CITY OF NEW BEDFORD,Health & Human Services,STATE AID/POL SUB (PP),2021-04-05 00:00:00,2021-06-30 00:00:00,223687,223687
CDC COVID-19 Vaccine Funding,2021,CITY OF REVERE,Health & Human Services,STATE AID/POL SUB (PP),2021-04-01 00:00:00,2021-06-30 00:00:00,175682,175682
CDC COVID-19 Vaccine Funding,2021,CITY OF SPRINGFIELD,Health & Human Services,STATE AID/POL SUB (PP),2021-04-01 00:00:00,2021-06-30 00:00:00,296713,296713
CDC COVID-19 Vaccine Funding,2021,CITY OF WORCESTER,Health & Human Services,STATE AID/POL SUB (PP),2021-04-12 00:00:00,2021-06-30 00:00:00,338378,338378
CDC COVID-19 Vaccine Funding,2021,DIMOCK COMMUNITY SERVICES CORP,Health & Human Services,PURCHASED CLIENT/PROGRAM SVCS (MM),2021-05-17 00:00:00,2021-06-30 00:00:00,34621.3,34621.3
CDC COVID-19 Vaccine Funding,2021,ELDER SERVICES   OF THE,Health & Human Services,PURCHASED CLIENT/PROGRAM SVCS (MM),2021-06-01 00:00:00,2021-06-30 00:00:00,22727,22727
CDC COVID-19 Vaccine Funding,2021,FAMILY HEALTH CENTER OF WORCESTER INC,Health & Human Services,PURCHASED CLIENT/PROGRAM SVCS (MM),2021-05-21 00:00:00,2021-06-30 00:00:00,21585.769999999997,21585.769999999997
CDC COVID-19 Vaccine Funding,2021,FENWAY COMMUNITY HEALTH CTR,Health & Human Services,PURCHASED CLIENT/PROGRAM SVCS (MM),2021-05-11 00:00:00,2021-06-30 00:00:00,20219,20219
CDC COVID-19 Vaccine Funding,2021,GREATER LAWRENCE FAMILY HEALTH CENTER,Health & Human Services,PURCHASED CLIENT/PROGRAM SVCS (MM),2021-06-01 00:00:00,2021-06-30 00:00:00,9564.84,9564.84
CDC COVID-19 Vaccine Funding,2021,"HEALTH IMPERATIVES, INC",Health & Human Services,PURCHASED CLIENT/PROGRAM SVCS (MM),2021-06-01 00:00:00,2021-06-30 00:00:00,64843,64843
CDC COVID-19 Vaccine Funding,2021,"HEALTH INNOVATIONS, INC",Health & Human Services,PURCHASED CLIENT/PROGRAM SVCS (MM),2021-05-18 00:00:00,2021-06-30 00:00:00,43667,43667
CDC COVID-19 Vaccine Funding,2021,"HEALTH RESOURCES IN ACTION, INC.",Health & Human Services,CONSULTANT SVCS (TO DEPTS) (HH),2021-06-16 00:00:00,2021-06-30 00:00:00,24972,24972
CDC COVID-19 Vaccine Funding,2021,"HEALTH RESOURCES IN ACTION, INC.",Health & Human Services,PURCHASED CLIENT/PROGRAM SVCS (MM),2021-04-15 00:00:00,2021-06-30 00:00:00,3351083.8200000008,3351083.8199999994
CDC COVID-19 Vaccine Funding,2021,IT CONSOLIDATION SERVICES EHS,Health & Human Services,ADMINISTRATIVE EXPENSES (EE),2021-01-31 00:00:00,2021-06-11 00:00:00,84466.26,84466.26
CDC COVID-19 Vaccine Funding,2021,JSI RESEARCH & TRAINING INSTITUTE INC,Health & Human Services,CONSULTANT SVCS (TO DEPTS) (HH),2021-04-20 00:00:00,2021-06-30 00:00:00,149175.18,149175.18
CDC COVID-19 Vaccine Funding,2021,LYNN COMMUNITY HEALTH INC,Health & Human Services,PURCHASED CLIENT/PROGRAM SVCS (MM),2021-06-01 00:00:00,2021-06-30 00:00:00,33333,33333
CDC COVID-19 Vaccine Funding,2021,MASS ALLIANCE  OF,Health & Human Services,PURCHASED CLIENT/PROGRAM SVCS (MM),2021-05-25 00:00:00,2021-06-30 00:00:00,46335.329999999994,46335.33
CDC COVID-19 Vaccine Funding,2021,MASSACHUSETTS LEAGUE OF,Health & Human Services,PURCHASED CLIENT/PROGRAM SVCS (MM),2021-04-01 00:00:00,2021-06-30 00:00:00,2586927,2586927
CDC COVID-19 Vaccine Funding,2021,"MEDICAL LOGISTIC SERVICES, INC.",Health & Human Services,OPERATIONAL SERVICES (JJ),2021-02-16 00:00:00,2021-06-29 00:00:00,10922.09,10922.089999999998
CDC COVID-19 Vaccine Funding,2021,METROPOLITAN AREA,Health & Human Services,CONSULTANT SVCS (TO DEPTS) (HH),2021-05-13 00:00:00,2021-06-30 00:00:00,7500,7500
CDC COVID-19 Vaccine Funding,2021,MULTICULTURAL AIDS COALITION,Health & Human Services,PURCHASED CLIENT/PROGRAM SVCS (MM),2021-05-21 00:00:00,2021-06-30 00:00:00,93966,93966
CDC COVID-19 Vaccine Funding,2021,NEW NORTH CITIZENS COUNCIL,Health & Human Services,PURCHASED CLIENT/PROGRAM SVCS (MM),2021-05-18 00:00:00,2021-06-30 00:00:00,31524.940000000002,31524.94
CDC COVID-19 Vaccine Funding,2021,NORTH SHORE COMMUNITY HEALTH INC,Health & Human Services,PURCHASED CLIENT/PROGRAM SVCS (MM),2021-06-08 00:00:00,2021-06-30 00:00:00,24444.800000000003,24444.8
CDC COVID-19 Vaccine Funding,2021,PARTNERS FOR HEALTHIER COMMUNITY INC,Health & Human Services,CONSULTANT SVCS (TO DEPTS) (HH),2021-05-12 00:00:00,2021-06-30 00:00:00,10000,10000
CDC COVID-19 Vaccine Funding,2021,"Payees under $50,000",Health & Human Services,OPERATIONAL SERVICES (JJ),2021-06-30 00:00:00,2021-06-30 00:00:00,4149.5999999999985,4149.6
CDC COVID-19 Vaccine Funding,2021,"Payees under $50,000",Health & Human Services,STATE AID/POL SUB (PP),2021-05-21 00:00:00,2021-06-30 00:00:00,65000,65000
CDC COVID-19 Vaccine Funding,2021,POSITIVE ACTION AGAINST,Health & Human Services,PURCHASED CLIENT/PROGRAM SVCS (MM),2021-05-17 00:00:00,2021-06-30 00:00:00,56601.119999999995,56601.12
CDC COVID-19 Vaccine Funding,2021,PUBLIC CONSULTING GROUP LLC,Health & Human Services,CONSULTANT SVCS (TO DEPTS) (HH),2021-03-22 00:00:00,2021-04-30 00:00:00,59400,59400
CDC COVID-19 Vaccine Funding,2021,"SEVEN HILLS BEHAVIORAL HEALTH, INC.",Health & Human Services,PURCHASED CLIENT/PROGRAM SVCS (MM),2021-06-01 00:00:00,2021-06-30 00:00:00,43001.31,43001.31
CDC COVID-19 Vaccine Funding,2021,STRATEGIC SOLUTIONS GROUP LLC,Health & Human Services,IT Non-Payroll Expenses (UU),2021-02-28 00:00:00,2021-05-25 00:00:00,178101,178101
CDC COVID-19 Vaccine Funding,2021,TAPESTRY HEALTH SYSTEMS INC,Health & Human Services,PURCHASED CLIENT/PROGRAM SVCS (MM),2021-06-01 00:00:00,2021-06-30 00:00:00,15921.339999999997,15921.34
CDC COVID-19 Vaccine Funding,2021,"THE LATINO HLTH INSURANCE PROGRAM, INC",Health & Human Services,PURCHASED CLIENT/PROGRAM SVCS (MM),2021-06-01 00:00:00,2021-06-30 00:00:00,44408,44408
CDC COVID-19 Vaccine Funding,2021,TOWN OF RANDOLPH,Health & Human Services,STATE AID/POL SUB (PP),2021-04-01 00:00:00,2021-06-30 00:00:00,142514,142514
CDC COVID-19 Vaccine Funding,2021,TRUSTEES OF BOSTON UNIVERSITY,Health & Human Services,CONSULTANT SVCS (TO DEPTS) (HH),2021-06-09 00:00:00,2021-06-20 00:00:00,20000,20000
CDC COVID-19 Vaccine Funding,2021,UNIVERSITY OF MASS,Health & Human Services,CONSULTANT SVCS (TO DEPTS) (HH),2021-06-09 00:00:00,2021-06-30 00:00:00,10000,10000
CDC COVID-19 Vaccine Funding,2021,USA COURIERS INC,Health & Human Services,OPERATIONAL SERVICES (JJ),2021-02-28 00:00:00,2021-06-27 00:00:00,16271,16271
CDC COVID-19 Vaccine Funding,2021,WHITTIER STREET HEALTH CTR COMMITTEE INC,Health & Human Services,PURCHASED CLIENT/PROGRAM SVCS (MM),2021-05-17 00:00:00,2021-06-30 00:00:00,29415.939999999995,29415.940000000002
CDC COVID-19 Vaccine Funding,2022,ADCARE EDUCATIONAL INSTITUTE,Health & Human Services,PURCHASED CLIENT/PROGRAM SVCS (MM),2021-11-01 00:00:00,2022-01-31 00:00:00,12000,2512.51
CDC COVID-19 Vaccine Funding,2022,AIDS PROJECT WORCESTER INC,Health & Human Services,PURCHASED CLIENT/PROGRAM SVCS (MM),2021-07-01 00:00:00,2022-01-31 00:00:00,163839,47522.689999999995
CDC COVID-19 Vaccine Funding,2022,BEHAVIORAL HEALTH NETWORK INC,Health & Human Services,PURCHASED CLIENT/PROGRAM SVCS (MM),2021-04-01 00:00:00,2021-10-31 00:00:00,227089.08,40958.71
CDC COVID-19 Vaccine Funding,2022,BOSTON HEALTH CARE FOR THE,Health & Human Services,PURCHASED CLIENT/PROGRAM SVCS (MM),2021-07-01 00:00:00,2021-09-30 00:00:00,317500,62243.880000000005
CDC COVID-19 Vaccine Funding,2022,BOSTON MEDICAL CENTER,Health & Human Services,PURCHASED CLIENT/PROGRAM SVCS (MM),2021-07-01 00:00:00,2021-11-30 00:00:00,380000,87127.41999999998
CDC COVID-19 Vaccine Funding,2022,CAMBRIDGE PUBLIC HEALTH,Health & Human Services,PURCHASED CLIENT/PROGRAM SVCS (MM),2021-07-01 00:00:00,2022-01-31 00:00:00,280000,88080.34000000001
CDC COVID-19 Vaccine Funding,2022,CARING HEALTH CENTER INC,Health & Human Services,PURCHASED CLIENT/PROGRAM SVCS (MM),2021-07-01 00:00:00,2022-02-28 00:00:00,240439.99999999997,89328.71999999999
CDC COVID-19 Vaccine Funding,2022,CAUSEMEDIA INC,Health & Human Services,CONSULTANT SVCS (TO DEPTS) (HH),2021-07-01 00:00:00,2021-08-30 00:00:00,1597839.5900000003,1597839.59
CDC COVID-19 Vaccine Funding,2022,CENTRO LAS AMERICAS INC,Health & Human Services,PURCHASED CLIENT/PROGRAM SVCS (MM),2021-07-01 00:00:00,2021-10-31 00:00:00,538590,197171.74999999997
CDC COVID-19 Vaccine Funding,2022,CITY EXPRESS INC,Health & Human Services,OPERATIONAL SERVICES (JJ),2021-08-12 00:00:00,2021-08-21 00:00:00,60000,5862.48
CDC COVID-19 Vaccine Funding,2022,CODMAN SQUARE HEALTH CENTER,Health & Human Services,PURCHASED CLIENT/PROGRAM SVCS (MM),2021-07-01 00:00:00,2022-01-31 00:00:00,115269.00000000007,74353.69999999998
CDC COVID-19 Vaccine Funding,2022,COMMUNITY HEALTH CONNECTIONS,Health & Human Services,PURCHASED CLIENT/PROGRAM SVCS (MM),2021-07-01 00:00:00,2022-02-28 00:00:00,288180.99999999994,112212.14000000001
CDC COVID-19 Vaccine Funding,2022,DIMOCK COMMUNITY SERVICES CORP,Health & Human Services,PURCHASED CLIENT/PROGRAM SVCS (MM),2021-07-01 00:00:00,2021-10-31 00:00:00,73831.27000000002,49514.26999999999
CDC COVID-19 Vaccine Funding,2022,ELDER SERVICES   OF THE,Health & Human Services,PURCHASED CLIENT/PROGRAM SVCS (MM),2021-07-01 00:00:00,2021-10-31 00:00:00,243523.00000000006,39375.979999999996
CDC COVID-19 Vaccine Funding,2022,FAMILY HEALTH CENTER OF WORCESTER INC,Health & Human Services,PURCHASED CLIENT/PROGRAM SVCS (MM),2021-07-01 00:00:00,2021-08-31 00:00:00,166000,25197.2
CDC COVID-19 Vaccine Funding,2022,FENWAY COMMUNITY HEALTH CTR,Health & Human Services,PURCHASED CLIENT/PROGRAM SVCS (MM),2021-07-01 00:00:00,2021-09-30 00:00:00,34939,34939
CDC COVID-19 Vaccine Funding,2022,GREATER LAWRENCE FAMILY HEALTH CENTER,Health & Human Services,PURCHASED CLIENT/PROGRAM SVCS (MM),2021-07-01 00:00:00,2021-07-31 00:00:00,330000,16877.42
CDC COVID-19 Vaccine Funding,2022,GREATER NEW BEDFORD COMMUNITY,Health & Human Services,PURCHASED CLIENT/PROGRAM SVCS (MM),2021-07-01 00:00:00,2021-11-30 00:00:00,150000,2319.96
CDC COVID-19 Vaccine Funding,2022,"HEALTH IMPERATIVES, INC",Health & Human Services,PURCHASED CLIENT/PROGRAM SVCS (MM),2021-07-01 00:00:00,2021-10-31 00:00:00,460987.00000000023,126582.55
CDC COVID-19 Vaccine Funding,2022,"HEALTH INNOVATIONS, INC",Health & Human Services,PURCHASED CLIENT/PROGRAM SVCS (MM),2021-07-01 00:00:00,2022-01-31 00:00:00,250000,129174
CDC COVID-19 Vaccine Funding,2022,"HEALTH RESOURCES IN ACTION, INC.",Health & Human Services,CONSULTANT SVCS (TO DEPTS) (HH),,,119757,0
CDC COVID-19 Vaccine Funding,2022,"HEALTH RESOURCES IN ACTION, INC.",Health & Human Services,PURCHASED CLIENT/PROGRAM SVCS (MM),2021-07-01 00:00:00,2022-01-31 00:00:00,1581939.1200000006,1362769.3900000001
CDC COVID-19 Vaccine Funding,2022,HOLYOKE HEALTH CENTER INC,Health & Human Services,PURCHASED CLIENT/PROGRAM SVCS (MM),2021-07-01 00:00:00,2022-01-31 00:00:00,150000,27408.760000000002
CDC COVID-19 Vaccine Funding,2022,Indirect Costs,Health & Human Services,ADMINISTRATIVE EXPENSES (EE),,,10981.920000000002,10981.920000000002
CDC COVID-19 Vaccine Funding,2022,JSI RESEARCH & TRAINING INSTITUTE INC,Health & Human Services,CONSULTANT SVCS (TO DEPTS) (HH),2021-07-16 00:00:00,2021-10-31 00:00:00,123664.97999999998,112499.98000000001
CDC COVID-19 Vaccine Funding,2022,JSI RESEARCH & TRAINING INSTITUTE INC,Health & Human Services,PURCHASED CLIENT/PROGRAM SVCS (MM),2021-07-01 00:00:00,2021-12-31 00:00:00,1957865.1600000004,877695.76
CDC COVID-19 Vaccine Funding,2022,JUSTICE RESOURCE INSTITUTE INC,Health & Human Services,PURCHASED CLIENT/PROGRAM SVCS (MM),2021-07-01 00:00:00,2021-11-30 00:00:00,258999.9999999999,95018.77999999998
CDC COVID-19 Vaccine Funding,2022,KPMG LLP,Health & Human Services,CONSULTANT SVCS (TO DEPTS) (HH),2021-08-09 00:00:00,2022-02-28 00:00:00,698248.9299999999,546906.42
CDC COVID-19 Vaccine Funding,2022,LYNN COMMUNITY HEALTH INC,Health & Human Services,PURCHASED CLIENT/PROGRAM SVCS (MM),2021-07-01 00:00:00,2021-10-31 00:00:00,138875.03000000003,138875.03
CDC COVID-19 Vaccine Funding,2022,MASS ALLIANCE  OF,Health & Human Services,PURCHASED CLIENT/PROGRAM SVCS (MM),2021-07-01 00:00:00,2022-02-28 00:00:00,222999.99999999988,101710.19
CDC COVID-19 Vaccine Funding,2022,MASS ASSOC OF HEALTH BOARDSINC,Health & Human Services,STATE AID/POL SUB (PP),2021-09-15 00:00:00,2022-06-30 00:00:00,60115,60115
CDC COVID-19 Vaccine Funding,2022,MASSACHUSETTS LEAGUE OF,Health & Human Services,PURCHASED CLIENT/PROGRAM SVCS (MM),,,2513073,0
CDC COVID-19 Vaccine Funding,2022,"MEDICAL LOGISTIC SERVICES, INC.",Health & Human Services,OPERATIONAL SERVICES (JJ),2021-07-12 00:00:00,2022-03-04 00:00:00,258401.63000000012,101606.97000000003
CDC COVID-19 Vaccine Funding,2022,METROPOLITAN AREA,Health & Human Services,CONSULTANT SVCS (TO DEPTS) (HH),,,52500,0
CDC COVID-19 Vaccine Funding,2022,MULTICULTURAL AIDS COALITION,Health & Human Services,PURCHASED CLIENT/PROGRAM SVCS (MM),2021-07-01 00:00:00,2021-12-31 00:00:00,305000,127207.82
CDC COVID-19 Vaccine Funding,2022,NEW NORTH CITIZENS COUNCIL,Health & Human Services,PURCHASED CLIENT/PROGRAM SVCS (MM),2021-07-01 00:00:00,2021-08-31 00:00:00,362478,49708.81
CDC COVID-19 Vaccine Funding,2022,NORTH SHORE COMMUNITY HEALTH INC,Health & Human Services,PURCHASED CLIENT/PROGRAM SVCS (MM),2021-07-01 00:00:00,2022-02-28 00:00:00,249999.99999999997,96332.67999999998
CDC COVID-19 Vaccine Funding,2022,PARTNERS FOR HEALTHIER COMMUNITY INC,Health & Human Services,CONSULTANT SVCS (TO DEPTS) (HH),2021-07-01 00:00:00,2021-12-31 00:00:00,50000,25000
CDC COVID-19 Vaccine Funding,2022,Payroll and other payments to individuals,Health & Human Services,PENSION & INSURANCE RELATED EX (DD),,,32272.13,32272.13
CDC COVID-19 Vaccine Funding,2022,Payroll and other payments to individuals,Health & Human Services,REGULAR EMPLOYEE COMPENSATION (AA),2021-08-03 00:00:00,2022-03-15 00:00:00,99296.99999999999,99296.99999999999
CDC COVID-19 Vaccine Funding,2022,Payroll and other payments to individuals,Health & Human Services,SPECIAL EMPLOYEES (CC),2021-10-12 00:00:00,2022-03-15 00:00:00,42375,42375
CDC COVID-19 Vaccine Funding,2022,POSITIVE ACTION AGAINST,Health & Human Services,PURCHASED CLIENT/PROGRAM SVCS (MM),2021-07-01 00:00:00,2021-09-30 00:00:00,307517,102693
CDC COVID-19 Vaccine Funding,2022,PUBLIC CONSULTING GROUP LLC,Health & Human Services,CONSULTANT SVCS (TO DEPTS) (HH),2021-07-01 00:00:00,2021-12-31 00:00:00,516714.25,516714.25
CDC COVID-19 Vaccine Funding,2022,"SEVEN HILLS BEHAVIORAL HEALTH, INC.",Health & Human Services,PURCHASED CLIENT/PROGRAM SVCS (MM),2021-07-01 00:00:00,2021-12-31 00:00:00,314000,45162.009999999995
CDC COVID-19 Vaccine Funding,2022,STANLEY STREET TREATMENT & RESOURCES INC,Health & Human Services,PURCHASED CLIENT/PROGRAM SVCS (MM),2021-07-01 00:00:00,2022-01-31 00:00:00,145000,66499.29000000001
CDC COVID-19 Vaccine Funding,2022,STRATEGIC SOLUTIONS GROUP LLC,Health & Human Services,IT Non-Payroll Expenses (UU),2021-05-30 00:00:00,2022-01-29 00:00:00,1350414.13,1024750.63
CDC COVID-19 Vaccine Funding,2022,TAPESTRY HEALTH SYSTEMS INC,Health & Human Services,PURCHASED CLIENT/PROGRAM SVCS (MM),2021-07-01 00:00:00,2022-01-31 00:00:00,200000,27647.920000000006
CDC COVID-19 Vaccine Funding,2022,"THE LATINO HLTH INSURANCE PROGRAM, INC",Health & Human Services,PURCHASED CLIENT/PROGRAM SVCS (MM),2021-07-01 00:00:00,2021-08-30 00:00:00,449887,67589.07999999999
CDC COVID-19 Vaccine Funding,2022,TRUSTEES OF BOSTON UNIVERSITY,Health & Human Services,CONSULTANT SVCS (TO DEPTS) (HH),,,85000,0
CDC COVID-19 Vaccine Funding,2022,UNIVERSITY OF MASS,Health & Human Services,CONSULTANT SVCS (TO DEPTS) (HH),,,70000,0
CDC COVID-19 Vaccine Funding,2022,UNIVERSITY OF MASS,Health & Human Services,PURCHASED CLIENT/PROGRAM SVCS (MM),2021-07-01 00:00:00,2022-01-31 00:00:00,148144,40306.09
CDC COVID-19 Vaccine Funding,2022,USA COURIERS INC,Health & Human Services,OPERATIONAL SERVICES (JJ),2021-07-18 00:00:00,2021-09-25 00:00:00,60000,43225.75
CDC COVID-19 Vaccine Funding,2022,VWR SCIENTIFIC,Health & Human Services,FACILITY OPERATIONAL EXPENSES (FF),2021-10-04 00:00:00,2021-10-04 00:00:00,79899,79899
CDC COVID-19 Vaccine Funding,2022,WHITTIER STREET HEALTH CTR COMMITTEE INC,Health & Human Services,PURCHASED CLIENT/PROGRAM SVCS (MM),,,91224,0
CDC ELC Additional Testing Funding,2021,JSI RESEARCH & TRAINING INSTITUTE INC,Health & Human Services,CONSULTANT SVCS (TO DEPTS) (HH),2020-08-01 00:00:00,2021-06-30 00:00:00,87639.38999999994,87639.38999999998
CDC ELC Additional Testing Funding,2021,PROFESSIONAL STAFFING GROUP,Health & Human Services,PURCHASED CLIENT/PROGRAM SVCS (MM),2020-10-24 00:00:00,2021-02-05 00:00:00,74852.84999999999,74852.84999999999
CDC ELC Testing Funding,2020,BERKSHIRE MEDICAL CENTER INC,Health & Human Services,OPERATIONAL SERVICES (JJ),2020-06-17 00:00:00,2020-06-18 00:00:00,41116.95,41116.95
CDC ELC Testing Funding,2020,BROCKTON NEIGHBORHOOD HLTH CTR,Health & Human Services,OPERATIONAL SERVICES (JJ),2020-06-17 00:00:00,2020-06-18 00:00:00,29760,29760
CDC ELC Testing Funding,2020,COMMUNITY HEALTH CONNECTIONS,Health & Human Services,OPERATIONAL SERVICES (JJ),2020-06-19 00:00:00,2020-06-19 00:00:00,30873.78,30873.78
CDC ELC Testing Funding,2020,COOLEY DICKINSON HOSP INC,Health & Human Services,OPERATIONAL SERVICES (JJ),2020-06-17 00:00:00,2020-06-19 00:00:00,55543.95,55543.95
CDC ELC Testing Funding,2020,FAIRVIEW HOSPITAL,Health & Human Services,OPERATIONAL SERVICES (JJ),2020-06-17 00:00:00,2020-06-18 00:00:00,32172.21,32172.21
CDC ELC Testing Funding,2020,FISHER SCIENTIFIC COMPANY LLC,Health & Human Services,FACILITY OPERATIONAL EXPENSES (FF),2020-06-23 00:00:00,2020-06-24 00:00:00,4668.96,4668.96
CDC ELC Testing Funding,2020,GOVERNMENT SCIENTIFIC SOURCE,Health & Human Services,FACILITY OPERATIONAL EXPENSES (FF),2020-06-24 00:00:00,2020-06-29 00:00:00,2443.6300000000006,2443.6300000000006
CDC ELC Testing Funding,2020,LAWRENCE GENERAL HOSPITAL INC,Health & Human Services,OPERATIONAL SERVICES (JJ),2020-06-17 00:00:00,2020-06-19 00:00:00,90745.83,90745.83
CDC ELC Testing Funding,2020,LYNN COMMUNITY HEALTH INC,Health & Human Services,OPERATIONAL SERVICES (JJ),2020-06-17 00:00:00,2020-06-18 00:00:00,27122.76,27122.76
CDC ELC Testing Funding,2020,MANET COMMUNITY HEALTH CENTER,Health & Human Services,OPERATIONAL SERVICES (JJ),2020-06-17 00:00:00,2020-06-18 00:00:00,85407.84,85407.84
CDC ELC Testing Funding,2020,"OUTER CAPE HEALTH SERVICES, INC",Health & Human Services,OPERATIONAL SERVICES (JJ),2020-06-17 00:00:00,2020-06-18 00:00:00,315662.76,315662.76
CDC ELC Testing Funding,2020,"Payees under $50,000",Health & Human Services,OPERATIONAL SERVICES (JJ),2020-06-17 00:00:00,2020-06-18 00:00:00,43281,43281
CDC ELC Testing Funding,2020,SHI INTERNATIONAL CORP,Health & Human Services,IT Non-Payroll Expenses (UU),2020-06-30 00:00:00,2020-06-30 00:00:00,203520,203520
CDC ELC Testing Funding,2020,UMASS MEMORIAL MEDICAL CENTER INC,Health & Human Services,OPERATIONAL SERVICES (JJ),2020-06-17 00:00:00,2020-06-18 00:00:00,231697.62,231697.62
CDC ELC Testing Funding,2021,ABBOTT LABORATORIES AND US SUBSIDIARIES,Health & Human Services,FACILITY OPERATIONAL EXPENSES (FF),2021-01-21 00:00:00,2021-01-22 00:00:00,5085550.299999999,5085550.3
CDC ELC Testing Funding,2021,ADVOCATES INC,Health & Human Services,PURCHASED CLIENT/PROGRAM SVCS (MM),2020-09-01 00:00:00,2021-01-20 00:00:00,764633.0900000001,764633.0900000001
CDC ELC Testing Funding,2021,AGILENT TECHNOLOGIES INC,Health & Human Services,EQUIPMENT LEASE-MAINTAIN/REPAR (LL),2020-09-17 00:00:00,2021-06-30 00:00:00,1536,1536
CDC ELC Testing Funding,2021,AIDS PROJECT WORCESTER INC,Health & Human Services,PURCHASED CLIENT/PROGRAM SVCS (MM),2020-07-01 00:00:00,2020-12-31 00:00:00,467282.6100000001,467282.6100000001
CDC ELC Testing Funding,2021,ALERT AMBULANCE SERVICE INC,Health & Human Services,OPERATIONAL SERVICES (JJ),2020-08-08 00:00:00,2020-12-13 00:00:00,3549907.6200000006,3549907.6200000006
CDC ELC Testing Funding,2021,ALMADAN INC,Health & Human Services,PURCHASED CLIENT/PROGRAM SVCS (MM),2020-09-01 00:00:00,2021-01-20 00:00:00,42133.69,42133.69
CDC ELC Testing Funding,2021,ALTERNATIVE HOUSE,Health & Human Services,PURCHASED CLIENT/PROGRAM SVCS (MM),2020-10-15 00:00:00,2020-12-09 00:00:00,362.42999999999995,362.42999999999995
CDC ELC Testing Funding,2021,ALTERNATIVES UNLIMITED INC,Health & Human Services,PURCHASED CLIENT/PROGRAM SVCS (MM),2020-09-01 00:00:00,2021-01-20 00:00:00,458383.30000000005,458383.30000000005
CDC ELC Testing Funding,2021,AMEGO INC,Health & Human Services,PURCHASED CLIENT/PROGRAM SVCS (MM),2020-09-01 00:00:00,2021-01-20 00:00:00,572917.23,572917.23
CDC ELC Testing Funding,2021,AMERICAN MEDICAL RESPONSE OF MA INC,Health & Human Services,OPERATIONAL SERVICES (JJ),2020-08-29 00:00:00,2020-11-20 00:00:00,7229513.969999999,7229513.969999999
CDC ELC Testing Funding,2021,AMERICAN MEDICAL RESPONSE OF MA INC,Health & Human Services,PURCHASED CLIENT/PROGRAM SVCS (MM),2020-11-12 00:00:00,2021-06-30 00:00:00,5410699.720000002,5410699.720000002
CDC ELC Testing Funding,2021,AMERICAN TRAINING INC,Health & Human Services,PURCHASED CLIENT/PROGRAM SVCS (MM),2020-10-01 00:00:00,2021-01-20 00:00:00,93748.56,93748.56
CDC ELC Testing Funding,2021,ARCHWAY INC,Health & Human Services,PURCHASED CLIENT/PROGRAM SVCS (MM),2020-10-01 00:00:00,2020-12-23 00:00:00,44971.41,44971.41
CDC ELC Testing Funding,2021,"ASCENTRIA COMMUNITY SERVICES, INC",Health & Human Services,PURCHASED CLIENT/PROGRAM SVCS (MM),2020-09-01 00:00:00,2020-09-30 00:00:00,149.96,149.96
CDC ELC Testing Funding,2021,BARRY L PRICE REHAB,Health & Human Services,PURCHASED CLIENT/PROGRAM SVCS (MM),2020-09-01 00:00:00,2021-01-20 00:00:00,66426.25,66426.25
CDC ELC Testing Funding,2021,BASS RIVER DAY ACTIVITY,Health & Human Services,PURCHASED CLIENT/PROGRAM SVCS (MM),2020-10-01 00:00:00,2021-01-20 00:00:00,41075.399999999994,41075.399999999994
CDC ELC Testing Funding,2021,BAY COVE HUMAN SERVICES INC,Health & Human Services,PURCHASED CLIENT/PROGRAM SVCS (MM),2020-09-01 00:00:00,2021-01-20 00:00:00,823161.1099999999,823161.1099999999
CDC ELC Testing Funding,2021,BAY STATE COMMUNITY SERVICES INC,Health & Human Services,PURCHASED CLIENT/PROGRAM SVCS (MM),2020-09-01 00:00:00,2021-02-01 00:00:00,59629.11,59629.11
CDC ELC Testing Funding,2021,"BAYSTATE MEDICAL CENTER, INC.",Health & Human Services,OPERATIONAL SERVICES (JJ),2020-06-17 00:00:00,2020-10-30 00:00:00,473638.41000000003,473638.41000000003
CDC ELC Testing Funding,2021,BEAVERBROOK STEP INC,Health & Human Services,PURCHASED CLIENT/PROGRAM SVCS (MM),2020-09-01 00:00:00,2021-01-20 00:00:00,201167.76,201167.76
CDC ELC Testing Funding,2021,BECKET ACADEMY,Health & Human Services,PURCHASED CLIENT/PROGRAM SVCS (MM),2020-09-01 00:00:00,2021-01-20 00:00:00,98375.58,98375.58
CDC ELC Testing Funding,2021,BEHAVIORAL ASSOCIATES OF,Health & Human Services,PURCHASED CLIENT/PROGRAM SVCS (MM),2020-09-01 00:00:00,2021-01-20 00:00:00,42912.81,42912.81
CDC ELC Testing Funding,2021,BEHAVIORAL HEALTH NETWORK INC,Health & Human Services,PURCHASED CLIENT/PROGRAM SVCS (MM),2020-09-01 00:00:00,2021-01-20 00:00:00,594825.31,594825.31
CDC ELC Testing Funding,2021,BERKSHIRE COUNTY ARC INC,Health & Human Services,PURCHASED CLIENT/PROGRAM SVCS (MM),2020-09-01 00:00:00,2021-01-20 00:00:00,267137.93999999994,267137.93999999994
CDC ELC Testing Funding,2021,BERKSHIRE FAMILY AND,Health & Human Services,PURCHASED CLIENT/PROGRAM SVCS (MM),2020-09-01 00:00:00,2021-01-20 00:00:00,95047.66999999998,95047.66999999998
CDC ELC Testing Funding,2021,BERKSHIRE HILLS MUSIC ACADEMY,Health & Human Services,PURCHASED CLIENT/PROGRAM SVCS (MM),2020-09-01 00:00:00,2021-01-20 00:00:00,33091.05,33091.05
CDC ELC Testing Funding,2021,BERKSHIRE MEDICAL CENTER INC,Health & Human Services,OPERATIONAL SERVICES (JJ),2020-12-05 00:00:00,2021-06-30 00:00:00,1035810,1035810
CDC ELC Testing Funding,2021,BERKSHIRE MEDICAL CENTER INC,Health & Human Services,PURCHASED CLIENT/PROGRAM SVCS (MM),2020-09-01 00:00:00,2020-09-30 00:00:00,7125,7125
CDC ELC Testing Funding,2021,"BETA COMMUNITY PARTNERSHIPS, INC.",Health & Human Services,PURCHASED CLIENT/PROGRAM SVCS (MM),2020-09-01 00:00:00,2021-01-20 00:00:00,58141.50000000001,58141.50000000001
CDC ELC Testing Funding,2021,BETH ISRAEL DEACONESS,Health & Human Services,OPERATIONAL SERVICES (JJ),2020-07-10 00:00:00,2021-06-30 00:00:00,5119565.220000001,5119565.220000001
CDC ELC Testing Funding,2021,BETTER COMMUNITY LIVING INC,Health & Human Services,PURCHASED CLIENT/PROGRAM SVCS (MM),2020-09-01 00:00:00,2021-01-20 00:00:00,78865.85,78865.85
CDC ELC Testing Funding,2021,BIOBOT ANALYTICS INC,Health & Human Services,OPERATIONAL SERVICES (JJ),2020-12-01 00:00:00,2021-06-30 00:00:00,257570.71999999986,257570.72
CDC ELC Testing Funding,2021,BIOFIRE DIAGNOSTICS LLC,Health & Human Services,EQUIPMENT LEASE-MAINTAIN/REPAR (LL),2021-02-05 00:00:00,2021-06-30 00:00:00,23800,23800
CDC ELC Testing Funding,2021,BOSTON HIGASHI SCHOOL INC,Health & Human Services,PURCHASED CLIENT/PROGRAM SVCS (MM),2020-09-01 00:00:00,2021-01-06 00:00:00,127953.45000000003,127953.45000000003
CDC ELC Testing Funding,2021,BOSTON PUBLIC HEALTH COMMIS,Health & Human Services,PURCHASED CLIENT/PROGRAM SVCS (MM),2020-09-01 00:00:00,2021-01-06 00:00:00,100077.78000000003,100077.78000000003
CDC ELC Testing Funding,2021,BRANDON RESIDENTIAL TREATMENT,Health & Human Services,PURCHASED CLIENT/PROGRAM SVCS (MM),2020-09-01 00:00:00,2021-01-20 00:00:00,122357.41000000003,122357.41000000003
CDC ELC Testing Funding,2021,BREWSTER AMBULANCE SERVICE INC,Health & Human Services,PURCHASED CLIENT/PROGRAM SVCS (MM),2021-01-30 00:00:00,2021-02-22 00:00:00,5624.18,5624.18
CDC ELC Testing Funding,2021,BRIDGEWELL INC,Health & Human Services,PURCHASED CLIENT/PROGRAM SVCS (MM),2020-09-01 00:00:00,2021-01-20 00:00:00,465225.5999999999,465225.5999999999
CDC ELC Testing Funding,2021,BRIGHAM AND WOMENS HOSPITAL INC,Health & Human Services,OPERATIONAL SERVICES (JJ),2020-06-17 00:00:00,2020-06-18 00:00:00,172402.65,172402.65
CDC ELC Testing Funding,2021,BROCKTON AREA MULTI-SERVS INC,Health & Human Services,PURCHASED CLIENT/PROGRAM SVCS (MM),2020-08-01 00:00:00,2021-01-20 00:00:00,667178.47,667178.47
CDC ELC Testing Funding,2021,BROCKTON NEIGHBORHOOD HLTH CTR,Health & Human Services,OPERATIONAL SERVICES (JJ),2020-07-01 00:00:00,2021-06-30 00:00:00,3786411.2099999995,3786411.2099999995
CDC ELC Testing Funding,2021,CAM OFFICE SERVICES INC,Health & Human Services,ADMINISTRATIVE EXPENSES (EE),2021-01-06 00:00:00,2021-01-06 00:00:00,214.04000000000002,214.04000000000002
CDC ELC Testing Funding,2021,CAMBRIDGE FAMILY  &  CHILDRENS SERVICE,Health & Human Services,PURCHASED CLIENT/PROGRAM SVCS (MM),2020-10-01 00:00:00,2020-11-25 00:00:00,4953.210000000001,4953.210000000001
CDC ELC Testing Funding,2021,CAMBRIDGE PUBLIC HLTH COMMISSION,Health & Human Services,OPERATIONAL SERVICES (JJ),2020-06-17 00:00:00,2020-09-30 00:00:00,224916.93000000002,224916.93000000002
CDC ELC Testing Funding,2021,CAPEABILITIES,Health & Human Services,PURCHASED CLIENT/PROGRAM SVCS (MM),2020-10-01 00:00:00,2021-01-20 00:00:00,74902.19999999998,74902.19999999998
CDC ELC Testing Funding,2021,CARDINAL CUSHING CENTERS INC,Health & Human Services,PURCHASED CLIENT/PROGRAM SVCS (MM),2020-09-01 00:00:00,2021-01-20 00:00:00,306147.12,306147.12
CDC ELC Testing Funding,2021,CASA ESPERANZA INC.,Health & Human Services,PURCHASED CLIENT/PROGRAM SVCS (MM),2020-09-01 00:00:00,2020-12-23 00:00:00,34761.51,34761.51
CDC ELC Testing Funding,2021,CASA MYRNA VAZQUEZ INC,Health & Human Services,PURCHASED CLIENT/PROGRAM SVCS (MM),2020-09-01 00:00:00,2021-01-20 00:00:00,30649.68,30649.68
CDC ELC Testing Funding,2021,CATALDO AMBULANCE SERVICE INC,Health & Human Services,PURCHASED CLIENT/PROGRAM SVCS (MM),2020-11-15 00:00:00,2021-06-30 00:00:00,3052421.0700000008,3052421.0700000008
CDC ELC Testing Funding,2021,CATHOLIC CHARITABLE BUREAU OF,Health & Human Services,PURCHASED CLIENT/PROGRAM SVCS (MM),2020-09-01 00:00:00,2021-01-20 00:00:00,18796.78,18796.78
CDC ELC Testing Funding,2021,CATHOLIC CHARITIES OF THE,Health & Human Services,PURCHASED CLIENT/PROGRAM SVCS (MM),2020-11-12 00:00:00,2020-11-25 00:00:00,120.81,120.81
CDC ELC Testing Funding,2021,CAUSEMEDIA INC,Health & Human Services,CONSULTANT SVCS (TO DEPTS) (HH),2020-07-01 00:00:00,2020-10-31 00:00:00,276655.81999999995,276655.81999999995
CDC ELC Testing Funding,2021,CDM SMITH INC,Health & Human Services,OPERATIONAL SERVICES (JJ),2020-10-23 00:00:00,2021-06-16 00:00:00,457805,457805
CDC ELC Testing Funding,2021,CDW GOVERNMENT LLC,Health & Human Services,ADMINISTRATIVE EXPENSES (EE),2020-08-03 00:00:00,2020-10-01 00:00:00,18922,18922
CDC ELC Testing Funding,2021,CENTER FOR HUMAN,Health & Human Services,PURCHASED CLIENT/PROGRAM SVCS (MM),2020-09-01 00:00:00,2021-01-20 00:00:00,524873.24,524873.24
CDC ELC Testing Funding,2021,CENTERBOARD INC,Health & Human Services,PURCHASED CLIENT/PROGRAM SVCS (MM),2020-10-01 00:00:00,2021-01-20 00:00:00,24162.000000000007,24162.000000000007
CDC ELC Testing Funding,2021,CHARLES RIVER ASSOCIATION FOR,Health & Human Services,PURCHASED CLIENT/PROGRAM SVCS (MM),2020-09-01 00:00:00,2021-01-20 00:00:00,204417.61000000004,204417.61000000004
CDC ELC Testing Funding,2021,CHILDRENS HOSPITAL CORPORATION,Health & Human Services,CONSULTANT SVCS (TO DEPTS) (HH),2021-05-15 00:00:00,2021-06-15 00:00:00,50000,50000
CDC ELC Testing Funding,2021,CIC HEALTH TESTING SERVICES LLC,Health & Human Services,PURCHASED CLIENT/PROGRAM SVCS (MM),2021-04-16 00:00:00,2021-04-25 00:00:00,689690.7599999998,689690.76
CDC ELC Testing Funding,2021,CITIZENS INN INC,Health & Human Services,PURCHASED CLIENT/PROGRAM SVCS (MM),2020-09-01 00:00:00,2021-01-20 00:00:00,9415.89,9415.89
CDC ELC Testing Funding,2021,"CLEAR LABS, INC",Health & Human Services,EQUIPMENT LEASE-MAINTAIN/REPAR (LL),2021-03-25 00:00:00,2021-03-25 00:00:00,25088,25088
CDC ELC Testing Funding,2021,"CLEAR LABS, INC",Health & Human Services,FACILITY OPERATIONAL EXPENSES (FF),2021-04-13 00:00:00,2021-04-13 00:00:00,25940,25940
CDC ELC Testing Funding,2021,CLINICAL & SUPPORT OPTIONS INC,Health & Human Services,PURCHASED CLIENT/PROGRAM SVCS (MM),2020-09-01 00:00:00,2021-01-20 00:00:00,15281.810000000003,15281.810000000003
CDC ELC Testing Funding,2021,CLINICAL RESEARCH SEQUENCING PLATFORM,Health & Human Services,OPERATIONAL SERVICES (JJ),2020-07-01 00:00:00,2021-06-30 00:00:00,28070451,28070451
CDC ELC Testing Funding,2021,COLOR HEALTH INC,Health & Human Services,PURCHASED CLIENT/PROGRAM SVCS (MM),2020-12-24 00:00:00,2021-06-30 00:00:00,16164311.539999988,16164311.540000003
CDC ELC Testing Funding,2021,COMM COUNSELING OF B C INC,Health & Human Services,PURCHASED CLIENT/PROGRAM SVCS (MM),2020-09-01 00:00:00,2021-01-20 00:00:00,172920.12,172920.12
CDC ELC Testing Funding,2021,COMMONWEALTH HEALTH INS CONN AUTHORITY,Health & Human Services,STATE AID/POL SUB (PP),2021-02-01 00:00:00,2021-04-14 00:00:00,36941132.65,36941132.65
CDC ELC Testing Funding,2021,"COMMONWEALTH INFORMATICS, INC.",Health & Human Services,IT Non-Payroll Expenses (UU),2020-07-01 00:00:00,2021-06-30 00:00:00,251460,251460
CDC ELC Testing Funding,2021,"COMMUNITAS, INC.",Health & Human Services,PURCHASED CLIENT/PROGRAM SVCS (MM),2020-09-01 00:00:00,2021-01-20 00:00:00,56127.32,56127.32
CDC ELC Testing Funding,2021,COMMUNITIES FOR  PEOPLE INC,Health & Human Services,PURCHASED CLIENT/PROGRAM SVCS (MM),2020-09-01 00:00:00,2020-09-30 00:00:00,640,640
CDC ELC Testing Funding,2021,COMMUNITY HEALTHLINK INC,Health & Human Services,PURCHASED CLIENT/PROGRAM SVCS (MM),2020-12-09 00:00:00,2021-01-20 00:00:00,94231.8,94231.8
CDC ELC Testing Funding,2021,COMMUNITY RESOURCES,Health & Human Services,PURCHASED CLIENT/PROGRAM SVCS (MM),2020-09-01 00:00:00,2021-01-20 00:00:00,76402.49,76402.49
CDC ELC Testing Funding,2021,COMMUNITY SUPPORT ASSOC INC,Health & Human Services,PURCHASED CLIENT/PROGRAM SVCS (MM),2020-09-01 00:00:00,2021-01-06 00:00:00,4087.6800000000003,4087.6800000000003
CDC ELC Testing Funding,2021,COMMUNITY SYSTEMS INC,Health & Human Services,PURCHASED CLIENT/PROGRAM SVCS (MM),2020-09-01 00:00:00,2021-01-20 00:00:00,139726.89999999997,139726.89999999997
CDC ELC Testing Funding,2021,COMPREHENSIVE MENTAL HEALTH,Health & Human Services,PURCHASED CLIENT/PROGRAM SVCS (MM),2020-09-01 00:00:00,2020-11-25 00:00:00,19152.23,19152.23
CDC ELC Testing Funding,2021,COOLEY DICKINSON HOSP INC,Health & Human Services,OPERATIONAL SERVICES (JJ),2020-07-19 00:00:00,2020-07-24 00:00:00,288.54,288.54
CDC ELC Testing Funding,2021,COOPERATIVE HUMAN SERVICES INC,Health & Human Services,PURCHASED CLIENT/PROGRAM SVCS (MM),2020-09-01 00:00:00,2021-01-20 00:00:00,200732.79000000004,200732.79000000004
CDC ELC Testing Funding,2021,COOPERATIVE PRODUCTION INC,Health & Human Services,PURCHASED CLIENT/PROGRAM SVCS (MM),2020-09-01 00:00:00,2021-01-20 00:00:00,211244.82,211244.82
CDC ELC Testing Funding,2021,CRISIS MANAGEMENT GROUP INC,Health & Human Services,CONSULTANT SVCS (TO DEPTS) (HH),2020-12-01 00:00:00,2021-03-12 00:00:00,6883.93,6883.93
CDC ELC Testing Funding,2021,"CRYSTAL SPRINGS, INC.",Health & Human Services,PURCHASED CLIENT/PROGRAM SVCS (MM),2020-09-01 00:00:00,2021-02-03 00:00:00,322685.9700000001,322685.9700000001
CDC ELC Testing Funding,2021,CUTCHINS PROGRAMS,Health & Human Services,PURCHASED CLIENT/PROGRAM SVCS (MM),2020-10-01 00:00:00,2020-12-23 00:00:00,52069.11,52069.11
CDC ELC Testing Funding,2021,DATABANK IMX LLC,Health & Human Services,OPERATIONAL SERVICES (JJ),2021-06-30 00:00:00,2021-06-30 00:00:00,80130.6,80130.6
CDC ELC Testing Funding,2021,DELTA PROJECTS INC,Health & Human Services,PURCHASED CLIENT/PROGRAM SVCS (MM),2020-09-01 00:00:00,2021-01-20 00:00:00,191700.47999999998,191700.47999999998
CDC ELC Testing Funding,2021,DOCTOR FRANKLIN PERKINS SCHOOL,Health & Human Services,PURCHASED CLIENT/PROGRAM SVCS (MM),2020-09-01 00:00:00,2021-01-20 00:00:00,167222.72999999998,167222.72999999998
CDC ELC Testing Funding,2021,DRX NATICK PC,Health & Human Services,OPERATIONAL SERVICES (JJ),2020-07-10 00:00:00,2021-04-20 00:00:00,7692355.8500000015,7692355.8500000015
CDC ELC Testing Funding,2021,DRX UC WORCESTER PC,Health & Human Services,OPERATIONAL SERVICES (JJ),2020-07-27 00:00:00,2020-10-31 00:00:00,207748.57000000004,207748.57000000004
CDC ELC Testing Funding,2021,EASTERN MIDDLESEX ALCOHOLISM S,Health & Human Services,PURCHASED CLIENT/PROGRAM SVCS (MM),2020-09-01 00:00:00,2021-01-06 00:00:00,20221.5,20221.5
CDC ELC Testing Funding,2021,ELIOT COMMUNITY HUMAN SRVCS,Health & Human Services,PURCHASED CLIENT/PROGRAM SVCS (MM),2020-09-01 00:00:00,2021-01-20 00:00:00,741934.5,741934.5
CDC ELC Testing Funding,2021,ELIZABETH FREEMAN CTR,Health & Human Services,PURCHASED CLIENT/PROGRAM SVCS (MM),2020-09-01 00:00:00,2021-01-20 00:00:00,5155.949999999999,5155.949999999999
CDC ELC Testing Funding,2021,EVERGREEN CENTER INC,Health & Human Services,PURCHASED CLIENT/PROGRAM SVCS (MM),2020-09-01 00:00:00,2021-01-20 00:00:00,214537.40999999997,214537.40999999997
CDC ELC Testing Funding,2021,EVERLY WELL INC,Health & Human Services,PURCHASED CLIENT/PROGRAM SVCS (MM),2020-09-30 00:00:00,2020-12-31 00:00:00,3597000,3597000
CDC ELC Testing Funding,2021,FALL RIVER DEACONESS HOME,Health & Human Services,PURCHASED CLIENT/PROGRAM SVCS (MM),2020-10-01 00:00:00,2021-01-20 00:00:00,71640.32999999999,71640.32999999999
CDC ELC Testing Funding,2021,FALLON SERVICE LLC,Health & Human Services,OPERATIONAL SERVICES (JJ),2020-07-18 00:00:00,2020-11-30 00:00:00,49151634.83999999,49151634.83999999
CDC ELC Testing Funding,2021,FALLON SERVICE LLC,Health & Human Services,PURCHASED CLIENT/PROGRAM SVCS (MM),2020-12-01 00:00:00,2021-06-30 00:00:00,18061546.12,18061546.12
CDC ELC Testing Funding,2021,FELLOWSHIP HEALTHRESOURCES,Health & Human Services,PURCHASED CLIENT/PROGRAM SVCS (MM),2020-10-29 00:00:00,2021-01-06 00:00:00,28511.160000000007,28511.160000000007
CDC ELC Testing Funding,2021,FENWAY COMMUNITY HEALTH CTR,Health & Human Services,PURCHASED CLIENT/PROGRAM SVCS (MM),2020-07-01 00:00:00,2020-09-30 00:00:00,140485.77,140485.77
CDC ELC Testing Funding,2021,FIA CARD SERVICES N A,Health & Human Services,ADMINISTRATIVE EXPENSES (EE),2020-12-28 00:00:00,2021-02-04 00:00:00,25,25
CDC ELC Testing Funding,2021,FISHER SCIENTIFIC COMPANY LLC,Health & Human Services,EQUIPMENT LEASE-MAINTAIN/REPAR (LL),2020-09-01 00:00:00,2021-03-30 00:00:00,27616.36,27616.36
CDC ELC Testing Funding,2021,FISHER SCIENTIFIC COMPANY LLC,Health & Human Services,EQUIPMENT PURCHASE (KK),2020-12-03 00:00:00,2021-06-29 00:00:00,393876.56,393876.56000000006
CDC ELC Testing Funding,2021,FISHER SCIENTIFIC COMPANY LLC,Health & Human Services,FACILITY OPERATIONAL EXPENSES (FF),2020-07-24 00:00:00,2021-06-30 00:00:00,479092.53,479092.53
CDC ELC Testing Funding,2021,FREDERIC L CHAMBERLAIN CTR INC,Health & Human Services,PURCHASED CLIENT/PROGRAM SVCS (MM),2020-09-01 00:00:00,2020-12-23 00:00:00,44667.86,44667.86
CDC ELC Testing Funding,2021,FUTURE TECHNOLOGIES GROUP LLC,Health & Human Services,IT Non-Payroll Expenses (UU),2020-09-30 00:00:00,2020-09-30 00:00:00,2455.07,2455.07
CDC ELC Testing Funding,2021,GAAMHA INCORPORATED,Health & Human Services,PURCHASED CLIENT/PROGRAM SVCS (MM),2020-09-01 00:00:00,2020-12-09 00:00:00,7294.83,7294.83
CDC ELC Testing Funding,2021,GANDARA MENTAL HEALTH CENTER INC,Health & Human Services,PURCHASED CLIENT/PROGRAM SVCS (MM),2020-09-01 00:00:00,2021-01-20 00:00:00,208647.37,208647.37
CDC ELC Testing Funding,2021,GAVIN FOUNDATION INC,Health & Human Services,PURCHASED CLIENT/PROGRAM SVCS (MM),2020-10-01 00:00:00,2020-12-23 00:00:00,66807.93,66807.93
CDC ELC Testing Funding,2021,"GINKGO BIOWORKS, INC.",Health & Human Services,PURCHASED CLIENT/PROGRAM SVCS (MM),2021-05-03 00:00:00,2021-05-30 00:00:00,1250540.4,1250540.4
CDC ELC Testing Funding,2021,"GOSNOLD, INC.",Health & Human Services,PURCHASED CLIENT/PROGRAM SVCS (MM),2020-09-01 00:00:00,2021-02-03 00:00:00,156340.16000000003,156340.16000000003
CDC ELC Testing Funding,2021,GOVERNMENT SCIENTIFIC SOURCE,Health & Human Services,EQUIPMENT PURCHASE (KK),2020-11-23 00:00:00,2020-11-23 00:00:00,66194.5,66194.5
CDC ELC Testing Funding,2021,GOVERNMENT SCIENTIFIC SOURCE,Health & Human Services,FACILITY OPERATIONAL EXPENSES (FF),2020-07-07 00:00:00,2021-06-23 00:00:00,15602.770000000002,15602.770000000002
CDC ELC Testing Funding,2021,GREATER LAWRENCE FAMILY HEALTH CENTER,Health & Human Services,PURCHASED CLIENT/PROGRAM SVCS (MM),2020-07-01 00:00:00,2021-06-30 00:00:00,389887.1099999999,389887.1099999999
CDC ELC Testing Funding,2021,GREATER NEW BEDFORD COMMUNITY,Health & Human Services,OPERATIONAL SERVICES (JJ),2020-07-10 00:00:00,2021-01-31 00:00:00,773431.47,773431.47
CDC ELC Testing Funding,2021,GROWTHWAYS INC,Health & Human Services,PURCHASED CLIENT/PROGRAM SVCS (MM),2020-09-01 00:00:00,2021-01-20 00:00:00,74692.68,74692.68
CDC ELC Testing Funding,2021,"GUIDEWIRE, INC.",Health & Human Services,PURCHASED CLIENT/PROGRAM SVCS (MM),2020-09-01 00:00:00,2021-01-20 00:00:00,276982.74,276982.74
CDC ELC Testing Funding,2021,"HEALING ABUSED WORKING FOR CHANGE, INC.",Health & Human Services,PURCHASED CLIENT/PROGRAM SVCS (MM),2020-10-15 00:00:00,2021-01-06 00:00:00,5074.02,5074.02
CDC ELC Testing Funding,2021,"HEALTH INNOVATIONS, INC",Health & Human Services,PURCHASED CLIENT/PROGRAM SVCS (MM),2020-07-01 00:00:00,2021-06-30 00:00:00,627422,627422
CDC ELC Testing Funding,2021,HEALTHFIRST FAMILY CARE,Health & Human Services,OPERATIONAL SERVICES (JJ),2020-07-10 00:00:00,2020-11-02 00:00:00,281326.5,281326.5
CDC ELC Testing Funding,2021,HIGH POINT TREATMENT CTR INC,Health & Human Services,PURCHASED CLIENT/PROGRAM SVCS (MM),2020-09-01 00:00:00,2021-01-20 00:00:00,404164.29000000004,404164.29000000004
CDC ELC Testing Funding,2021,HILLCREST EDUCATIONAL CTRS INC,Health & Human Services,PURCHASED CLIENT/PROGRAM SVCS (MM),2020-09-01 00:00:00,2021-01-20 00:00:00,291789.47000000003,291789.47000000003
CDC ELC Testing Funding,2021,HOME FOR LITTLE WANDERERS INC,Health & Human Services,PURCHASED CLIENT/PROGRAM SVCS (MM),2020-09-01 00:00:00,2021-01-20 00:00:00,207027.10000000003,207027.10000000003
CDC ELC Testing Funding,2021,HOPE HOUSE INC,Health & Human Services,PURCHASED CLIENT/PROGRAM SVCS (MM),2020-09-01 00:00:00,2021-01-20 00:00:00,79905.18999999999,79905.18999999999
CDC ELC Testing Funding,2021,HOPEWELL INC,Health & Human Services,PURCHASED CLIENT/PROGRAM SVCS (MM),2020-09-01 00:00:00,2021-01-20 00:00:00,21927.17,21927.17
CDC ELC Testing Funding,2021,HORACE MANN EDUCATIONAL,Health & Human Services,PURCHASED CLIENT/PROGRAM SVCS (MM),2020-09-01 00:00:00,2021-01-20 00:00:00,170677.40999999997,170677.40999999997
CDC ELC Testing Funding,2021,HOUSING ASSISTANCE CORP,Health & Human Services,PURCHASED CLIENT/PROGRAM SVCS (MM),2020-09-01 00:00:00,2020-12-23 00:00:00,12752.089999999998,12752.089999999998
CDC ELC Testing Funding,2021,HUMAN SERVICE OPTIONS INC,Health & Human Services,PURCHASED CLIENT/PROGRAM SVCS (MM),2020-10-01 00:00:00,2021-01-20 00:00:00,115977.59999999996,115977.59999999996
CDC ELC Testing Funding,2021,ILLUMINA INC,Health & Human Services,FACILITY OPERATIONAL EXPENSES (FF),2020-09-30 00:00:00,2021-06-04 00:00:00,366198.3299999999,366198.3299999999
CDC ELC Testing Funding,2021,INCOMPASS HUMAN SERVICES,Health & Human Services,PURCHASED CLIENT/PROGRAM SVCS (MM),2020-12-09 00:00:00,2021-01-20 00:00:00,80459.46,80459.46
CDC ELC Testing Funding,2021,INDEPENDENCE HOUSE INC,Health & Human Services,PURCHASED CLIENT/PROGRAM SVCS (MM),2020-09-01 00:00:00,2020-10-14 00:00:00,280.81,280.81
CDC ELC Testing Funding,2021,Indirect Costs,Health & Human Services,ADMINISTRATIVE EXPENSES (EE),,,227870.41999999995,227870.41999999995
CDC ELC Testing Funding,2021,INSTITUTE OF PROFESSIONAL,Health & Human Services,PURCHASED CLIENT/PROGRAM SVCS (MM),2020-09-01 00:00:00,2021-01-06 00:00:00,83650.52,83650.52
CDC ELC Testing Funding,2021,Interaccount transfer,Health & Human Services,CONSULTANT SVCS (TO DEPTS) (HH),2020-05-30 00:00:00,2021-03-22 00:00:00,7210544.49,7210544.49
CDC ELC Testing Funding,2021,Interaccount transfer,Health & Human Services,EQUIPMENT LEASE-MAINTAIN/REPAR (LL),2020-10-20 00:00:00,2021-05-28 00:00:00,-46502.86,-46502.86
CDC ELC Testing Funding,2021,Interaccount transfer,Health & Human Services,STATE AID/POL SUB (PP),2021-04-22 00:00:00,2021-08-13 00:00:00,99887710,99887710
CDC ELC Testing Funding,2021,INTERPRETERS & TRANSLATORS INC,Health & Human Services,PURCHASED CLIENT/PROGRAM SVCS (MM),2020-12-10 00:00:00,2021-06-30 00:00:00,5042.9999999999945,5043.000000000001
CDC ELC Testing Funding,2021,IT CONSOLIDATION SERVICES EHS,Health & Human Services,ADMINISTRATIVE EXPENSES (EE),2020-07-01 00:00:00,2021-06-30 00:00:00,1358396.44,1358396.44
CDC ELC Testing Funding,2021,ITALIAN HOME FOR CHILDREN,Health & Human Services,PURCHASED CLIENT/PROGRAM SVCS (MM),2020-09-01 00:00:00,2021-01-20 00:00:00,109779.59,109779.59
CDC ELC Testing Funding,2021,JEREMIAHS HOSPICE INC,Health & Human Services,PURCHASED CLIENT/PROGRAM SVCS (MM),2020-09-01 00:00:00,2021-01-20 00:00:00,24533.090000000004,24533.090000000004
CDC ELC Testing Funding,2021,JEWISH FAMILY AND CHILDRENS,Health & Human Services,PURCHASED CLIENT/PROGRAM SVCS (MM),2020-09-01 00:00:00,2021-01-20 00:00:00,32651.44,32651.44
CDC ELC Testing Funding,2021,JJRCONSULTING LLC,Health & Human Services,CONSULTANT SVCS (TO DEPTS) (HH),2021-02-01 00:00:00,2021-06-30 00:00:00,102647.79000000004,102647.79000000004
CDC ELC Testing Funding,2021,JOHN ASHFORD LINK HOUSE INC,Health & Human Services,PURCHASED CLIENT/PROGRAM SVCS (MM),2020-09-01 00:00:00,2021-01-20 00:00:00,13473.18,13473.18
CDC ELC Testing Funding,2021,JSI RESEARCH & TRAINING INSTITUTE INC,Health & Human Services,CONSULTANT SVCS (TO DEPTS) (HH),2020-10-01 00:00:00,2021-03-31 00:00:00,132388.22999999995,132388.23000000004
CDC ELC Testing Funding,2021,JSI RESEARCH & TRAINING INSTITUTE INC,Health & Human Services,PURCHASED CLIENT/PROGRAM SVCS (MM),2020-08-01 00:00:00,2021-06-30 00:00:00,62100,62100
CDC ELC Testing Funding,2021,JUDGE ROTENBERG EDUCATIONAL,Health & Human Services,PURCHASED CLIENT/PROGRAM SVCS (MM),2020-09-01 00:00:00,2021-01-20 00:00:00,439415.17999999993,439415.17999999993
CDC ELC Testing Funding,2021,JUSTICE RESOURCE INSTITUTE INC,Health & Human Services,PURCHASED CLIENT/PROGRAM SVCS (MM),2020-09-01 00:00:00,2021-01-20 00:00:00,884594.9299999999,884594.9299999999
CDC ELC Testing Funding,2021,KENNEDY-DONOVAN CENTER INC,Health & Human Services,PURCHASED CLIENT/PROGRAM SVCS (MM),2020-09-01 00:00:00,2021-01-06 00:00:00,66675.87000000002,66675.87000000002
CDC ELC Testing Funding,2021,KEY PROGRAM INC,Health & Human Services,PURCHASED CLIENT/PROGRAM SVCS (MM),2020-09-01 00:00:00,2021-01-20 00:00:00,141812.34000000003,141812.34000000003
CDC ELC Testing Funding,2021,L U K CRISIS CENTER INC,Health & Human Services,PURCHASED CLIENT/PROGRAM SVCS (MM),2020-09-01 00:00:00,2021-01-20 00:00:00,45438.14,45438.14
CDC ELC Testing Funding,2021,LANGUAGE LINE SERVICES INC,Health & Human Services,PURCHASED CLIENT/PROGRAM SVCS (MM),2021-01-01 00:00:00,2021-06-30 00:00:00,6852.349999999982,6852.35
CDC ELC Testing Funding,2021,"L'ARCHE BOSTON NORTH, INC.",Health & Human Services,PURCHASED CLIENT/PROGRAM SVCS (MM),2020-09-01 00:00:00,2021-01-20 00:00:00,64401.509999999995,64401.509999999995
CDC ELC Testing Funding,2021,LATHAM CENTERS INC,Health & Human Services,PURCHASED CLIENT/PROGRAM SVCS (MM),2020-09-01 00:00:00,2021-01-20 00:00:00,178249.57,178249.57
CDC ELC Testing Funding,2021,LAWRENCE GENERAL HOSPITAL INC,Health & Human Services,OPERATIONAL SERVICES (JJ),2020-07-08 00:00:00,2021-06-30 00:00:00,28220510.429999996,28220510.429999996
CDC ELC Testing Funding,2021,LEAGUE SCHOOL OF GREATER,Health & Human Services,PURCHASED CLIENT/PROGRAM SVCS (MM),2020-09-01 00:00:00,2021-01-20 00:00:00,141980.59000000003,141980.59000000003
CDC ELC Testing Funding,2021,LEDGES SCHOOL & RESIDENT INC,Health & Human Services,PURCHASED CLIENT/PROGRAM SVCS (MM),2020-10-15 00:00:00,2021-01-20 00:00:00,41921.07000000001,41921.07000000001
CDC ELC Testing Funding,2021,LIFE SKILLS INC,Health & Human Services,PURCHASED CLIENT/PROGRAM SVCS (MM),2020-09-01 00:00:00,2021-01-20 00:00:00,122513.22000000002,122513.22000000002
CDC ELC Testing Funding,2021,LIFE TECHNOLOGIES CORPORATION,Health & Human Services,EQUIPMENT LEASE-MAINTAIN/REPAR (LL),2020-08-14 00:00:00,2021-08-13 00:00:00,29918.5,29918.5
CDC ELC Testing Funding,2021,LIFE TECHNOLOGIES CORPORATION,Health & Human Services,FACILITY OPERATIONAL EXPENSES (FF),2021-01-04 00:00:00,2021-05-10 00:00:00,7522.209999999999,7522.209999999999
CDC ELC Testing Funding,2021,LIFELINKS INC,Health & Human Services,PURCHASED CLIENT/PROGRAM SVCS (MM),2020-09-01 00:00:00,2020-12-09 00:00:00,96212.26999999999,96212.26999999999
CDC ELC Testing Funding,2021,LIFESTREAM INCORPORATED,Health & Human Services,PURCHASED CLIENT/PROGRAM SVCS (MM),2020-09-01 00:00:00,2021-01-20 00:00:00,426178.97000000003,426178.97000000003
CDC ELC Testing Funding,2021,LIFEWORKS INC,Health & Human Services,PURCHASED CLIENT/PROGRAM SVCS (MM),2020-09-01 00:00:00,2021-01-20 00:00:00,187339.22999999998,187339.22999999998
CDC ELC Testing Funding,2021,LIONBRIDGE TECHNOLOGIES LLC,Health & Human Services,PURCHASED CLIENT/PROGRAM SVCS (MM),,,-1040.13,0
CDC ELC Testing Funding,2021,"LIONBRIDGE TECHNOLOGIES,INC",Health & Human Services,PURCHASED CLIENT/PROGRAM SVCS (MM),,,1040.13,0
CDC ELC Testing Funding,2021,LIVING INDEPENDENTLY FOREVER,Health & Human Services,PURCHASED CLIENT/PROGRAM SVCS (MM),2020-09-01 00:00:00,2021-01-20 00:00:00,130631.19999999998,130631.19999999998
CDC ELC Testing Funding,2021,LOWELL COMMUNITY HEALTH CENTER INC,Health & Human Services,OPERATIONAL SERVICES (JJ),2020-07-11 00:00:00,2020-09-16 00:00:00,913661.8999999999,913661.8999999999
CDC ELC Testing Funding,2021,LOWELL COMMUNITY HEALTH CENTER INC,Health & Human Services,PURCHASED CLIENT/PROGRAM SVCS (MM),2020-07-01 00:00:00,2020-08-31 00:00:00,96742.45999999999,96742.45999999999
CDC ELC Testing Funding,2021,LOWELL HOUSE INC,Health & Human Services,PURCHASED CLIENT/PROGRAM SVCS (MM),2020-09-01 00:00:00,2020-12-23 00:00:00,46405.33,46405.33
CDC ELC Testing Funding,2021,LYNN COMMUNITY HEALTH INC,Health & Human Services,OPERATIONAL SERVICES (JJ),2020-07-10 00:00:00,2021-06-30 00:00:00,4873007.789999999,4873007.789999999
CDC ELC Testing Funding,2021,M O L I F E INC,Health & Human Services,PURCHASED CLIENT/PROGRAM SVCS (MM),2020-10-15 00:00:00,2020-12-23 00:00:00,6765.359999999999,6765.359999999999
CDC ELC Testing Funding,2021,MAB COMMUNITY SERVICES INC,Health & Human Services,PURCHASED CLIENT/PROGRAM SVCS (MM),2020-09-01 00:00:00,2021-01-20 00:00:00,307517.69,307517.69
CDC ELC Testing Funding,2021,MANET COMMUNITY HEALTH CENTER,Health & Human Services,PURCHASED CLIENT/PROGRAM SVCS (MM),2020-08-01 00:00:00,2020-09-10 00:00:00,95368.95999999999,95368.95999999999
CDC ELC Testing Funding,2021,MAPLEWOOD AT NORUMBEGA POINT,Health & Human Services,BENEFIT PROGRAMS (RR),2020-10-22 00:00:00,2021-02-11 00:00:00,54000,54000
CDC ELC Testing Funding,2021,MARLBORO HOSPITAL,Health & Human Services,OPERATIONAL SERVICES (JJ),2020-07-10 00:00:00,2021-06-29 00:00:00,4219794.05,4219794.05
CDC ELC Testing Funding,2021,MASSACHUSETTS GENERAL HOSPITAL,Health & Human Services,OPERATIONAL SERVICES (JJ),2020-06-17 00:00:00,2021-03-31 00:00:00,1074090.15,1074090.15
CDC ELC Testing Funding,2021,MCAULEY NAZARETH HOME,Health & Human Services,PURCHASED CLIENT/PROGRAM SVCS (MM),2020-09-01 00:00:00,2020-12-23 00:00:00,40150.350000000006,40150.350000000006
CDC ELC Testing Funding,2021,MCINNIS CONSULTING SERVICES,Health & Human Services,IT Non-Payroll Expenses (UU),2020-09-29 00:00:00,2021-06-19 00:00:00,109454.62,109454.62000000001
CDC ELC Testing Funding,2021,MCKINSEY & COMPANY INC WASHINGTON DC,Health & Human Services,CONSULTANT SVCS (TO DEPTS) (HH),2021-01-26 00:00:00,2021-05-28 00:00:00,10269725.59,10269725.590000002
CDC ELC Testing Funding,2021,"MED BAR, LLC",Health & Human Services,PURCHASED CLIENT/PROGRAM SVCS (MM),2021-04-16 00:00:00,2021-04-27 00:00:00,3829.97,3829.97
CDC ELC Testing Funding,2021,MELMARK HOME INC,Health & Human Services,PURCHASED CLIENT/PROGRAM SVCS (MM),2020-09-01 00:00:00,2021-01-20 00:00:00,239078.36999999997,239078.36999999997
CDC ELC Testing Funding,2021,MENTAL HEALTH ASSOCIATION INC,Health & Human Services,PURCHASED CLIENT/PROGRAM SVCS (MM),2020-09-01 00:00:00,2021-01-20 00:00:00,279244.99,279244.99
CDC ELC Testing Funding,2021,"MENTOR ABI, LLC",Health & Human Services,PURCHASED CLIENT/PROGRAM SVCS (MM),2020-09-01 00:00:00,2020-12-09 00:00:00,82822.82,82822.82
CDC ELC Testing Funding,2021,MIDDLESEX HUMAN SERVICE AGENCY INC,Health & Human Services,PURCHASED CLIENT/PROGRAM SVCS (MM),2020-09-01 00:00:00,2021-01-20 00:00:00,64223.94,64223.94
CDC ELC Testing Funding,2021,MINUTE MAN ARC FOR HUMAN,Health & Human Services,PURCHASED CLIENT/PROGRAM SVCS (MM),2020-10-01 00:00:00,2021-01-20 00:00:00,51465.05999999998,51465.05999999998
CDC ELC Testing Funding,2021,MOTION RECRUITMENT PARTNERS LLC,Health & Human Services,OPERATIONAL SERVICES (JJ),2021-01-03 00:00:00,2021-06-30 00:00:00,324240.52000000025,324240.5200000001
CDC ELC Testing Funding,2021,MULTICULTURAL COMMUNITY SERS,Health & Human Services,PURCHASED CLIENT/PROGRAM SVCS (MM),2020-09-01 00:00:00,2021-02-03 00:00:00,140922.63,140922.63
CDC ELC Testing Funding,2021,MVNE 1 P.C.,Health & Human Services,OPERATIONAL SERVICES (JJ),2020-07-30 00:00:00,2020-10-31 00:00:00,239488.19999999995,239488.19999999995
CDC ELC Testing Funding,2021,NANTUCKET COTTAGE HOSPITAL,Health & Human Services,OPERATIONAL SERVICES (JJ),2020-10-15 00:00:00,2021-06-30 00:00:00,1283137.33,1283137.33
CDC ELC Testing Funding,2021,NEMASKET GROUP,Health & Human Services,PURCHASED CLIENT/PROGRAM SVCS (MM),2020-09-01 00:00:00,2021-01-20 00:00:00,27504.060000000005,27504.060000000005
CDC ELC Testing Funding,2021,NEW ENGLAND AFTERCARE,Health & Human Services,PURCHASED CLIENT/PROGRAM SVCS (MM),2020-09-01 00:00:00,2021-01-20 00:00:00,18008.54,18008.54
CDC ELC Testing Funding,2021,NEW ENGLAND CENTER FOR CHILDREN INC,Health & Human Services,PURCHASED CLIENT/PROGRAM SVCS (MM),2020-09-01 00:00:00,2021-01-20 00:00:00,830699.96,830699.96
CDC ELC Testing Funding,2021,NEW ENGLAND VILLAGES INC,Health & Human Services,PURCHASED CLIENT/PROGRAM SVCS (MM),2020-09-01 00:00:00,2021-01-20 00:00:00,136921.28999999998,136921.28999999998
CDC ELC Testing Funding,2021,NEW HOPE INC,Health & Human Services,PURCHASED CLIENT/PROGRAM SVCS (MM),2020-10-28 00:00:00,2020-11-11 00:00:00,120.81,120.81
CDC ELC Testing Funding,2021,NEXUS INC,Health & Human Services,PURCHASED CLIENT/PROGRAM SVCS (MM),2020-09-01 00:00:00,2021-01-20 00:00:00,45747.17,45747.17
CDC ELC Testing Funding,2021,"NFI MASSACHUSETTS, INC.",Health & Human Services,PURCHASED CLIENT/PROGRAM SVCS (MM),2020-09-01 00:00:00,2021-01-20 00:00:00,170985.34000000003,170985.34000000003
CDC ELC Testing Funding,2021,NORTH COTTAGE PROGRAM,Health & Human Services,PURCHASED CLIENT/PROGRAM SVCS (MM),2020-09-01 00:00:00,2021-01-20 00:00:00,63594.08000000001,63594.08000000001
CDC ELC Testing Funding,2021,NORTH SUFFOLK MENTAL,Health & Human Services,PURCHASED CLIENT/PROGRAM SVCS (MM),2020-09-01 00:00:00,2021-01-20 00:00:00,354903.20999999996,354903.20999999996
CDC ELC Testing Funding,2021,"NORTHEAST ARC, INC.",Health & Human Services,PURCHASED CLIENT/PROGRAM SVCS (MM),2020-09-01 00:00:00,2021-01-20 00:00:00,273685.27999999997,273685.27999999997
CDC ELC Testing Funding,2021,NORTHEAST BEHAVIORAL HEALTH,Health & Human Services,PURCHASED CLIENT/PROGRAM SVCS (MM),2020-09-01 00:00:00,2021-01-20 00:00:00,340982.94999999995,340982.94999999995
CDC ELC Testing Funding,2021,NORTHEAST CTR YOUTH & FAMILIES,Health & Human Services,PURCHASED CLIENT/PROGRAM SVCS (MM),2020-09-01 00:00:00,2020-12-23 00:00:00,18905.58,18905.58
CDC ELC Testing Funding,2021,NORTHEAST ED.&DEVELOP.SUPPORT CTR,Health & Human Services,PURCHASED CLIENT/PROGRAM SVCS (MM),2020-09-01 00:00:00,2021-01-20 00:00:00,148570.74,148570.74
CDC ELC Testing Funding,2021,"NU PATH, INC",Health & Human Services,PURCHASED CLIENT/PROGRAM SVCS (MM),2020-09-01 00:00:00,2021-01-20 00:00:00,280007.10000000003,280007.10000000003
CDC ELC Testing Funding,2021,OLD COLONY YMCA INC,Health & Human Services,PURCHASED CLIENT/PROGRAM SVCS (MM),2020-09-01 00:00:00,2021-01-20 00:00:00,87396.81,87396.81
CDC ELC Testing Funding,2021,"PATHLIGHT, INC",Health & Human Services,PURCHASED CLIENT/PROGRAM SVCS (MM),2020-09-01 00:00:00,2021-01-20 00:00:00,172555.05,172555.05
CDC ELC Testing Funding,2021,"PATHWAY TO POSSIBLE, INC",Health & Human Services,PURCHASED CLIENT/PROGRAM SVCS (MM),2020-09-01 00:00:00,2021-01-20 00:00:00,59104.350000000006,59104.350000000006
CDC ELC Testing Funding,2021,"PATRIOT URGENT CARE PROFESSIONALS, P.C.",Health & Human Services,OPERATIONAL SERVICES (JJ),2020-07-27 00:00:00,2020-11-30 00:00:00,921768.45,921768.45
CDC ELC Testing Funding,2021,"Payees under $50,000",Health & Human Services,ADMINISTRATIVE EXPENSES (EE),2021-05-01 00:00:00,2021-06-30 00:00:00,4595,4595
CDC ELC Testing Funding,2021,"Payees under $50,000",Health & Human Services,BENEFIT PROGRAMS (RR),2020-09-26 00:00:00,2021-01-14 00:00:00,399760,399760
CDC ELC Testing Funding,2021,"Payees under $50,000",Health & Human Services,EQUIPMENT PURCHASE (KK),2020-11-13 00:00:00,2020-11-16 00:00:00,730.6,730.6
CDC ELC Testing Funding,2021,"Payees under $50,000",Health & Human Services,FACILITY OPERATIONAL EXPENSES (FF),2020-10-14 00:00:00,2021-04-14 00:00:00,7951.6,7951.6
CDC ELC Testing Funding,2021,"Payees under $50,000",Health & Human Services,INFRASTRUCTURE: (NN),2020-12-11 00:00:00,2021-03-18 00:00:00,1291.85,1291.85
CDC ELC Testing Funding,2021,"Payees under $50,000",Health & Human Services,OPERATIONAL SERVICES (JJ),2020-08-20 00:00:00,2021-06-30 00:00:00,31333.97,31333.97
CDC ELC Testing Funding,2021,"Payees under $50,000",Health & Human Services,PURCHASED CLIENT/PROGRAM SVCS (MM),2020-07-01 00:00:00,2021-04-08 00:00:00,154197.17,154197.16999999998
CDC ELC Testing Funding,2021,Payroll and other payments to individuals,Health & Human Services,PENSION & INSURANCE RELATED EX (DD),,,578789.1900000004,578789.1900000004
CDC ELC Testing Funding,2021,Payroll and other payments to individuals,Health & Human Services,REGULAR EMPLOYEE COMPENSATION (AA),2020-08-18 00:00:00,2021-08-03 00:00:00,1787377.8299999996,1787377.8299999996
CDC ELC Testing Funding,2021,PEOPLE INCORPORATED,Health & Human Services,PURCHASED CLIENT/PROGRAM SVCS (MM),2020-09-01 00:00:00,2021-01-20 00:00:00,325912.1499999999,325912.1499999999
CDC ELC Testing Funding,2021,PERKINS SCHOOL FOR THE BLIND,Health & Human Services,PURCHASED CLIENT/PROGRAM SVCS (MM),2020-09-01 00:00:00,2021-01-20 00:00:00,299854.8400000001,299854.8400000001
CDC ELC Testing Funding,2021,PHOENIX HOUSES OF NE INC,Health & Human Services,PURCHASED CLIENT/PROGRAM SVCS (MM),2020-09-01 00:00:00,2020-10-28 00:00:00,7908.35,7908.35
CDC ELC Testing Funding,2021,PINE STREET INN INC,Health & Human Services,PURCHASED CLIENT/PROGRAM SVCS (MM),2020-09-01 00:00:00,2021-01-20 00:00:00,51598.89,51598.89
CDC ELC Testing Funding,2021,PIXEL BY LAB CORP,Health & Human Services,OPERATIONAL SERVICES (JJ),2021-02-24 00:00:00,2021-06-30 00:00:00,120536,120536
CDC ELC Testing Funding,2021,PRO EMS SOLUTIONS INC,Health & Human Services,OPERATIONAL SERVICES (JJ),2020-08-03 00:00:00,2021-01-15 00:00:00,282855,282855
CDC ELC Testing Funding,2021,PROFESSIONAL STAFFING GROUP,Health & Human Services,PURCHASED CLIENT/PROGRAM SVCS (MM),2021-01-02 00:00:00,2021-06-30 00:00:00,49877.96000000002,49877.96000000002
CDC ELC Testing Funding,2021,PROJECT BEACON COVID-19 LLC,Health & Human Services,IT Non-Payroll Expenses (UU),2020-12-11 00:00:00,2020-12-11 00:00:00,250000,250000
CDC ELC Testing Funding,2021,PROJECT BEACON COVID-19 LLC,Health & Human Services,OPERATIONAL SERVICES (JJ),2020-10-15 00:00:00,2021-06-30 00:00:00,29537991.480000004,29537991.480000004
CDC ELC Testing Funding,2021,PROJECT BEACON COVID-19 LLC,Health & Human Services,PURCHASED CLIENT/PROGRAM SVCS (MM),2021-03-01 00:00:00,2021-03-31 00:00:00,421941.1599999999,421941.16000000003
CDC ELC Testing Funding,2021,REACH INC,Health & Human Services,PURCHASED CLIENT/PROGRAM SVCS (MM),2020-09-01 00:00:00,2021-01-20 00:00:00,80695.5,80695.5
CDC ELC Testing Funding,2021,REHABILITATION   AND HEALTH,Health & Human Services,PURCHASED CLIENT/PROGRAM SVCS (MM),2020-10-15 00:00:00,2020-12-23 00:00:00,5678.07,5678.07
CDC ELC Testing Funding,2021,RETRO FIT TECHNOLOGIES INC,Health & Human Services,ADMINISTRATIVE EXPENSES (EE),2020-10-07 00:00:00,2020-11-04 00:00:00,13971.05,13971.05
CDC ELC Testing Funding,2021,RETRO FIT TECHNOLOGIES INC,Health & Human Services,IT Non-Payroll Expenses (UU),2020-09-29 00:00:00,2021-06-30 00:00:00,7941.53,7941.53
CDC ELC Testing Funding,2021,RFK CHILDRENS ACTION CORP INC,Health & Human Services,PURCHASED CLIENT/PROGRAM SVCS (MM),2020-09-01 00:00:00,2021-01-20 00:00:00,85358.84999999998,85358.84999999998
CDC ELC Testing Funding,2021,RIVERBROOK RESIDENCE INC,Health & Human Services,PURCHASED CLIENT/PROGRAM SVCS (MM),2020-09-01 00:00:00,2021-02-03 00:00:00,52528.380000000005,52528.380000000005
CDC ELC Testing Funding,2021,RIVERSIDE COMMUNITY CARE INC,Health & Human Services,PURCHASED CLIENT/PROGRAM SVCS (MM),2020-09-01 00:00:00,2021-01-20 00:00:00,332573.38,332573.38
CDC ELC Testing Funding,2021,RIVERVIEW SCHOOL INC,Health & Human Services,PURCHASED CLIENT/PROGRAM SVCS (MM),2020-09-01 00:00:00,2020-11-25 00:00:00,120477.22,120477.22
CDC ELC Testing Funding,2021,ROAD TO RESPONSIBILITY INC,Health & Human Services,PURCHASED CLIENT/PROGRAM SVCS (MM),2020-09-01 00:00:00,2021-01-20 00:00:00,421222.9099999999,421222.9099999999
CDC ELC Testing Funding,2021,ROCHE DIAGNOSTICS CORPORATION,Health & Human Services,EQUIPMENT LEASE-MAINTAIN/REPAR (LL),2021-03-16 00:00:00,2021-06-30 00:00:00,40600,40600
CDC ELC Testing Funding,2021,ROCHE DIAGNOSTICS CORPORATION,Health & Human Services,FACILITY OPERATIONAL EXPENSES (FF),2020-08-24 00:00:00,2021-04-29 00:00:00,469738.9999999999,469738.9999999999
CDC ELC Testing Funding,2021,RTD LOGISTICS LLC,Health & Human Services,OPERATIONAL SERVICES (JJ),2020-11-29 00:00:00,2021-06-30 00:00:00,89369.8900000001,89369.89
CDC ELC Testing Funding,2021,SAFE PASSAGE INC,Health & Human Services,PURCHASED CLIENT/PROGRAM SVCS (MM),2020-10-01 00:00:00,2021-01-20 00:00:00,1087.29,1087.29
CDC ELC Testing Funding,2021,"SAINT VINCENT'S SERIVCES, INC",Health & Human Services,PURCHASED CLIENT/PROGRAM SVCS (MM),2020-09-01 00:00:00,2021-01-06 00:00:00,127994.47999999997,127994.47999999997
CDC ELC Testing Funding,2021,"SEMCOA, INC.",Health & Human Services,PURCHASED CLIENT/PROGRAM SVCS (MM),2020-09-01 00:00:00,2021-01-20 00:00:00,26279.57,26279.57
CDC ELC Testing Funding,2021,SERVICENET INC,Health & Human Services,PURCHASED CLIENT/PROGRAM SVCS (MM),2020-09-01 00:00:00,2021-01-20 00:00:00,475041.04,475041.04
CDC ELC Testing Funding,2021,"SEVEN HILLS BEHAVIORAL HEALTH, INC.",Health & Human Services,PURCHASED CLIENT/PROGRAM SVCS (MM),2020-08-01 00:00:00,2021-06-30 00:00:00,460465.28,460465.28
CDC ELC Testing Funding,2021,SEVEN HILLS COMM SVS INC,Health & Human Services,PURCHASED CLIENT/PROGRAM SVCS (MM),2020-09-01 00:00:00,2021-01-20 00:00:00,789964.05,789964.05
CDC ELC Testing Funding,2021,SEVEN HILLS EXT CARE AT GROTON,Health & Human Services,PURCHASED CLIENT/PROGRAM SVCS (MM),2020-09-01 00:00:00,2021-01-20 00:00:00,22308.79,22308.79
CDC ELC Testing Funding,2021,SHI INTERNATIONAL CORP,Health & Human Services,IT Non-Payroll Expenses (UU),2020-07-01 00:00:00,2021-06-30 00:00:00,1881258.37,1881258.37
CDC ELC Testing Funding,2021,SOUTH MIDDLESEX OPPORTUNITY COUNCIL INC,Health & Human Services,PURCHASED CLIENT/PROGRAM SVCS (MM),2020-10-15 00:00:00,2021-03-22 00:00:00,1208.0999999999985,1208.0999999999985
CDC ELC Testing Funding,2021,SOUTH SHORE MENTAL HEALTH CENTER INC,Health & Human Services,PURCHASED CLIENT/PROGRAM SVCS (MM),2020-09-01 00:00:00,2021-01-20 00:00:00,124022.59,124022.59
CDC ELC Testing Funding,2021,SOUTH SHORE SUPPORT SERV INC,Health & Human Services,PURCHASED CLIENT/PROGRAM SVCS (MM),2020-09-01 00:00:00,2021-01-20 00:00:00,47368.740000000005,47368.740000000005
CDC ELC Testing Funding,2021,SOUTHCOAST HOSPITALS GROUP INC,Health & Human Services,OPERATIONAL SERVICES (JJ),2020-08-01 00:00:00,2020-11-30 00:00:00,79212.14,79212.14
CDC ELC Testing Funding,2021,SOUTHEASTERN MASSACHUSETTS EDU,Health & Human Services,PURCHASED CLIENT/PROGRAM SVCS (MM),2020-10-29 00:00:00,2021-01-20 00:00:00,19571.219999999998,19571.219999999998
CDC ELC Testing Funding,2021,SPECTRUM HEALTH SYSTEMS INC,Health & Human Services,PURCHASED CLIENT/PROGRAM SVCS (MM),2020-09-01 00:00:00,2021-01-20 00:00:00,287735.04000000004,287735.04000000004
CDC ELC Testing Funding,2021,ST ANNS HOME INC,Health & Human Services,PURCHASED CLIENT/PROGRAM SVCS (MM),2020-09-01 00:00:00,2021-01-20 00:00:00,297292.05,297292.05
CDC ELC Testing Funding,2021,STANLEY STREET TREATMENT & RESOURCES INC,Health & Human Services,OPERATIONAL SERVICES (JJ),2020-07-10 00:00:00,2020-12-11 00:00:00,2808594.7900000005,2808594.7900000005
CDC ELC Testing Funding,2021,STANLEY STREET TREATMENT & RESOURCES INC,Health & Human Services,PURCHASED CLIENT/PROGRAM SVCS (MM),2020-10-01 00:00:00,2020-10-28 00:00:00,6040.5,6040.5
CDC ELC Testing Funding,2021,STEPPINGSTONE INC,Health & Human Services,PURCHASED CLIENT/PROGRAM SVCS (MM),2020-09-01 00:00:00,2021-01-20 00:00:00,20849.21,20849.21
CDC ELC Testing Funding,2021,STETSON SCHOOL INC,Health & Human Services,PURCHASED CLIENT/PROGRAM SVCS (MM),2020-09-01 00:00:00,2021-01-20 00:00:00,134038.5,134038.5
CDC ELC Testing Funding,2021,STEVENS CHILDRENS HOME INC,Health & Human Services,PURCHASED CLIENT/PROGRAM SVCS (MM),2020-09-01 00:00:00,2021-01-20 00:00:00,72655.63,72655.63
CDC ELC Testing Funding,2021,STRATEGIC SOLUTIONS GROUP LLC,Health & Human Services,IT Non-Payroll Expenses (UU),2020-08-01 00:00:00,2021-06-30 00:00:00,895235.2200000002,895235.22
CDC ELC Testing Funding,2021,TAPESTRY HEALTH SYSTEMS INC,Health & Human Services,PURCHASED CLIENT/PROGRAM SVCS (MM),2020-07-01 00:00:00,2021-06-30 00:00:00,87306.96999999997,87306.96999999997
CDC ELC Testing Funding,2021,"TELELANGUAGE, INC",Health & Human Services,PURCHASED CLIENT/PROGRAM SVCS (MM),2020-12-01 00:00:00,2021-06-30 00:00:00,8638.489999999978,8638.49
CDC ELC Testing Funding,2021,THE ARC OF BRISTOL COUNTY,Health & Human Services,PURCHASED CLIENT/PROGRAM SVCS (MM),2020-09-01 00:00:00,2021-01-20 00:00:00,55736.149999999994,55736.149999999994
CDC ELC Testing Funding,2021,THE ARC OF OPPORTUNITY IN NO. CENT. MASS,Health & Human Services,PURCHASED CLIENT/PROGRAM SVCS (MM),2020-09-01 00:00:00,2021-01-20 00:00:00,113656.76999999999,113656.76999999999
CDC ELC Testing Funding,2021,"THE ARC OF THE SOUTH SHORE, INC.",Health & Human Services,PURCHASED CLIENT/PROGRAM SVCS (MM),2020-09-01 00:00:00,2021-01-20 00:00:00,55265.31,55265.31
CDC ELC Testing Funding,2021,THE BRIEN CENTER FOR MENTAL HEALTH,Health & Human Services,PURCHASED CLIENT/PROGRAM SVCS (MM),2020-09-01 00:00:00,2021-01-20 00:00:00,107383.20999999999,107383.20999999999
CDC ELC Testing Funding,2021,"THE CAMBRIDGE INCUBATOR, LLC",Health & Human Services,OPERATIONAL SERVICES (JJ),2021-01-08 00:00:00,2021-06-30 00:00:00,2656407.4799999995,2656407.4799999995
CDC ELC Testing Funding,2021,THE CHILDRENS STUDY HOME INC,Health & Human Services,PURCHASED CLIENT/PROGRAM SVCS (MM),2020-09-01 00:00:00,2021-01-20 00:00:00,50337.270000000004,50337.270000000004
CDC ELC Testing Funding,2021,THE DEVEREUX FOUNDATION,Health & Human Services,PURCHASED CLIENT/PROGRAM SVCS (MM),2020-09-01 00:00:00,2021-01-20 00:00:00,133688.19,133688.19
CDC ELC Testing Funding,2021,THE EDINBURG CENTER INC,Health & Human Services,PURCHASED CLIENT/PROGRAM SVCS (MM),2020-09-01 00:00:00,2021-01-20 00:00:00,203547.12,203547.12
CDC ELC Testing Funding,2021,THE GUILD FOR HUMAN SERVICES INC,Health & Human Services,PURCHASED CLIENT/PROGRAM SVCS (MM),2020-09-01 00:00:00,2021-01-20 00:00:00,493217.93,493217.93
CDC ELC Testing Funding,2021,THE LEARNING CENTER FOR THE DEAF INC,Health & Human Services,PURCHASED CLIENT/PROGRAM SVCS (MM),2020-09-01 00:00:00,2021-01-20 00:00:00,86139.06,86139.06
CDC ELC Testing Funding,2021,THE MAY INSTITUTE INC,Health & Human Services,PURCHASED CLIENT/PROGRAM SVCS (MM),2020-09-01 00:00:00,2021-02-03 00:00:00,627896.3699999999,627896.3699999999
CDC ELC Testing Funding,2021,"THE MEGAN HOUSE FOUNDATION,INC",Health & Human Services,PURCHASED CLIENT/PROGRAM SVCS (MM),2020-09-01 00:00:00,2021-01-20 00:00:00,7598.88,7598.88
CDC ELC Testing Funding,2021,"THE RIPPLES GROUP, LLC",Health & Human Services,CONSULTANT SVCS (TO DEPTS) (HH),2020-12-30 00:00:00,2021-06-30 00:00:00,274516,274516
CDC ELC Testing Funding,2021,THE UNITED ARC INC,Health & Human Services,PURCHASED CLIENT/PROGRAM SVCS (MM),2020-09-01 00:00:00,2021-01-20 00:00:00,26196.36,26196.36
CDC ELC Testing Funding,2021,THE WHITNEY ACADEMY INC,Health & Human Services,PURCHASED CLIENT/PROGRAM SVCS (MM),2020-09-01 00:00:00,2021-01-20 00:00:00,113788.28000000001,113788.28000000001
CDC ELC Testing Funding,2021,THRIVE SUPPORT & ADVOCACY,Health & Human Services,PURCHASED CLIENT/PROGRAM SVCS (MM),2020-10-01 00:00:00,2021-01-20 00:00:00,40229.73,40229.73
CDC ELC Testing Funding,2021,TOWARD INDEPENDENT LIVING &,Health & Human Services,PURCHASED CLIENT/PROGRAM SVCS (MM),2020-09-01 00:00:00,2021-01-06 00:00:00,175381.68,175381.68
CDC ELC Testing Funding,2021,TRANS MED USA INC,Health & Human Services,FACILITY OPERATIONAL EXPENSES (FF),2020-12-02 00:00:00,2020-12-02 00:00:00,623.7,623.7
CDC ELC Testing Funding,2021,TRANSITION HOUSE INC,Health & Human Services,PURCHASED CLIENT/PROGRAM SVCS (MM),2020-09-01 00:00:00,2021-01-06 00:00:00,12928.949999999997,12928.949999999997
CDC ELC Testing Funding,2021,TRIANGLE INC,Health & Human Services,PURCHASED CLIENT/PROGRAM SVCS (MM),2020-09-01 00:00:00,2021-01-20 00:00:00,52089.17,52089.17
CDC ELC Testing Funding,2021,TRUSTEES OF BOSTON UNIVERSITY,Health & Human Services,ADMINISTRATIVE EXPENSES (EE),2021-05-24 00:00:00,2021-05-24 00:00:00,3900,3900
CDC ELC Testing Funding,2021,TRUSTEES OF BOSTON UNIVERSITY,Health & Human Services,PURCHASED CLIENT/PROGRAM SVCS (MM),2021-01-12 00:00:00,2021-06-30 00:00:00,49620.05999999999,49620.060000000005
CDC ELC Testing Funding,2021,TURNING POINT INC,Health & Human Services,PURCHASED CLIENT/PROGRAM SVCS (MM),2020-09-01 00:00:00,2021-01-20 00:00:00,234644.47000000003,234644.47000000003
CDC ELC Testing Funding,2021,UMASS MEMORIAL HEALTH CARE INC,Health & Human Services,OPERATIONAL SERVICES (JJ),2020-09-01 00:00:00,2021-06-28 00:00:00,1052738.19,1052738.19
CDC ELC Testing Funding,2021,UMASS MEMORIAL MEDICAL CENTER INC,Health & Human Services,OPERATIONAL SERVICES (JJ),2020-08-03 00:00:00,2021-05-27 00:00:00,13576239.809999999,13576239.809999999
CDC ELC Testing Funding,2021,UNITED CEREBAL PALSEY ASSOC OF METROBOST,Health & Human Services,PURCHASED CLIENT/PROGRAM SVCS (MM),2020-09-01 00:00:00,2021-01-20 00:00:00,68398.59999999998,68398.59999999998
CDC ELC Testing Funding,2021,UNIVERSITY OF MASS,Health & Human Services,CONSULTANT SVCS (TO DEPTS) (HH),2021-02-16 00:00:00,2021-06-30 00:00:00,599856,599856
CDC ELC Testing Funding,2021,UNIVERSITY OF MASS,Health & Human Services,PURCHASED CLIENT/PROGRAM SVCS (MM),2020-09-01 00:00:00,2021-03-31 00:00:00,30724,30724
CDC ELC Testing Funding,2021,"URGENT CARE MEDICAL ASSOCIATES, LLC",Health & Human Services,OPERATIONAL SERVICES (JJ),2020-08-01 00:00:00,2020-11-30 00:00:00,1155314.1599999997,1155314.1599999997
CDC ELC Testing Funding,2021,"VENTURE COMMUNITY SERVICES, INC",Health & Human Services,PURCHASED CLIENT/PROGRAM SVCS (MM),2020-09-01 00:00:00,2021-01-20 00:00:00,284790.59,284790.59
CDC ELC Testing Funding,2021,VETERANS INC,Health & Human Services,PURCHASED CLIENT/PROGRAM SVCS (MM),2020-09-01 00:00:00,2021-01-06 00:00:00,87316.70000000001,87316.70000000001
CDC ELC Testing Funding,2021,VICTORY PROGRAMS INC,Health & Human Services,PURCHASED CLIENT/PROGRAM SVCS (MM),2020-09-01 00:00:00,2020-12-09 00:00:00,65728.29999999999,65728.29999999999
CDC ELC Testing Funding,2021,VIETNAM VETERANS WORKSHOP INC,Health & Human Services,PURCHASED CLIENT/PROGRAM SVCS (MM),2020-09-01 00:00:00,2021-01-20 00:00:00,93094.79999999999,93094.79999999999
CDC ELC Testing Funding,2021,VINFEN CORPORATION,Health & Human Services,PURCHASED CLIENT/PROGRAM SVCS (MM),2020-09-01 00:00:00,2021-01-20 00:00:00,1229203.4499999997,1229203.4499999997
CDC ELC Testing Funding,2021,VOLUNTRS OF AMER OF MA INC,Health & Human Services,PURCHASED CLIENT/PROGRAM SVCS (MM),2020-09-01 00:00:00,2021-01-06 00:00:00,25611.33,25611.33
CDC ELC Testing Funding,2021,VWR SCIENTIFIC,Health & Human Services,EQUIPMENT PURCHASE (KK),2021-06-07 00:00:00,2021-06-18 00:00:00,28057.399999999994,28057.4
CDC ELC Testing Funding,2021,VWR SCIENTIFIC,Health & Human Services,FACILITY OPERATIONAL EXPENSES (FF),2020-08-05 00:00:00,2021-05-24 00:00:00,24996.58,24996.58
CDC ELC Testing Funding,2021,W. B MASON CO INC,Health & Human Services,ADMINISTRATIVE EXPENSES (EE),2020-12-22 00:00:00,2021-03-09 00:00:00,2167.690000000001,2167.690000000001
CDC ELC Testing Funding,2021,WALKER INC,Health & Human Services,PURCHASED CLIENT/PROGRAM SVCS (MM),2020-09-01 00:00:00,2021-01-20 00:00:00,179894.52000000002,179894.52000000002
CDC ELC Testing Funding,2021,WALNUT STREET CENTER,Health & Human Services,PURCHASED CLIENT/PROGRAM SVCS (MM),2020-09-01 00:00:00,2021-01-20 00:00:00,118839.69,118839.69
CDC ELC Testing Funding,2021,WALTHAM COMMITTEE INC,Health & Human Services,PURCHASED CLIENT/PROGRAM SVCS (MM),2020-09-01 00:00:00,2020-11-11 00:00:00,72690.98000000001,72690.98000000001
CDC ELC Testing Funding,2021,WAYSIDE YOUTH & FAMILY,Health & Human Services,PURCHASED CLIENT/PROGRAM SVCS (MM),2020-09-01 00:00:00,2021-02-03 00:00:00,140824.62,140824.62
CDC ELC Testing Funding,2021,WESTERN MASSACHUSETTS TRAINING,Health & Human Services,PURCHASED CLIENT/PROGRAM SVCS (MM),2020-09-01 00:00:00,2021-02-03 00:00:00,105091.29999999999,105091.29999999999
CDC ELC Testing Funding,2021,WESTNET INC,Health & Human Services,FACILITY OPERATIONAL EXPENSES (FF),2020-07-06 00:00:00,2021-06-03 00:00:00,15551.749999999998,15551.749999999998
CDC ELC Testing Funding,2021,WORK INC,Health & Human Services,PURCHASED CLIENT/PROGRAM SVCS (MM),2020-09-01 00:00:00,2021-01-20 00:00:00,207712.2,207712.2
CDC ELC Testing Funding,2021,WW GRAINGER INC,Health & Human Services,EQUIPMENT PURCHASE (KK),2021-04-12 00:00:00,2021-04-12 00:00:00,377.42,377.42
CDC ELC Testing Funding,2021,WW GRAINGER INC,Health & Human Services,FACILITY OPERATIONAL EXPENSES (FF),2020-07-22 00:00:00,2021-06-18 00:00:00,4307.84,4307.84
CDC ELC Testing Funding,2021,YOUTH OPPORTUNITIES UPHELD INC,Health & Human Services,PURCHASED CLIENT/PROGRAM SVCS (MM),2020-09-01 00:00:00,2021-01-20 00:00:00,81114.57,81114.57
CDC ELC Testing Funding,2021,YOUVILLE HOUSE INC,Health & Human Services,BENEFIT PROGRAMS (RR),2020-11-04 00:00:00,2021-01-21 00:00:00,33920,33920
CDC ELC Testing Funding,2021,YOUVILLE PLACE INC,Health & Human Services,BENEFIT PROGRAMS (RR),2021-01-13 00:00:00,2021-01-20 00:00:00,13120,13120
CDC ELC Testing Funding,2021,"YWCA NORTHEASTERN MASSACHUSETTTS, INC.",Health & Human Services,PURCHASED CLIENT/PROGRAM SVCS (MM),2020-10-01 00:00:00,2020-10-14 00:00:00,483.24,483.24
CDC ELC Testing Funding,2022,,Health & Human Services,OPERATIONAL SERVICES (JJ),,,1768326.6499999985,0
CDC ELC Testing Funding,2022,,Health & Human Services,PURCHASED CLIENT/PROGRAM SVCS (MM),,,19772848.650000013,0
CDC ELC Testing Funding,2022,ABBOTT LABORATORIES AND US SUBSIDIARIES,Health & Human Services,FACILITY OPERATIONAL EXPENSES (FF),2021-09-18 00:00:00,2021-12-09 00:00:00,4020199.999999999,3899585
CDC ELC Testing Funding,2022,AGILENT TECHNOLOGIES INC,Health & Human Services,FACILITY OPERATIONAL EXPENSES (FF),,,4491,0
CDC ELC Testing Funding,2022,AIDS PROJECT WORCESTER INC,Health & Human Services,PURCHASED CLIENT/PROGRAM SVCS (MM),2021-12-01 00:00:00,2022-01-31 00:00:00,60000,7895.039999999999
CDC ELC Testing Funding,2022,AMERICAN MEDICAL RESPONSE OF MA INC,Health & Human Services,PURCHASED CLIENT/PROGRAM SVCS (MM),2021-07-01 00:00:00,2022-02-28 00:00:00,5323437.33,5323437.33
CDC ELC Testing Funding,2022,BERKSHIRE MEDICAL CENTER INC,Health & Human Services,OPERATIONAL SERVICES (JJ),2021-07-01 00:00:00,2021-12-31 00:00:00,1073565,1073565
CDC ELC Testing Funding,2022,BERKSHIRE MEDICAL CENTER INC,Health & Human Services,PURCHASED CLIENT/PROGRAM SVCS (MM),2022-01-01 00:00:00,2022-01-31 00:00:00,197865,197865
CDC ELC Testing Funding,2022,BERKSHIRE REGIONAL PLANNING COMMISSION,Health & Human Services,STATE AID/POL SUB (PP),2021-08-19 00:00:00,2021-08-19 00:00:00,250000,250000
CDC ELC Testing Funding,2022,BETH ISRAEL DEACONESS,Health & Human Services,OPERATIONAL SERVICES (JJ),2021-07-01 00:00:00,2021-12-31 00:00:00,2399787.1799999997,2399787.1799999997
CDC ELC Testing Funding,2022,BETH ISRAEL DEACONESS,Health & Human Services,PURCHASED CLIENT/PROGRAM SVCS (MM),2022-01-03 00:00:00,2022-01-31 00:00:00,344372.49,344372.49
CDC ELC Testing Funding,2022,BIO MERIEUX VITEK INC,Health & Human Services,EQUIPMENT LEASE-MAINTAIN/REPAR (LL),,,23800,0
CDC ELC Testing Funding,2022,BIO RAD LABORATORIES INC,Health & Human Services,EQUIPMENT LEASE-MAINTAIN/REPAR (LL),,,3325.2,0
CDC ELC Testing Funding,2022,BIOBOT ANALYTICS INC,Health & Human Services,OPERATIONAL SERVICES (JJ),2021-07-31 00:00:00,2022-02-28 00:00:00,1242429.2800000003,879370
CDC ELC Testing Funding,2022,BIOFIRE DIAGNOSTICS LLC,Health & Human Services,FACILITY OPERATIONAL EXPENSES (FF),2021-08-25 00:00:00,2021-08-25 00:00:00,51529.5,51529.5
CDC ELC Testing Funding,2022,BOSTON PUBLIC HEALTH COMMIS,Health & Human Services,STATE AID/POL SUB (PP),2021-10-21 00:00:00,2021-10-21 00:00:00,600000,600000
CDC ELC Testing Funding,2022,BROCKTON NEIGHBORHOOD HLTH CTR,Health & Human Services,OPERATIONAL SERVICES (JJ),2021-07-01 00:00:00,2021-11-30 00:00:00,713992.23,713992.23
CDC ELC Testing Funding,2022,CAM OFFICE SERVICES INC,Health & Human Services,ADMINISTRATIVE EXPENSES (EE),2021-12-30 00:00:00,2022-02-16 00:00:00,2352.329999999999,2352.3300000000004
CDC ELC Testing Funding,2022,CATALDO AMBULANCE SERVICE INC,Health & Human Services,PURCHASED CLIENT/PROGRAM SVCS (MM),2021-07-01 00:00:00,2022-02-06 00:00:00,2794562.7200000007,2794562.7200000007
CDC ELC Testing Funding,2022,CDM SMITH INC,Health & Human Services,OPERATIONAL SERVICES (JJ),2021-07-01 00:00:00,2022-02-25 00:00:00,1042195,483750
CDC ELC Testing Funding,2022,CENTRAL MASSACHUSETTS REGIONAL,Health & Human Services,STATE AID/POL SUB (PP),2021-12-07 00:00:00,2021-12-07 00:00:00,460000,460000
CDC ELC Testing Funding,2022,CIC HEALTH LLC,Health & Human Services,PURCHASED CLIENT/PROGRAM SVCS (MM),2022-01-02 00:00:00,2022-02-27 00:00:00,2557332.1500000004,2557332.1500000004
CDC ELC Testing Funding,2022,CITY OF BROCKTON,Health & Human Services,STATE AID/POL SUB (PP),2021-08-25 00:00:00,2021-08-25 00:00:00,500000,500000
CDC ELC Testing Funding,2022,CITY OF FALL RIVER,Health & Human Services,STATE AID/POL SUB (PP),2021-09-09 00:00:00,2021-09-09 00:00:00,281565,281565
CDC ELC Testing Funding,2022,CITY OF FITCHBURG,Health & Human Services,STATE AID/POL SUB (PP),2021-12-22 00:00:00,2021-12-22 00:00:00,240000,240000
CDC ELC Testing Funding,2022,CITY OF GREENFIELD,Health & Human Services,STATE AID/POL SUB (PP),2021-12-15 00:00:00,2021-12-15 00:00:00,125000,125000
CDC ELC Testing Funding,2022,CITY OF LAWRENCE,Health & Human Services,STATE AID/POL SUB (PP),2021-09-09 00:00:00,2021-09-09 00:00:00,300000,300000
CDC ELC Testing Funding,2022,CITY OF LOWELL,Health & Human Services,STATE AID/POL SUB (PP),2021-09-09 00:00:00,2021-09-09 00:00:00,199000,199000
CDC ELC Testing Funding,2022,CITY OF LYNN,Health & Human Services,STATE AID/POL SUB (PP),2021-08-19 00:00:00,2021-08-19 00:00:00,480000,480000
CDC ELC Testing Funding,2022,CITY OF METHUEN,Health & Human Services,STATE AID/POL SUB (PP),2021-10-21 00:00:00,2021-10-21 00:00:00,312000,312000
CDC ELC Testing Funding,2022,CITY OF NEW BEDFORD,Health & Human Services,STATE AID/POL SUB (PP),2021-09-09 00:00:00,2021-09-09 00:00:00,500000,500000
CDC ELC Testing Funding,2022,CITY OF NORTHAMPTON,Health & Human Services,STATE AID/POL SUB (PP),2021-11-29 00:00:00,2021-11-29 00:00:00,283620,283620
CDC ELC Testing Funding,2022,CITY OF PEABODY,Health & Human Services,STATE AID/POL SUB (PP),2021-09-15 00:00:00,2021-09-15 00:00:00,407000,407000
CDC ELC Testing Funding,2022,CITY OF QUINCY,Health & Human Services,STATE AID/POL SUB (PP),2021-11-17 00:00:00,2021-11-17 00:00:00,277650,277650
CDC ELC Testing Funding,2022,CITY OF SOMERVILLE,Health & Human Services,STATE AID/POL SUB (PP),2021-09-16 00:00:00,2021-09-16 00:00:00,300000,300000
CDC ELC Testing Funding,2022,CITY OF SPRINGFIELD,Health & Human Services,STATE AID/POL SUB (PP),2021-09-28 00:00:00,2021-09-28 00:00:00,300000,300000
CDC ELC Testing Funding,2022,CITY OF TAUNTON,Health & Human Services,STATE AID/POL SUB (PP),2021-11-17 00:00:00,2021-11-17 00:00:00,200000,200000
CDC ELC Testing Funding,2022,CITY OF WORCESTER,Health & Human Services,STATE AID/POL SUB (PP),2021-09-02 00:00:00,2021-09-02 00:00:00,261222,261222
CDC ELC Testing Funding,2022,"CLEAR LABS, INC",Health & Human Services,FACILITY OPERATIONAL EXPENSES (FF),2021-12-03 00:00:00,2021-12-03 00:00:00,80940,80940
CDC ELC Testing Funding,2022,CLINICAL RESEARCH SEQUENCING PLATFORM,Health & Human Services,OPERATIONAL SERVICES (JJ),2021-02-22 00:00:00,2021-10-09 00:00:00,13099375,12318030
CDC ELC Testing Funding,2022,COLOR HEALTH INC,Health & Human Services,PURCHASED CLIENT/PROGRAM SVCS (MM),2021-05-01 00:00:00,2021-12-31 00:00:00,19228309.67,19228309.669999998
CDC ELC Testing Funding,2022,"COMMONWEALTH INFORMATICS, INC.",Health & Human Services,IT Non-Payroll Expenses (UU),2021-07-01 00:00:00,2021-07-01 00:00:00,4900,4900
CDC ELC Testing Funding,2022,COUNTY OF BARNSTABLE,Health & Human Services,STATE AID/POL SUB (PP),2021-09-09 00:00:00,2021-09-09 00:00:00,250000,250000
CDC ELC Testing Funding,2022,COUNTY OF DUKES COUNTY,Health & Human Services,STATE AID/POL SUB (PP),2021-11-01 00:00:00,2022-01-01 00:00:00,150000,150000
CDC ELC Testing Funding,2022,CRISIS MANAGEMENT GROUP INC,Health & Human Services,CONSULTANT SVCS (TO DEPTS) (HH),2021-12-01 00:00:00,2022-01-31 00:00:00,18583,1358
CDC ELC Testing Funding,2022,DATABANK IMX LLC,Health & Human Services,OPERATIONAL SERVICES (JJ),2021-07-01 00:00:00,2022-02-28 00:00:00,1921323.67,604538.2899999999
CDC ELC Testing Funding,2022,DELOITTE CONSULTING LLP,Health & Human Services,CONSULTANT SVCS (TO DEPTS) (HH),2021-07-01 00:00:00,2021-12-31 00:00:00,217800,217800
CDC ELC Testing Funding,2022,FALLON SERVICE LLC,Health & Human Services,PURCHASED CLIENT/PROGRAM SVCS (MM),2021-07-01 00:00:00,2021-12-31 00:00:00,11510517.640000002,11510517.640000002
CDC ELC Testing Funding,2022,FISHER SCIENTIFIC COMPANY LLC,Health & Human Services,EQUIPMENT PURCHASE (KK),2021-09-01 00:00:00,2022-02-14 00:00:00,58410.28,23315.84
CDC ELC Testing Funding,2022,FISHER SCIENTIFIC COMPANY LLC,Health & Human Services,FACILITY OPERATIONAL EXPENSES (FF),2021-07-09 00:00:00,2022-02-17 00:00:00,460654.34999999945,377426.15999999986
CDC ELC Testing Funding,2022,FRANKLIN REGIONAL COUNCIL OF GOVERNMENTS,Health & Human Services,STATE AID/POL SUB (PP),2021-08-25 00:00:00,2021-08-25 00:00:00,164846,133795
CDC ELC Testing Funding,2022,"GINKGO BIOWORKS, INC.",Health & Human Services,PURCHASED CLIENT/PROGRAM SVCS (MM),2021-07-05 00:00:00,2021-08-01 00:00:00,85040.87999999979,85040.88
CDC ELC Testing Funding,2022,GOVERNMENT SCIENTIFIC SOURCE,Health & Human Services,EQUIPMENT LEASE-MAINTAIN/REPAR (LL),2021-08-13 00:00:00,2021-08-13 00:00:00,11713.019999999997,11713.02
CDC ELC Testing Funding,2022,GOVERNMENT SCIENTIFIC SOURCE,Health & Human Services,EQUIPMENT PURCHASE (KK),2021-11-01 00:00:00,2021-11-01 00:00:00,106545.05000000003,106545.05
CDC ELC Testing Funding,2022,GOVERNMENT SCIENTIFIC SOURCE,Health & Human Services,FACILITY OPERATIONAL EXPENSES (FF),2021-07-09 00:00:00,2021-11-30 00:00:00,8633.9,8633.9
CDC ELC Testing Funding,2022,GREATER LAWRENCE FAMILY HEALTH CENTER,Health & Human Services,PURCHASED CLIENT/PROGRAM SVCS (MM),2021-07-01 00:00:00,2021-09-30 00:00:00,208197.99999999994,110710.22
CDC ELC Testing Funding,2022,HARMAN CONNECTED SERVICES INC,Health & Human Services,IT Non-Payroll Expenses (UU),,,50000,0
CDC ELC Testing Funding,2022,HARVARD PILGRIM HEALTH CARE INC,Health & Human Services,CONSULTANT SVCS (TO DEPTS) (HH),2021-07-01 00:00:00,2021-09-30 00:00:00,178743,39882.25
CDC ELC Testing Funding,2022,ILLUMINA INC,Health & Human Services,FACILITY OPERATIONAL EXPENSES (FF),2021-01-12 00:00:00,2022-02-10 00:00:00,664896.3399999999,574762.8300000001
CDC ELC Testing Funding,2022,Indirect Costs,Health & Human Services,ADMINISTRATIVE EXPENSES (EE),,,138212.63999999998,138212.63999999998
CDC ELC Testing Funding,2022,Interaccount transfer,Health & Human Services,IT Non-Payroll Expenses (UU),2022-03-15 00:00:00,2022-03-15 00:00:00,-820986.1,-820986.1
CDC ELC Testing Funding,2022,Interaccount transfer,Health & Human Services,PURCHASED CLIENT/PROGRAM SVCS (MM),2021-07-05 00:00:00,2021-08-01 00:00:00,-85683.51,-85683.51
CDC ELC Testing Funding,2022,INTERPRETERS & TRANSLATORS INC,Health & Human Services,PURCHASED CLIENT/PROGRAM SVCS (MM),2021-07-15 00:00:00,2022-01-31 00:00:00,39956.28999999998,4439.400000000001
CDC ELC Testing Funding,2022,IT CONSOLIDATION SERVICES EHS,Health & Human Services,ADMINISTRATIVE EXPENSES (EE),2021-01-01 00:00:00,2022-06-30 00:00:00,5725190.53,3308817.2399999998
CDC ELC Testing Funding,2022,JD SOFTWARE INC,Health & Human Services,IT Non-Payroll Expenses (UU),,,180000,0
CDC ELC Testing Funding,2022,JJRCONSULTING LLC,Health & Human Services,CONSULTANT SVCS (TO DEPTS) (HH),2021-09-01 00:00:00,2021-12-31 00:00:00,244955.61999999997,244955.61999999997
CDC ELC Testing Funding,2022,LANGUAGE LINE SERVICES INC,Health & Human Services,PURCHASED CLIENT/PROGRAM SVCS (MM),2021-07-22 00:00:00,2022-02-28 00:00:00,29896.040000000005,10488.06
CDC ELC Testing Funding,2022,LAWRENCE GENERAL HOSPITAL INC,Health & Human Services,OPERATIONAL SERVICES (JJ),2021-07-01 00:00:00,2021-12-30 00:00:00,10897578.72,10897578.72
CDC ELC Testing Funding,2022,LAWRENCE GENERAL HOSPITAL INC,Health & Human Services,PURCHASED CLIENT/PROGRAM SVCS (MM),2022-01-01 00:00:00,2022-02-28 00:00:00,2309474.16,2309474.16
CDC ELC Testing Funding,2022,LIFE TECHNOLOGIES CORPORATION,Health & Human Services,EQUIPMENT LEASE-MAINTAIN/REPAR (LL),2021-07-01 00:00:00,2022-10-31 00:00:00,104021.60000000003,93459.79999999999
CDC ELC Testing Funding,2022,LIFE TECHNOLOGIES CORPORATION,Health & Human Services,FACILITY OPERATIONAL EXPENSES (FF),2021-09-03 00:00:00,2021-09-07 00:00:00,26954.36,26954.36
CDC ELC Testing Funding,2022,LIONBRIDGE TECHNOLOGIES LLC,Health & Human Services,PURCHASED CLIENT/PROGRAM SVCS (MM),2021-07-01 00:00:00,2021-07-17 00:00:00,1000,13.05
CDC ELC Testing Funding,2022,LYNN COMMUNITY HEALTH INC,Health & Human Services,OPERATIONAL SERVICES (JJ),2021-07-01 00:00:00,2021-12-31 00:00:00,669845.61,669845.61
CDC ELC Testing Funding,2022,LYNN COMMUNITY HEALTH INC,Health & Human Services,PURCHASED CLIENT/PROGRAM SVCS (MM),2022-01-01 00:00:00,2022-01-31 00:00:00,120609.72,120609.72
CDC ELC Testing Funding,2022,MARLBORO HOSPITAL,Health & Human Services,OPERATIONAL SERVICES (JJ),2021-07-01 00:00:00,2021-12-30 00:00:00,2560585,2560585
CDC ELC Testing Funding,2022,MARLBORO HOSPITAL,Health & Human Services,PURCHASED CLIENT/PROGRAM SVCS (MM),2022-01-03 00:00:00,2022-02-28 00:00:00,1585520,1585520
CDC ELC Testing Funding,2022,MCINNIS CONSULTING SERVICES,Health & Human Services,IT Non-Payroll Expenses (UU),2021-07-01 00:00:00,2022-03-19 00:00:00,492531.28999999975,218056.46000000002
CDC ELC Testing Funding,2022,MCKINSEY & COMPANY INC WASHINGTON DC,Health & Human Services,CONSULTANT SVCS (TO DEPTS) (HH),2021-06-18 00:00:00,2021-11-17 00:00:00,5954808,2132000
CDC ELC Testing Funding,2022,METROPOLITAN AREA,Health & Human Services,STATE AID/POL SUB (PP),2021-08-25 00:00:00,2021-08-25 00:00:00,553610,553610
CDC ELC Testing Funding,2022,MOTION RECRUITMENT PARTNERS LLC,Health & Human Services,OPERATIONAL SERVICES (JJ),2021-07-01 00:00:00,2022-03-05 00:00:00,489092.44000000006,393844.06000000006
CDC ELC Testing Funding,2022,NANTUCKET COTTAGE HOSPITAL,Health & Human Services,OPERATIONAL SERVICES (JJ),2021-07-01 00:00:00,2021-11-24 00:00:00,520093.4,520093.4
CDC ELC Testing Funding,2022,NANTUCKET COTTAGE HOSPITAL,Health & Human Services,PURCHASED CLIENT/PROGRAM SVCS (MM),2022-01-31 00:00:00,2022-02-26 00:00:00,95939.55,95939.55
CDC ELC Testing Funding,2022,NASHOBA ASSOCIATED BOARDS OF,Health & Human Services,STATE AID/POL SUB (PP),2021-09-01 00:00:00,2021-09-01 00:00:00,150000,150000
CDC ELC Testing Funding,2022,"Payees under $50,000",Health & Human Services,ADMINISTRATIVE EXPENSES (EE),2021-07-01 00:00:00,2022-12-31 00:00:00,2141.6400000000003,2141.6400000000003
CDC ELC Testing Funding,2022,"Payees under $50,000",Health & Human Services,EQUIPMENT LEASE-MAINTAIN/REPAR (LL),,,8165,0
CDC ELC Testing Funding,2022,"Payees under $50,000",Health & Human Services,FACILITY OPERATIONAL EXPENSES (FF),2021-08-24 00:00:00,2022-01-31 00:00:00,95598.27000000002,50528.380000000005
CDC ELC Testing Funding,2022,"Payees under $50,000",Health & Human Services,OPERATIONAL SERVICES (JJ),2022-01-01 00:00:00,2022-02-01 00:00:00,5000,597.25
CDC ELC Testing Funding,2022,"Payees under $50,000",Health & Human Services,PURCHASED CLIENT/PROGRAM SVCS (MM),2021-08-05 00:00:00,2021-12-14 00:00:00,3843.5399999999995,3843.54
CDC ELC Testing Funding,2022,Payroll and other payments to individuals,Health & Human Services,PENSION & INSURANCE RELATED EX (DD),,,379932.40999999974,379932.40999999974
CDC ELC Testing Funding,2022,Payroll and other payments to individuals,Health & Human Services,REGULAR EMPLOYEE COMPENSATION (AA),2021-07-06 00:00:00,2022-03-18 00:00:00,1218340.74,1218340.74
CDC ELC Testing Funding,2022,Payroll and other payments to individuals,Health & Human Services,REGULAR EMPLOYEE RELATED EXPEN (BB),2021-08-17 00:00:00,2021-11-23 00:00:00,819.5800000000002,819.5800000000002
CDC ELC Testing Funding,2022,PIXEL BY LAB CORP,Health & Human Services,OPERATIONAL SERVICES (JJ),2021-07-01 00:00:00,2021-11-17 00:00:00,144571,144571
CDC ELC Testing Funding,2022,PROFESSIONAL STAFFING GROUP,Health & Human Services,PURCHASED CLIENT/PROGRAM SVCS (MM),2021-07-02 00:00:00,2022-03-04 00:00:00,189722.76000000007,189722.76000000007
CDC ELC Testing Funding,2022,PROJECT BEACON COVID-19 LLC,Health & Human Services,IT Non-Payroll Expenses (UU),,,490000,0
CDC ELC Testing Funding,2022,PROJECT BEACON COVID-19 LLC,Health & Human Services,OPERATIONAL SERVICES (JJ),2021-07-01 00:00:00,2021-10-31 00:00:00,6124247.499999999,6124247.499999999
CDC ELC Testing Funding,2022,RETRO FIT TECHNOLOGIES INC,Health & Human Services,IT Non-Payroll Expenses (UU),2021-09-29 00:00:00,2022-06-30 00:00:00,16356.779999999999,16356.78
CDC ELC Testing Funding,2022,ROCHE DIAGNOSTICS CORPORATION,Health & Human Services,EQUIPMENT LEASE-MAINTAIN/REPAR (LL),2021-07-01 00:00:00,2022-06-30 00:00:00,53240,38240
CDC ELC Testing Funding,2022,ROCHE DIAGNOSTICS CORPORATION,Health & Human Services,FACILITY OPERATIONAL EXPENSES (FF),2021-08-24 00:00:00,2021-12-16 00:00:00,776596.78,552067.41
CDC ELC Testing Funding,2022,RTD LOGISTICS LLC,Health & Human Services,OPERATIONAL SERVICES (JJ),2021-08-15 00:00:00,2022-03-05 00:00:00,259821.56,144193.09
CDC ELC Testing Funding,2022,"SEVEN HILLS BEHAVIORAL HEALTH, INC.",Health & Human Services,PURCHASED CLIENT/PROGRAM SVCS (MM),2021-07-01 00:00:00,2022-01-31 00:00:00,209923,82675.02
CDC ELC Testing Funding,2022,SHI INTERNATIONAL CORP,Health & Human Services,IT Non-Payroll Expenses (UU),2021-07-01 00:00:00,2022-06-30 00:00:00,1227192,621661
CDC ELC Testing Funding,2022,SINGLE STATE AUDIT,Health & Human Services,ADMINISTRATIVE EXPENSES (EE),2021-07-01 00:00:00,2021-12-31 00:00:00,82875.19999999998,82875.2
CDC ELC Testing Funding,2022,STANLEY STREET TREATMENT & RESOURCES INC,Health & Human Services,OPERATIONAL SERVICES (JJ),2020-12-14 00:00:00,2021-01-15 00:00:00,1040217.28,1040217.28
CDC ELC Testing Funding,2022,STRATEGIC SOLUTIONS GROUP LLC,Health & Human Services,IT Non-Payroll Expenses (UU),2021-07-01 00:00:00,2022-02-26 00:00:00,3925071.0799999996,1446371.73
CDC ELC Testing Funding,2022,"TELELANGUAGE, INC",Health & Human Services,PURCHASED CLIENT/PROGRAM SVCS (MM),2021-07-06 00:00:00,2022-02-28 00:00:00,59826.75000000001,5180.610000000002
CDC ELC Testing Funding,2022,"THE CAMBRIDGE INCUBATOR, LLC",Health & Human Services,OPERATIONAL SERVICES (JJ),2021-07-01 00:00:00,2021-12-31 00:00:00,5803757.749999999,5803757.749999999
CDC ELC Testing Funding,2022,"THE RIPPLES GROUP, LLC",Health & Human Services,CONSULTANT SVCS (TO DEPTS) (HH),2021-07-01 00:00:00,2022-03-31 00:00:00,535470.5299999999,226899.10999999996
CDC ELC Testing Funding,2022,TOWN OF ANDOVER,Health & Human Services,STATE AID/POL SUB (PP),2021-09-15 00:00:00,2021-09-15 00:00:00,300000,300000
CDC ELC Testing Funding,2022,TOWN OF BROOKLINE,Health & Human Services,STATE AID/POL SUB (PP),2021-11-17 00:00:00,2021-11-17 00:00:00,171000,171000
CDC ELC Testing Funding,2022,TOWN OF CHARLTON,Health & Human Services,STATE AID/POL SUB (PP),2021-08-25 00:00:00,2021-08-25 00:00:00,130000,130000
CDC ELC Testing Funding,2022,TOWN OF HUDSON,Health & Human Services,STATE AID/POL SUB (PP),2021-09-09 00:00:00,2021-09-09 00:00:00,300000,300000
CDC ELC Testing Funding,2022,TOWN OF LEICESTER,Health & Human Services,STATE AID/POL SUB (PP),2022-01-19 00:00:00,2022-01-19 00:00:00,225000,225000
CDC ELC Testing Funding,2022,TOWN OF MANSFIELD,Health & Human Services,STATE AID/POL SUB (PP),2021-09-09 00:00:00,2021-09-09 00:00:00,133736,133736
CDC ELC Testing Funding,2022,TOWN OF NEEDHAM,Health & Human Services,STATE AID/POL SUB (PP),2021-10-06 00:00:00,2021-10-06 00:00:00,140000,140000
CDC ELC Testing Funding,2022,TOWN OF NORTHBOROUGH,Health & Human Services,STATE AID/POL SUB (PP),2021-11-29 00:00:00,2021-11-29 00:00:00,160000,160000
CDC ELC Testing Funding,2022,TOWN OF NORWOOD,Health & Human Services,STATE AID/POL SUB (PP),2021-09-15 00:00:00,2021-09-15 00:00:00,300000,300000
CDC ELC Testing Funding,2022,TOWN OF RANDOLPH,Health & Human Services,STATE AID/POL SUB (PP),2021-11-18 00:00:00,2021-11-18 00:00:00,150000,150000
CDC ELC Testing Funding,2022,TOWN OF SOMERSET,Health & Human Services,STATE AID/POL SUB (PP),2021-11-29 00:00:00,2021-11-29 00:00:00,114132,114132
CDC ELC Testing Funding,2022,TOWN OF WAYLAND,Health & Human Services,STATE AID/POL SUB (PP),2021-12-09 00:00:00,2021-12-09 00:00:00,242875,242875
CDC ELC Testing Funding,2022,TOWN OF WEST SPRINGFIELD,Health & Human Services,STATE AID/POL SUB (PP),2021-09-15 00:00:00,2021-09-15 00:00:00,183000,183000
CDC ELC Testing Funding,2022,TRANS MED USA INC,Health & Human Services,FACILITY OPERATIONAL EXPENSES (FF),2022-02-11 00:00:00,2022-02-11 00:00:00,10725,10725
CDC ELC Testing Funding,2022,UMASS MEMORIAL MEDICAL CENTER INC,Health & Human Services,OPERATIONAL SERVICES (JJ),2021-07-01 00:00:00,2021-12-30 00:00:00,4808086.29,4808086.29
CDC ELC Testing Funding,2022,UMASS MEMORIAL MEDICAL CENTER INC,Health & Human Services,PURCHASED CLIENT/PROGRAM SVCS (MM),2022-01-03 00:00:00,2022-02-28 00:00:00,2064070.89,2064070.89
CDC ELC Testing Funding,2022,UNIVERSITY OF MASS,Health & Human Services,CONSULTANT SVCS (TO DEPTS) (HH),2021-07-01 00:00:00,2022-01-31 00:00:00,1386283,886391.5
CDC ELC Testing Funding,2022,UNIVERSITY OF MASS,Health & Human Services,PURCHASED CLIENT/PROGRAM SVCS (MM),2021-07-01 00:00:00,2021-12-31 00:00:00,1647652,1647652
CDC ELC Testing Funding,2022,VWR SCIENTIFIC,Health & Human Services,FACILITY OPERATIONAL EXPENSES (FF),2021-07-07 00:00:00,2021-10-01 00:00:00,13756.340000000004,10754.800000000003
CDC ELC Testing Funding,2022,WESTNET INC,Health & Human Services,FACILITY OPERATIONAL EXPENSES (FF),2021-07-15 00:00:00,2022-01-06 00:00:00,28548.729999999996,18631.87
CDC ELC Testing Funding,2022,WW GRAINGER INC,Health & Human Services,FACILITY OPERATIONAL EXPENSES (FF),2021-09-01 00:00:00,2021-12-22 00:00:00,1907.04,1907.04
CDC ELC Testing Funding - COVID-19 Variants,2021,DELOITTE CONSULTING LLP,Health & Human Services,CONSULTANT SVCS (TO DEPTS) (HH),2021-05-10 00:00:00,2021-06-30 00:00:00,98010,98010
CDC ELC Testing Funding - COVID-19 Variants,2022,BIO MERIEUX VITEK INC,Health & Human Services,EQUIPMENT PURCHASE (KK),2022-01-14 00:00:00,2022-01-14 00:00:00,81500,81500
CDC ELC Testing Funding - COVID-19 Variants,2022,"CLEAR LABS, INC",Health & Human Services,EQUIPMENT PURCHASE (KK),,,190990,0
CDC ELC Testing Funding - Detection & Mitigation of COVID-19 in Confinement Facilities,2022,,Health & Human Services,PURCHASED CLIENT/PROGRAM SVCS (MM),,,49849.17,0
CDC ELC Testing Funding - Detection & Mitigation of COVID-19 in Confinement Facilities,2022,ABBOTT LABORATORIES AND US SUBSIDIARIES,Health & Human Services,FACILITY OPERATIONAL EXPENSES (FF),,,201010,0
CDC ELC Testing Funding - Detection & Mitigation of COVID-19 in Confinement Facilities,2022,CATALDO AMBULANCE SERVICE INC,Health & Human Services,CONSULTANT SVCS (TO DEPTS) (HH),2021-11-01 00:00:00,2022-02-28 00:00:00,1085200,462094.43999999994
CDC ELC Testing Funding - Detection & Mitigation of COVID-19 in Confinement Facilities,2022,CATALDO AMBULANCE SERVICE INC,Health & Human Services,PURCHASED CLIENT/PROGRAM SVCS (MM),2021-11-01 00:00:00,2021-11-27 00:00:00,50150.83,50150.83
CDC ELC Testing Funding - Detection & Mitigation of COVID-19 in Confinement Facilities,2022,Indirect Costs,Health & Human Services,ADMINISTRATIVE EXPENSES (EE),,,19539.010000000002,19539.010000000002
CDC ELC Testing Funding - Detection & Mitigation of COVID-19 in Confinement Facilities,2022,"MED BAR, LLC",Health & Human Services,CONSULTANT SVCS (TO DEPTS) (HH),2021-10-27 00:00:00,2022-03-13 00:00:00,480561.19999999995,200101.2
CDC ELC Testing Funding - IPC Training,2021,TRUSTEES OF BOSTON UNIVERSITY,Health & Human Services,CONSULTANT SVCS (TO DEPTS) (HH),2021-01-05 00:00:00,2021-06-30 00:00:00,26448.67,26448.67
CDC ELC Testing Funding - IPC Training,2022,,Health & Human Services,PURCHASED CLIENT/PROGRAM SVCS (MM),,,129325,0
CDC ELC Testing Funding - IPC Training,2022,JSI RESEARCH & TRAINING INSTITUTE INC,Health & Human Services,PURCHASED CLIENT/PROGRAM SVCS (MM),2021-07-01 00:00:00,2021-11-30 00:00:00,68116,38404.29
CDC ELC Testing Funding - IPC Training,2022,"Payees under $50,000",Health & Human Services,CONSULTANT SVCS (TO DEPTS) (HH),2021-11-30 00:00:00,2022-01-31 00:00:00,29761.7,13523.859999999999
CDC ELC Testing Funding - IPC Training,2022,TRUSTEES OF BOSTON UNIVERSITY,Health & Human Services,PURCHASED CLIENT/PROGRAM SVCS (MM),,,102897,0
CDC ELC Testing Funding - IPC Training,2022,TUFTS MEDICAL CTR PHYSICIANS ORG INC,Health & Human Services,PURCHASED CLIENT/PROGRAM SVCS (MM),2021-07-15 00:00:00,2022-03-11 00:00:00,20675,20675
CDC ELC Testing Funding - Labs,2020,FISHER SCIENTIFIC COMPANY LLC,Health & Human Services,EQUIPMENT PURCHASE (KK),2020-06-03 00:00:00,2020-06-03 00:00:00,16135.2,16135.2
CDC ELC Testing Funding - Labs,2020,FISHER SCIENTIFIC COMPANY LLC,Health & Human Services,FACILITY OPERATIONAL EXPENSES (FF),2020-05-18 00:00:00,2020-06-30 00:00:00,42944.530000000006,42944.530000000006
CDC ELC Testing Funding - Labs,2020,GOVERNMENT SCIENTIFIC SOURCE,Health & Human Services,FACILITY OPERATIONAL EXPENSES (FF),2020-06-10 00:00:00,2020-06-18 00:00:00,8582.79,8582.79
CDC ELC Testing Funding - Labs,2020,ILLUMINA INC,Health & Human Services,FACILITY OPERATIONAL EXPENSES (FF),2020-06-29 00:00:00,2020-06-30 00:00:00,18099.270000000004,18099.270000000004
CDC ELC Testing Funding - Labs,2020,Indirect Costs,Health & Human Services,ADMINISTRATIVE EXPENSES (EE),,,27842.159999999996,27842.159999999996
CDC ELC Testing Funding - Labs,2020,INTERPRETERS & TRANSLATORS INC,Health & Human Services,PURCHASED CLIENT/PROGRAM SVCS (MM),2020-04-24 00:00:00,2020-06-27 00:00:00,9390.900000000005,9390.9
CDC ELC Testing Funding - Labs,2020,LANGUAGE LINE SERVICES INC,Health & Human Services,PURCHASED CLIENT/PROGRAM SVCS (MM),2020-04-24 00:00:00,2020-04-30 00:00:00,3117.35,3117.35
CDC ELC Testing Funding - Labs,2020,LIFE TECHNOLOGIES CORPORATION,Health & Human Services,EQUIPMENT LEASE-MAINTAIN/REPAR (LL),2020-06-30 00:00:00,2020-06-30 00:00:00,16680,16680
CDC ELC Testing Funding - Labs,2020,LIFE TECHNOLOGIES CORPORATION,Health & Human Services,EQUIPMENT PURCHASE (KK),2020-06-19 00:00:00,2020-06-19 00:00:00,3994,3994
CDC ELC Testing Funding - Labs,2020,"Payees under $50,000",Health & Human Services,FACILITY OPERATIONAL EXPENSES (FF),2020-06-11 00:00:00,2020-06-11 00:00:00,316,316
CDC ELC Testing Funding - Labs,2020,"Payees under $50,000",Health & Human Services,PURCHASED CLIENT/PROGRAM SVCS (MM),2020-05-01 00:00:00,2020-06-26 00:00:00,2776.7400000000002,2776.7400000000002
CDC ELC Testing Funding - Labs,2020,Payroll and other payments to individuals,Health & Human Services,PENSION & INSURANCE RELATED EX (DD),,,19985.269999999997,19985.269999999997
CDC ELC Testing Funding - Labs,2020,Payroll and other payments to individuals,Health & Human Services,REGULAR EMPLOYEE COMPENSATION (AA),2020-05-12 00:00:00,2020-07-17 00:00:00,220270.43999999997,220270.43999999997
CDC ELC Testing Funding - Labs,2020,RETRO FIT TECHNOLOGIES INC,Health & Human Services,ADMINISTRATIVE EXPENSES (EE),2020-05-27 00:00:00,2020-06-10 00:00:00,4340.44,4340.44
CDC ELC Testing Funding - Labs,2020,STRATEGIC SOLUTIONS GROUP LLC,Health & Human Services,IT Non-Payroll Expenses (UU),2020-04-26 00:00:00,2020-06-30 00:00:00,54801.78,54801.78
CDC ELC Testing Funding - Labs,2020,"TELELANGUAGE, INC",Health & Human Services,PURCHASED CLIENT/PROGRAM SVCS (MM),2020-04-24 00:00:00,2020-06-30 00:00:00,14259.66,14259.66
CDC ELC Testing Funding - Labs,2020,VWR SCIENTIFIC,Health & Human Services,FACILITY OPERATIONAL EXPENSES (FF),2020-05-11 00:00:00,2020-06-26 00:00:00,17532.989999999998,17532.989999999998
CDC ELC Testing Funding - Labs,2020,WESTNET INC,Health & Human Services,FACILITY OPERATIONAL EXPENSES (FF),2020-06-23 00:00:00,2020-06-24 00:00:00,5399.57,5399.57
CDC ELC Testing Funding - Labs,2021,BIOFIRE DIAGNOSTICS LLC,Health & Human Services,FACILITY OPERATIONAL EXPENSES (FF),2020-11-25 00:00:00,2020-11-25 00:00:00,62866.6,62866.6
CDC ELC Testing Funding - Labs,2021,CAM OFFICE SERVICES INC,Health & Human Services,ADMINISTRATIVE EXPENSES (EE),2020-08-28 00:00:00,2021-03-09 00:00:00,3392.8,3392.8
CDC ELC Testing Funding - Labs,2021,CAUSEMEDIA INC,Health & Human Services,CONSULTANT SVCS (TO DEPTS) (HH),2020-07-01 00:00:00,2021-01-14 00:00:00,835733.6900000001,835733.6900000001
CDC ELC Testing Funding - Labs,2021,CDW GOVERNMENT LLC,Health & Human Services,ADMINISTRATIVE EXPENSES (EE),2020-08-06 00:00:00,2020-08-24 00:00:00,1372.58,1372.58
CDC ELC Testing Funding - Labs,2021,"CLEAR LABS, INC",Health & Human Services,FACILITY OPERATIONAL EXPENSES (FF),2021-04-13 00:00:00,2021-04-13 00:00:00,156000,156000
CDC ELC Testing Funding - Labs,2021,FISHER SCIENTIFIC COMPANY LLC,Health & Human Services,EQUIPMENT LEASE-MAINTAIN/REPAR (LL),2020-07-01 00:00:00,2021-06-30 00:00:00,40697.13,40697.13
CDC ELC Testing Funding - Labs,2021,FISHER SCIENTIFIC COMPANY LLC,Health & Human Services,FACILITY OPERATIONAL EXPENSES (FF),2020-07-08 00:00:00,2021-04-12 00:00:00,92074.87999999996,92074.87999999996
CDC ELC Testing Funding - Labs,2021,G A BLANCO & SONS INC,Health & Human Services,ADMINISTRATIVE EXPENSES (EE),2020-07-22 00:00:00,2020-07-22 00:00:00,271.63,271.63
CDC ELC Testing Funding - Labs,2021,GOVERNMENT SCIENTIFIC SOURCE,Health & Human Services,EQUIPMENT PURCHASE (KK),2021-02-08 00:00:00,2021-05-11 00:00:00,266337.08,266337.08
CDC ELC Testing Funding - Labs,2021,ILLUMINA INC,Health & Human Services,EQUIPMENT LEASE-MAINTAIN/REPAR (LL),2020-12-13 00:00:00,2021-06-30 00:00:00,37490,37490
CDC ELC Testing Funding - Labs,2021,ILLUMINA INC,Health & Human Services,EQUIPMENT PURCHASE (KK),2021-05-04 00:00:00,2021-05-04 00:00:00,263862.5,263862.5
CDC ELC Testing Funding - Labs,2021,Indirect Costs,Health & Human Services,ADMINISTRATIVE EXPENSES (EE),,,363717.9999999999,363717.9999999999
CDC ELC Testing Funding - Labs,2021,Interaccount transfer,Health & Human Services,CONSULTANT SVCS (TO DEPTS) (HH),2021-03-22 00:00:00,2021-06-24 00:00:00,-697793.21,-697793.21
CDC ELC Testing Funding - Labs,2021,Interaccount transfer,Health & Human Services,EQUIPMENT LEASE-MAINTAIN/REPAR (LL),2020-10-20 00:00:00,2021-05-28 00:00:00,46502.86,46502.86
CDC ELC Testing Funding - Labs,2021,INTERPRETERS & TRANSLATORS INC,Health & Human Services,PURCHASED CLIENT/PROGRAM SVCS (MM),2020-07-01 00:00:00,2021-02-18 00:00:00,18069.76999999998,18069.769999999986
CDC ELC Testing Funding - Labs,2021,LANGUAGE LINE SERVICES INC,Health & Human Services,PURCHASED CLIENT/PROGRAM SVCS (MM),2020-09-01 00:00:00,2021-01-31 00:00:00,19850.57999999999,19850.57999999999
CDC ELC Testing Funding - Labs,2021,LIFE TECHNOLOGIES CORPORATION,Health & Human Services,EQUIPMENT LEASE-MAINTAIN/REPAR (LL),2020-07-01 00:00:00,2021-08-09 00:00:00,69844.92,69844.92
CDC ELC Testing Funding - Labs,2021,LIFE TECHNOLOGIES CORPORATION,Health & Human Services,EQUIPMENT PURCHASE (KK),2020-07-10 00:00:00,2020-09-16 00:00:00,84831.3,84831.3
CDC ELC Testing Funding - Labs,2021,"LIONBRIDGE TECHNOLOGIES,INC",Health & Human Services,PURCHASED CLIENT/PROGRAM SVCS (MM),2020-07-08 00:00:00,2020-08-31 00:00:00,159.87,159.87
CDC ELC Testing Funding - Labs,2021,MANSFIELD PAPER CO INC,Health & Human Services,ADMINISTRATIVE EXPENSES (EE),2021-01-15 00:00:00,2021-02-02 00:00:00,735.76,735.76
CDC ELC Testing Funding - Labs,2021,MCINNIS CONSULTING SERVICES,Health & Human Services,IT Non-Payroll Expenses (UU),2021-02-13 00:00:00,2021-06-30 00:00:00,48611.16999999997,48611.17
CDC ELC Testing Funding - Labs,2021,"Payees under $50,000",Health & Human Services,ADMINISTRATIVE EXPENSES (EE),2020-09-14 00:00:00,2020-09-21 00:00:00,206.25,206.25
CDC ELC Testing Funding - Labs,2021,"Payees under $50,000",Health & Human Services,CONSULTANT SVCS (TO DEPTS) (HH),2020-07-27 00:00:00,2020-09-17 00:00:00,2595,2595
CDC ELC Testing Funding - Labs,2021,"Payees under $50,000",Health & Human Services,INFRASTRUCTURE: (NN),2020-08-26 00:00:00,2020-11-06 00:00:00,2124.38,2124.38
CDC ELC Testing Funding - Labs,2021,"Payees under $50,000",Health & Human Services,IT Non-Payroll Expenses (UU),2020-05-28 00:00:00,2020-05-28 00:00:00,730.6,730.6
CDC ELC Testing Funding - Labs,2021,"Payees under $50,000",Health & Human Services,OPERATIONAL SERVICES (JJ),2020-09-01 00:00:00,2021-06-30 00:00:00,2570.8,2570.7999999999997
CDC ELC Testing Funding - Labs,2021,"Payees under $50,000",Health & Human Services,PURCHASED CLIENT/PROGRAM SVCS (MM),2020-07-14 00:00:00,2020-11-17 00:00:00,558.6800000000001,558.6800000000001
CDC ELC Testing Funding - Labs,2021,Payroll and other payments to individuals,Health & Human Services,PENSION & INSURANCE RELATED EX (DD),,,700449.99,700449.99
CDC ELC Testing Funding - Labs,2021,Payroll and other payments to individuals,Health & Human Services,PURCHASED CLIENT/PROGRAM SVCS (MM),2020-07-01 00:00:00,2021-06-30 00:00:00,94552.5,94552.5
CDC ELC Testing Funding - Labs,2021,Payroll and other payments to individuals,Health & Human Services,REGULAR EMPLOYEE COMPENSATION (AA),2020-07-07 00:00:00,2021-08-03 00:00:00,2857176.930000003,2857176.930000003
CDC ELC Testing Funding - Labs,2021,Payroll and other payments to individuals,Health & Human Services,REGULAR EMPLOYEE RELATED EXPEN (BB),2020-10-13 00:00:00,2021-07-06 00:00:00,5796.49,5796.49
CDC ELC Testing Funding - Labs,2021,PROFESSIONAL STAFFING GROUP,Health & Human Services,PURCHASED CLIENT/PROGRAM SVCS (MM),2020-07-03 00:00:00,2021-06-30 00:00:00,161460.93000000002,161460.93000000002
CDC ELC Testing Funding - Labs,2021,ROCHE DIAGNOSTICS CORPORATION,Health & Human Services,EQUIPMENT LEASE-MAINTAIN/REPAR (LL),2020-07-01 00:00:00,2021-06-30 00:00:00,38240,38240
CDC ELC Testing Funding - Labs,2021,ROCHE DIAGNOSTICS CORPORATION,Health & Human Services,FACILITY OPERATIONAL EXPENSES (FF),2020-10-14 00:00:00,2021-04-15 00:00:00,486988.68,486988.68
CDC ELC Testing Funding - Labs,2021,RTD LOGISTICS LLC,Health & Human Services,OPERATIONAL SERVICES (JJ),2020-10-05 00:00:00,2021-03-19 00:00:00,50141.510000000046,50141.51
CDC ELC Testing Funding - Labs,2021,STAPLES INC,Health & Human Services,ADMINISTRATIVE EXPENSES (EE),2021-04-28 00:00:00,2021-04-29 00:00:00,850.16,850.16
CDC ELC Testing Funding - Labs,2021,STRATEGIC SOLUTIONS GROUP LLC,Health & Human Services,IT Non-Payroll Expenses (UU),2020-10-01 00:00:00,2021-01-30 00:00:00,94147.19999999998,94147.20000000001
CDC ELC Testing Funding - Labs,2021,"TELELANGUAGE, INC",Health & Human Services,PURCHASED CLIENT/PROGRAM SVCS (MM),2020-07-01 00:00:00,2021-01-31 00:00:00,42042.66999999999,42042.670000000006
CDC ELC Testing Funding - Labs,2021,TRANS MED USA INC,Health & Human Services,FACILITY OPERATIONAL EXPENSES (FF),2020-07-22 00:00:00,2020-07-22 00:00:00,650,650
CDC ELC Testing Funding - Labs,2021,VWR SCIENTIFIC,Health & Human Services,FACILITY OPERATIONAL EXPENSES (FF),2020-06-17 00:00:00,2020-08-10 00:00:00,455.7300000000001,455.7300000000001
CDC ELC Testing Funding - Labs,2021,W. B MASON CO INC,Health & Human Services,ADMINISTRATIVE EXPENSES (EE),2020-08-17 00:00:00,2021-04-29 00:00:00,562.29,562.29
CDC ELC Testing Funding - Labs,2021,WESTNET INC,Health & Human Services,FACILITY OPERATIONAL EXPENSES (FF),2020-08-27 00:00:00,2021-04-22 00:00:00,8155.99,8155.99
CDC ELC Testing Funding - Labs,2021,WW GRAINGER INC,Health & Human Services,FACILITY OPERATIONAL EXPENSES (FF),2020-08-06 00:00:00,2020-08-06 00:00:00,609.96,609.96
CDC ELC Testing Funding - Labs,2021,WW GRAINGER INC,Health & Human Services,INFRASTRUCTURE: (NN),2020-10-12 00:00:00,2020-10-12 00:00:00,478.92,478.92
CDC ELC Testing Funding - Labs,2022,,Health & Human Services,PURCHASED CLIENT/PROGRAM SVCS (MM),,,163371.52000000005,0
CDC ELC Testing Funding - Labs,2022,DATABANK IMX LLC,Health & Human Services,OPERATIONAL SERVICES (JJ),2021-08-02 00:00:00,2021-08-31 00:00:00,61934.5,61934.5
CDC ELC Testing Funding - Labs,2022,FISHER SCIENTIFIC COMPANY LLC,Health & Human Services,FACILITY OPERATIONAL EXPENSES (FF),,,1557.14,0
CDC ELC Testing Funding - Labs,2022,GOVERNMENT SCIENTIFIC SOURCE,Health & Human Services,FACILITY OPERATIONAL EXPENSES (FF),,,2898.21,0
CDC ELC Testing Funding - Labs,2022,Indirect Costs,Health & Human Services,ADMINISTRATIVE EXPENSES (EE),,,233687.40999999997,233687.40999999997
CDC ELC Testing Funding - Labs,2022,JJRCONSULTING LLC,Health & Human Services,CONSULTANT SVCS (TO DEPTS) (HH),2021-07-01 00:00:00,2021-08-31 00:00:00,194941.91999999998,194941.91999999998
CDC ELC Testing Funding - Labs,2022,LANGUAGE CONNECTIONS INC,Health & Human Services,PURCHASED CLIENT/PROGRAM SVCS (MM),2022-01-18 00:00:00,2022-01-18 00:00:00,906.75,906.75
CDC ELC Testing Funding - Labs,2022,MCINNIS CONSULTING SERVICES,Health & Human Services,IT Non-Payroll Expenses (UU),2021-08-16 00:00:00,2022-03-04 00:00:00,49912.75000000001,38917.710000000014
CDC ELC Testing Funding - Labs,2022,Payroll and other payments to individuals,Health & Human Services,PENSION & INSURANCE RELATED EX (DD),,,597385.95,597385.95
CDC ELC Testing Funding - Labs,2022,Payroll and other payments to individuals,Health & Human Services,PURCHASED CLIENT/PROGRAM SVCS (MM),2021-07-01 00:00:00,2022-02-28 00:00:00,6820,6820
CDC ELC Testing Funding - Labs,2022,Payroll and other payments to individuals,Health & Human Services,REGULAR EMPLOYEE COMPENSATION (AA),2021-07-06 00:00:00,2022-03-15 00:00:00,2035110.040000001,2035110.040000001
CDC ELC Testing Funding - Labs,2022,Payroll and other payments to individuals,Health & Human Services,REGULAR EMPLOYEE RELATED EXPEN (BB),2021-08-03 00:00:00,2022-03-15 00:00:00,5498.09,5498.09
CDC ELC Testing Funding - Labs,2022,PROFESSIONAL STAFFING GROUP,Health & Human Services,PURCHASED CLIENT/PROGRAM SVCS (MM),2021-07-02 00:00:00,2022-03-04 00:00:00,74808.48,74808.48
CDC ELC Testing Funding - Labs,2022,ROCHE DIAGNOSTICS CORPORATION,Health & Human Services,FACILITY OPERATIONAL EXPENSES (FF),2021-08-19 00:00:00,2021-08-19 00:00:00,88457.87,88457.87
CDC ELC Testing Funding - Other,2022,BIO MERIEUX VITEK INC,Health & Human Services,EQUIPMENT PURCHASE (KK),2022-01-14 00:00:00,2022-01-14 00:00:00,100000,100000
CDC ELC Testing Funding - Other,2022,BIOFIRE DIAGNOSTICS LLC,Health & Human Services,FACILITY OPERATIONAL EXPENSES (FF),2021-11-23 00:00:00,2021-11-23 00:00:00,14000,14000
CDC ELC Testing Funding - School Testing,2021,EMED LABS LLC,Education,FACILITY OPERATIONAL EXPENSES (FF),2021-05-18 00:00:00,2021-05-18 00:00:00,847026.6699999999,847026.67
CDC ELC Testing Funding - School Testing,2021,Indirect Costs,Education,ADMINISTRATIVE EXPENSES (EE),,,1198.37,1198.37
CDC ELC Testing Funding - School Testing,2021,Interaccount transfer,Education,CONSULTANT SVCS (TO DEPTS) (HH),2021-08-26 00:00:00,2021-08-26 00:00:00,65000,65000
CDC ELC Testing Funding - School Testing,2022,,Education,PURCHASED CLIENT/PROGRAM SVCS (MM),,,484156.56,0
CDC ELC Testing Funding - School Testing,2022,ABBOTT LABORATORIES AND US SUBSIDIARIES,Education,FACILITY OPERATIONAL EXPENSES (FF),2021-09-17 00:00:00,2022-02-27 00:00:00,27568512.499999996,15548927.539999997
CDC ELC Testing Funding - School Testing,2022,AMERICAN MEDICAL RESPONSE OF MA INC,Education,PURCHASED CLIENT/PROGRAM SVCS (MM),2021-09-01 00:00:00,2021-09-10 00:00:00,5837.14,5837.14
CDC ELC Testing Funding - School Testing,2022,"BARRETT DISTRIBUTION CENTERS, INC",Education,OPERATIONAL SERVICES (JJ),2021-11-15 00:00:00,2021-11-15 00:00:00,5000,5000
CDC ELC Testing Funding - School Testing,2022,CATALDO AMBULANCE SERVICE INC,Education,PURCHASED CLIENT/PROGRAM SVCS (MM),2021-09-08 00:00:00,2021-10-30 00:00:00,10006.3,10006.3
CDC ELC Testing Funding - School Testing,2022,CHILDRENS HOSPITAL CORPORATION,Education,CONSULTANT SVCS (TO DEPTS) (HH),2021-07-01 00:00:00,2021-11-23 00:00:00,50000,15000
CDC ELC Testing Funding - School Testing,2022,CIC HEALTH TESTING SERVICES LLC,Education,PURCHASED CLIENT/PROGRAM SVCS (MM),2021-04-26 00:00:00,2022-01-31 00:00:00,96003013.14000009,96003013.13999999
CDC ELC Testing Funding - School Testing,2022,EMED LABS LLC,Education,FACILITY OPERATIONAL EXPENSES (FF),2021-10-14 00:00:00,2021-12-11 00:00:00,1558545,1558545
CDC ELC Testing Funding - School Testing,2022,"GINKGO BIOWORKS, INC.",Education,PURCHASED CLIENT/PROGRAM SVCS (MM),2021-05-31 00:00:00,2021-08-21 00:00:00,786125.0000000002,786122.5700000001
CDC ELC Testing Funding - School Testing,2022,HCM STRATEGISTS LLC,Education,CONSULTANT SVCS (TO DEPTS) (HH),2021-07-01 00:00:00,2021-07-31 00:00:00,28000,28000
CDC ELC Testing Funding - School Testing,2022,IHEALTH LABS INC,Education,FACILITY OPERATIONAL EXPENSES (FF),2021-12-30 00:00:00,2021-12-30 00:00:00,1190000,1190000
CDC ELC Testing Funding - School Testing,2022,Interaccount transfer,Education,PURCHASED CLIENT/PROGRAM SVCS (MM),2021-07-05 00:00:00,2021-08-01 00:00:00,85683.51,85683.51
CDC ELC Testing Funding - School Testing,2022,PROJECT BEACON COVID-19 LLC,Education,PURCHASED CLIENT/PROGRAM SVCS (MM),2021-03-01 00:00:00,2021-08-31 00:00:00,1920877.3399999999,1920861.84
CDC ELC Testing Funding - School Testing,2022,VERITAS GENETICS INC,Education,PURCHASED CLIENT/PROGRAM SVCS (MM),2021-07-01 00:00:00,2021-08-31 00:00:00,14300.46,14300.46
Child Abuse Prevention and Treatment,2022,Payroll and other payments to individuals,Health & Human Services,PENSION & INSURANCE RELATED EX (DD),,,11976.999999999998,11976.999999999998
Child Abuse Prevention and Treatment,2022,Payroll and other payments to individuals,Health & Human Services,REGULAR EMPLOYEE COMPENSATION (AA),2022-01-18 00:00:00,2022-03-15 00:00:00,52885.33,52885.33
Child Abuse Prevention and Treatment,2022,Payroll and other payments to individuals,Health & Human Services,REGULAR EMPLOYEE RELATED EXPEN (BB),2022-02-01 00:00:00,2022-03-01 00:00:00,218.8,218.8
Child and Adult Care Food Program Emergency Operating Costs,2022,18 DEGREES INC,Education,BENEFIT PROGRAMS (RR),2021-07-01 00:00:00,2021-07-01 00:00:00,17556.5,17556.5
Child and Adult Care Food Program Emergency Operating Costs,2022,"A JOYFUL ADULT HEA CARE CENTER, LLC",Education,BENEFIT PROGRAMS (RR),2021-07-01 00:00:00,2021-07-01 00:00:00,5486.13,5486.13
Child and Adult Care Food Program Emergency Operating Costs,2022,ACTION FOR BOSTON COMMUNITY,Education,BENEFIT PROGRAMS (RR),2021-07-01 00:00:00,2021-07-01 00:00:00,243603.22,243603.22
Child and Adult Care Food Program Emergency Operating Costs,2022,"ACTIVE LIFE HEALTH CARE MANAGEMENT, LLC",Education,BENEFIT PROGRAMS (RR),2021-07-01 00:00:00,2021-07-01 00:00:00,7985.47,7985.47
Child and Adult Care Food Program Emergency Operating Costs,2022,"ACTIVE MA, INC",Education,BENEFIT PROGRAMS (RR),2021-07-01 00:00:00,2021-07-01 00:00:00,79617.52,79617.52
Child and Adult Care Food Program Emergency Operating Costs,2022,ADULT DAY HEALTH INC,Education,BENEFIT PROGRAMS (RR),2021-07-01 00:00:00,2021-07-01 00:00:00,380508.04,380508.04
Child and Adult Care Food Program Emergency Operating Costs,2022,ASPIRE DEVELOPMENTAL SERVICES INC,Education,BENEFIT PROGRAMS (RR),2021-07-01 00:00:00,2021-07-01 00:00:00,784.37,784.37
Child and Adult Care Food Program Emergency Operating Costs,2022,ASSOCIATES FOR HUMAN SERVICES,Education,BENEFIT PROGRAMS (RR),2021-07-01 00:00:00,2021-07-01 00:00:00,4126.16,4126.16
Child and Adult Care Food Program Emergency Operating Costs,2022,BEHAVIORAL HEALTH NETWORK INC,Education,BENEFIT PROGRAMS (RR),2021-07-01 00:00:00,2021-07-01 00:00:00,10099.12,10099.12
Child and Adult Care Food Program Emergency Operating Costs,2022,BEST CHOICE ADULT DAY HEALTH CARE INC,Education,BENEFIT PROGRAMS (RR),2021-07-01 00:00:00,2021-07-01 00:00:00,16832.2,16832.2
Child and Adult Care Food Program Emergency Operating Costs,2022,BEVERLY CHILDRENS LEARNING CTR INC,Education,BENEFIT PROGRAMS (RR),2021-07-01 00:00:00,2021-07-01 00:00:00,21184.84,21184.84
Child and Adult Care Food Program Emergency Operating Costs,2022,BOSTON CHINATOWN NEIGHBORHOOD CENTER,Education,BENEFIT PROGRAMS (RR),2021-07-01 00:00:00,2021-07-01 00:00:00,10096.17,10096.17
Child and Adult Care Food Program Emergency Operating Costs,2022,BOYS & GIRLS CLUB,Education,BENEFIT PROGRAMS (RR),2021-07-01 00:00:00,2021-07-01 00:00:00,113.18,113.18
Child and Adult Care Food Program Emergency Operating Costs,2022,BOYS & GIRLS CLUB OF GREATER,Education,BENEFIT PROGRAMS (RR),2021-07-01 00:00:00,2021-07-01 00:00:00,48894.7,48894.7
Child and Adult Care Food Program Emergency Operating Costs,2022,BOYS & GIRLS CLUBS OF METRO SOUTH,Education,BENEFIT PROGRAMS (RR),2021-07-01 00:00:00,2021-07-01 00:00:00,21990.62,21990.62
Child and Adult Care Food Program Emergency Operating Costs,2022,"BOYS AND GIRLS CLUB OF DORCHESTER, INC.",Education,BENEFIT PROGRAMS (RR),2021-07-01 00:00:00,2021-07-01 00:00:00,26958.7,26958.7
Child and Adult Care Food Program Emergency Operating Costs,2022,BOYS AND GIRLS CLUB OF GREATER LOWELL,Education,BENEFIT PROGRAMS (RR),2021-07-01 00:00:00,2021-07-01 00:00:00,21333.07,21333.07
Child and Adult Care Food Program Emergency Operating Costs,2022,CATHOLIC CHARITABLE BUREAU OF,Education,BENEFIT PROGRAMS (RR),2021-07-01 00:00:00,2021-07-01 00:00:00,64055.62999999998,64055.62999999998
Child and Adult Care Food Program Emergency Operating Costs,2022,CENTER FOR HUMAN,Education,BENEFIT PROGRAMS (RR),2021-07-01 00:00:00,2021-07-01 00:00:00,20080.62,20080.62
Child and Adult Care Food Program Emergency Operating Costs,2022,"CHILD CARE OF THE BERKSHIRES, INC.",Education,BENEFIT PROGRAMS (RR),2021-07-01 00:00:00,2021-07-01 00:00:00,27615.79,27615.79
Child and Adult Care Food Program Emergency Operating Costs,2022,CHILD DEVELOPMENT HEALTH & NUTRITION INC,Education,BENEFIT PROGRAMS (RR),2021-07-01 00:00:00,2021-07-01 00:00:00,562675.37,562675.37
Child and Adult Care Food Program Emergency Operating Costs,2022,"CHILDREN OF AMERCIA HOLBROOK, LLC",Education,BENEFIT PROGRAMS (RR),2021-07-01 00:00:00,2021-07-01 00:00:00,37985.33,37985.33
Child and Adult Care Food Program Emergency Operating Costs,2022,CHILDRENS AID & FAMILY SERVICE INC,Education,BENEFIT PROGRAMS (RR),2021-07-01 00:00:00,2021-07-01 00:00:00,23030.55,23030.55
Child and Adult Care Food Program Emergency Operating Costs,2022,"CHILDREN'S SERVICES OF ROXBURY, INC.",Education,BENEFIT PROGRAMS (RR),2021-07-01 00:00:00,2021-07-01 00:00:00,15657.62,15657.62
Child and Adult Care Food Program Emergency Operating Costs,2022,CITIZENS FOR CITIZENS INC,Education,BENEFIT PROGRAMS (RR),2021-07-01 00:00:00,2021-07-01 00:00:00,36574.02,36574.02
Child and Adult Care Food Program Emergency Operating Costs,2022,CITY OF BOSTON,Education,BENEFIT PROGRAMS (RR),2021-07-01 00:00:00,2021-07-01 00:00:00,281666.08,281666.08
Child and Adult Care Food Program Emergency Operating Costs,2022,CITY OF BROCKTON,Education,BENEFIT PROGRAMS (RR),2021-07-01 00:00:00,2021-07-01 00:00:00,84303.82,84303.82
Child and Adult Care Food Program Emergency Operating Costs,2022,CITY OF CHICOPEE,Education,BENEFIT PROGRAMS (RR),2021-07-01 00:00:00,2021-07-01 00:00:00,15816.3,15816.3
Child and Adult Care Food Program Emergency Operating Costs,2022,CITY OF FITCHBURG,Education,BENEFIT PROGRAMS (RR),2021-07-01 00:00:00,2021-07-01 00:00:00,31601.28,31601.28
Child and Adult Care Food Program Emergency Operating Costs,2022,CITY OF GARDNER,Education,BENEFIT PROGRAMS (RR),2021-07-01 00:00:00,2021-07-01 00:00:00,3092.13,3092.13
Child and Adult Care Food Program Emergency Operating Costs,2022,CITY OF HAVERHILL,Education,BENEFIT PROGRAMS (RR),2021-07-01 00:00:00,2021-07-01 00:00:00,5276.65,5276.65
Child and Adult Care Food Program Emergency Operating Costs,2022,CITY OF HOLYOKE,Education,BENEFIT PROGRAMS (RR),2021-07-01 00:00:00,2021-07-01 00:00:00,215.98,215.98
Child and Adult Care Food Program Emergency Operating Costs,2022,CITY OF LAWRENCE,Education,BENEFIT PROGRAMS (RR),2021-07-01 00:00:00,2021-07-01 00:00:00,14330.66,14330.66
Child and Adult Care Food Program Emergency Operating Costs,2022,CITY OF LOWELL,Education,BENEFIT PROGRAMS (RR),2021-07-01 00:00:00,2021-07-01 00:00:00,33144.39,33144.39
Child and Adult Care Food Program Emergency Operating Costs,2022,CITY OF LYNN,Education,BENEFIT PROGRAMS (RR),2021-07-01 00:00:00,2021-07-01 00:00:00,33661.28,33661.28
Child and Adult Care Food Program Emergency Operating Costs,2022,CITY OF NEW BEDFORD,Education,BENEFIT PROGRAMS (RR),2021-07-01 00:00:00,2021-07-01 00:00:00,25251.48,25251.48
Child and Adult Care Food Program Emergency Operating Costs,2022,CITY OF NORTH ADAMS,Education,BENEFIT PROGRAMS (RR),2021-07-01 00:00:00,2021-07-01 00:00:00,6560.44,6560.44
Child and Adult Care Food Program Emergency Operating Costs,2022,CITY OF SPRINGFIELD,Education,BENEFIT PROGRAMS (RR),2021-07-01 00:00:00,2021-07-01 00:00:00,3684.59,3684.59
Child and Adult Care Food Program Emergency Operating Costs,2022,"CLARENDON EARLY EDUCATION SERVICES, INC.",Education,BENEFIT PROGRAMS (RR),2021-07-01 00:00:00,2021-07-01 00:00:00,323745.91,323745.91
Child and Adult Care Food Program Emergency Operating Costs,2022,COMMUNITY ACTION,Education,BENEFIT PROGRAMS (RR),2021-07-01 00:00:00,2021-07-01 00:00:00,32373.83,32373.83
Child and Adult Care Food Program Emergency Operating Costs,2022,COMMUNITY ACTION INC,Education,BENEFIT PROGRAMS (RR),2021-07-01 00:00:00,2021-07-01 00:00:00,29232.59,29232.59
Child and Adult Care Food Program Emergency Operating Costs,2022,"COMMUNITY ACTION PIONEER VALLEY, INC.",Education,BENEFIT PROGRAMS (RR),2021-07-01 00:00:00,2021-07-01 00:00:00,48197.78,48197.78
Child and Adult Care Food Program Emergency Operating Costs,2022,COMMUNITY ACTION PROGRAMS,Education,BENEFIT PROGRAMS (RR),2021-07-01 00:00:00,2021-07-01 00:00:00,41390.49999999999,41390.49999999999
Child and Adult Care Food Program Emergency Operating Costs,2022,COMMUNITY DAY CARE CENTER OF LAWRENCE,Education,BENEFIT PROGRAMS (RR),2021-07-01 00:00:00,2021-07-01 00:00:00,123420.32,123420.32
Child and Adult Care Food Program Emergency Operating Costs,2022,COMMUNITY TEAMWORK  INC,Education,BENEFIT PROGRAMS (RR),2021-07-01 00:00:00,2021-07-01 00:00:00,96963.58,96963.58
Child and Adult Care Food Program Emergency Operating Costs,2022,CRAYON CAMPUS INC.,Education,BENEFIT PROGRAMS (RR),2021-07-01 00:00:00,2021-07-01 00:00:00,31752.19,31752.19
Child and Adult Care Food Program Emergency Operating Costs,2022,DIMOCK COMMUNITY HEALTH CTR,Education,BENEFIT PROGRAMS (RR),2021-07-01 00:00:00,2021-07-01 00:00:00,44327.96,44327.96
Child and Adult Care Food Program Emergency Operating Costs,2022,EAST BOSTON SOCIAL CENTERS INC,Education,BENEFIT PROGRAMS (RR),2021-07-01 00:00:00,2021-07-01 00:00:00,40012.54,40012.54
Child and Adult Care Food Program Emergency Operating Costs,2022,EAST POINT ADHC LLC,Education,BENEFIT PROGRAMS (RR),2021-07-01 00:00:00,2021-07-01 00:00:00,35727.02,35727.02
Child and Adult Care Food Program Emergency Operating Costs,2022,FAMILY SERVICE ASSOCIATION OF,Education,BENEFIT PROGRAMS (RR),2021-07-01 00:00:00,2021-07-01 00:00:00,27174.83,27174.83
Child and Adult Care Food Program Emergency Operating Costs,2022,FOR KIDS ONLY AFTER SCHOOL INC,Education,BENEFIT PROGRAMS (RR),2021-07-01 00:00:00,2021-07-01 00:00:00,6263.03,6263.03
Child and Adult Care Food Program Emergency Operating Costs,2022,FRIENDLY HOUSE INC,Education,BENEFIT PROGRAMS (RR),2021-07-01 00:00:00,2021-07-01 00:00:00,49348.91,49348.91
Child and Adult Care Food Program Emergency Operating Costs,2022,FUENTE DE VIDA ADULT DAY CARE,Education,BENEFIT PROGRAMS (RR),2021-07-01 00:00:00,2021-07-01 00:00:00,61623.69,61623.69
Child and Adult Care Food Program Emergency Operating Costs,2022,GIRLS INCORPORATED OF LYNN,Education,BENEFIT PROGRAMS (RR),2021-07-01 00:00:00,2021-07-01 00:00:00,3967.26,3967.26
Child and Adult Care Food Program Emergency Operating Costs,2022,GREATER LAWRENCE COMMUNITY,Education,BENEFIT PROGRAMS (RR),2021-07-01 00:00:00,2021-07-01 00:00:00,113276.43,113276.43
Child and Adult Care Food Program Emergency Operating Costs,2022,GUILD OF ST AGNESOF WORCESTER,Education,BENEFIT PROGRAMS (RR),2021-07-01 00:00:00,2021-07-01 00:00:00,111993.21,111993.21
Child and Adult Care Food Program Emergency Operating Costs,2022,HEALTHY DIRECTIONS INC,Education,BENEFIT PROGRAMS (RR),2021-07-01 00:00:00,2021-07-01 00:00:00,28437.97,28437.97
Child and Adult Care Food Program Emergency Operating Costs,2022,HOCKOMOCK YOUNG MENS CHRIS ASSOC INC,Education,BENEFIT PROGRAMS (RR),2021-07-01 00:00:00,2021-07-01 00:00:00,6552.3,6552.3
Child and Adult Care Food Program Emergency Operating Costs,2022,HOLYOKE CHICOPEE SPRINGFIELD,Education,BENEFIT PROGRAMS (RR),2021-07-01 00:00:00,2021-07-01 00:00:00,125432.49,125432.49
Child and Adult Care Food Program Emergency Operating Costs,2022,KIDDIE KAMPAS INC,Education,BENEFIT PROGRAMS (RR),2021-07-01 00:00:00,2021-07-01 00:00:00,47326.76,47326.76
Child and Adult Care Food Program Emergency Operating Costs,2022,KIDS PLACE INC,Education,BENEFIT PROGRAMS (RR),2021-07-01 00:00:00,2021-07-01 00:00:00,47338.55,47338.55
Child and Adult Care Food Program Emergency Operating Costs,2022,KIDS UNLIMITED SERVICES INC,Education,BENEFIT PROGRAMS (RR),2021-07-01 00:00:00,2021-10-29 00:00:00,39809.97,39809.97
Child and Adult Care Food Program Emergency Operating Costs,2022,KINDERCARE LEARNING CENTERS LLC,Education,BENEFIT PROGRAMS (RR),2021-07-01 00:00:00,2021-07-01 00:00:00,118810.75,118810.75
Child and Adult Care Food Program Emergency Operating Costs,2022,L P  COLLEGE INC,Education,BENEFIT PROGRAMS (RR),2021-07-01 00:00:00,2021-07-01 00:00:00,127234.49,127234.49
Child and Adult Care Food Program Emergency Operating Costs,2022,LEO INC.,Education,BENEFIT PROGRAMS (RR),2021-07-01 00:00:00,2021-07-01 00:00:00,34207.63,34207.63
Child and Adult Care Food Program Emergency Operating Costs,2022,LITTLE PEOPLES COLLEGE INC,Education,BENEFIT PROGRAMS (RR),2021-07-01 00:00:00,2021-07-01 00:00:00,60380.7,60380.7
Child and Adult Care Food Program Emergency Operating Costs,2022,"LITTLE SPROUTS, LLC",Education,BENEFIT PROGRAMS (RR),2021-07-01 00:00:00,2021-07-01 00:00:00,46217.94,46217.94
Child and Adult Care Food Program Emergency Operating Costs,2022,LYNN ZABOTA ADULT DAY CARE,Education,BENEFIT PROGRAMS (RR),2021-07-01 00:00:00,2021-07-01 00:00:00,17248.47,17248.47
Child and Adult Care Food Program Emergency Operating Costs,2022,MAKING OPPORTUNITY COUNT INC,Education,BENEFIT PROGRAMS (RR),2021-07-01 00:00:00,2021-07-01 00:00:00,42064.299999999996,42064.299999999996
Child and Adult Care Food Program Emergency Operating Costs,2022,MARTHAS VINEYARD COMMUNITY,Education,BENEFIT PROGRAMS (RR),2021-07-01 00:00:00,2021-07-01 00:00:00,3901.73,3901.73
Child and Adult Care Food Program Emergency Operating Costs,2022,"MEDFORD ADULT DAY HEALTH CARE CENTER, LL",Education,BENEFIT PROGRAMS (RR),2021-07-01 00:00:00,2021-07-01 00:00:00,5801.73,5801.73
Child and Adult Care Food Program Emergency Operating Costs,2022,MERRIMACK VALLEY YMCA,Education,BENEFIT PROGRAMS (RR),2021-07-01 00:00:00,2021-07-01 00:00:00,9728.59,9728.59
Child and Adult Care Food Program Emergency Operating Costs,2022,MYSTIC VALLEY YOUNG MEN'S CHRIST ASSOC,Education,BENEFIT PROGRAMS (RR),2021-07-01 00:00:00,2021-07-01 00:00:00,20608.94,20608.94
Child and Adult Care Food Program Emergency Operating Costs,2022,NEW NORTH CITIZENS COUNCIL,Education,BENEFIT PROGRAMS (RR),2021-07-01 00:00:00,2021-07-01 00:00:00,12543.16,12543.16
Child and Adult Care Food Program Emergency Operating Costs,2022,"NURTURY, INC.",Education,BENEFIT PROGRAMS (RR),2021-07-01 00:00:00,2021-07-01 00:00:00,205011.17,205011.17
Child and Adult Care Food Program Emergency Operating Costs,2022,OLD COLONY YMCA INC,Education,BENEFIT PROGRAMS (RR),2021-07-01 00:00:00,2021-07-01 00:00:00,23024.95,23024.95
Child and Adult Care Food Program Emergency Operating Costs,2022,PAKACHOAG ACRES DAY CARE CTR,Education,BENEFIT PROGRAMS (RR),2021-07-01 00:00:00,2021-07-01 00:00:00,4823.35,4823.35
Child and Adult Care Food Program Emergency Operating Costs,2022,PATHWAYS FOR CHILDREN INC,Education,BENEFIT PROGRAMS (RR),2021-07-01 00:00:00,2021-07-01 00:00:00,46259.61,46259.61
Child and Adult Care Food Program Emergency Operating Costs,2022,"Payees under $50,000",Education,BENEFIT PROGRAMS (RR),2021-07-01 00:00:00,2021-07-01 00:00:00,1594576.6299999994,1594576.6299999994
Child and Adult Care Food Program Emergency Operating Costs,2022,Payroll and other payments to individuals,Education,BENEFIT PROGRAMS (RR),2021-07-01 00:00:00,2021-07-01 00:00:00,9497.779999999999,9497.779999999999
Child and Adult Care Food Program Emergency Operating Costs,2022,PEOPLE ACTING IN COMMUNITY,Education,BENEFIT PROGRAMS (RR),2021-07-01 00:00:00,2021-07-01 00:00:00,27811.95,27811.95
Child and Adult Care Food Program Emergency Operating Costs,2022,PEOPLE INCORPORATED,Education,BENEFIT PROGRAMS (RR),2021-07-01 00:00:00,2021-07-01 00:00:00,26346.01,26346.01
Child and Adult Care Food Program Emergency Operating Costs,2022,PROVIDER RESOURCEINC,Education,BENEFIT PROGRAMS (RR),2021-07-01 00:00:00,2021-07-01 00:00:00,766812.97,766812.97
Child and Adult Care Food Program Emergency Operating Costs,2022,QUINCY COMMUNITY ACTION PROGRAMS INC,Education,BENEFIT PROGRAMS (RR),2021-07-01 00:00:00,2021-07-01 00:00:00,29715.43,29715.43
Child and Adult Care Food Program Emergency Operating Costs,2022,RAINBOW ADH CARE CENTER OF WALTHAM LLC,Education,BENEFIT PROGRAMS (RR),2021-07-01 00:00:00,2021-07-01 00:00:00,415,415
Child and Adult Care Food Program Emergency Operating Costs,2022,RAINBOW ADHC LLC,Education,BENEFIT PROGRAMS (RR),2021-07-01 00:00:00,2021-07-01 00:00:00,5319.52,5319.52
Child and Adult Care Food Program Emergency Operating Costs,2022,RAINBOW ADHC OF QUINCY,Education,BENEFIT PROGRAMS (RR),2021-07-01 00:00:00,2021-07-01 00:00:00,14617.12,14617.12
Child and Adult Care Food Program Emergency Operating Costs,2022,"REVERE ADULT DAY HEALTHCARE CENTER, LLC",Education,BENEFIT PROGRAMS (RR),2021-07-01 00:00:00,2021-07-01 00:00:00,25601.68,25601.68
Child and Adult Care Food Program Emergency Operating Costs,2022,RIVERSIDE COMMUNITY CARE INC,Education,BENEFIT PROGRAMS (RR),2021-07-01 00:00:00,2021-07-01 00:00:00,19.97,19.97
Child and Adult Care Food Program Emergency Operating Costs,2022,SELF HELP INC,Education,BENEFIT PROGRAMS (RR),2021-07-01 00:00:00,2021-07-01 00:00:00,95494.1,95494.1
Child and Adult Care Food Program Emergency Operating Costs,2022,SOUTH MIDDLESEX OPPORTUNITY COUNCIL INC,Education,BENEFIT PROGRAMS (RR),2021-07-01 00:00:00,2021-07-01 00:00:00,55323.69,55323.69
Child and Adult Care Food Program Emergency Operating Costs,2022,SOUTH SHORE COMM ACTION,Education,BENEFIT PROGRAMS (RR),2021-07-01 00:00:00,2021-07-01 00:00:00,26673.04,26673.04
Child and Adult Care Food Program Emergency Operating Costs,2022,"SOUTH SHORE STARS, INC.",Education,BENEFIT PROGRAMS (RR),2021-07-01 00:00:00,2021-07-01 00:00:00,22305.72,22305.72
Child and Adult Care Food Program Emergency Operating Costs,2022,SOUTHEASTERN MASSACHUSETTS EDU,Education,BENEFIT PROGRAMS (RR),2021-07-01 00:00:00,2021-07-01 00:00:00,7913.12,7913.12
Child and Adult Care Food Program Emergency Operating Costs,2022,SPRINGFIELD DAY NURSERY CORP,Education,BENEFIT PROGRAMS (RR),2021-07-01 00:00:00,2021-07-01 00:00:00,59530.24,59530.24
Child and Adult Care Food Program Emergency Operating Costs,2022,SPRINGFIELD PARTNERS FOR,Education,BENEFIT PROGRAMS (RR),2021-07-01 00:00:00,2021-07-01 00:00:00,14520.98,14520.98
Child and Adult Care Food Program Emergency Operating Costs,2022,ST MARYS CTR FOR WOMEN & CHILDREN INC,Education,BENEFIT PROGRAMS (RR),2021-07-01 00:00:00,2021-07-01 00:00:00,219.18,219.18
Child and Adult Care Food Program Emergency Operating Costs,2022,THE SALVATION ARMY,Education,BENEFIT PROGRAMS (RR),2021-07-01 00:00:00,2021-07-01 00:00:00,5047.65,5047.65
Child and Adult Care Food Program Emergency Operating Costs,2022,TOWN OF CONWAY,Education,BENEFIT PROGRAMS (RR),2021-07-01 00:00:00,2021-07-01 00:00:00,277.36,277.36
Child and Adult Care Food Program Emergency Operating Costs,2022,TOWN OF DEERFIELD,Education,BENEFIT PROGRAMS (RR),2021-07-01 00:00:00,2021-07-01 00:00:00,393.48,393.48
Child and Adult Care Food Program Emergency Operating Costs,2022,TOWN OF SOUTHBRIDGE,Education,BENEFIT PROGRAMS (RR),2021-07-01 00:00:00,2021-07-01 00:00:00,951.02,951.02
Child and Adult Care Food Program Emergency Operating Costs,2022,TOWN OF SUNDERLAND,Education,BENEFIT PROGRAMS (RR),2021-07-01 00:00:00,2021-07-01 00:00:00,296.51,296.51
Child and Adult Care Food Program Emergency Operating Costs,2022,TOWN OF WHATELY,Education,BENEFIT PROGRAMS (RR),2021-07-01 00:00:00,2021-07-01 00:00:00,231.46,231.46
Child and Adult Care Food Program Emergency Operating Costs,2022,TRITON REGIONAL SCHOOL DISTRICT,Education,BENEFIT PROGRAMS (RR),2021-07-01 00:00:00,2021-07-01 00:00:00,7823.6,7823.6
Child and Adult Care Food Program Emergency Operating Costs,2022,TRIUMPH INC,Education,BENEFIT PROGRAMS (RR),2021-07-01 00:00:00,2021-07-01 00:00:00,39364.43,39364.43
Child and Adult Care Food Program Emergency Operating Costs,2022,VALLEY OPPORTUNITY COUNCIL INC,Education,BENEFIT PROGRAMS (RR),2021-07-01 00:00:00,2021-07-01 00:00:00,58186.87,58186.87
Child and Adult Care Food Program Emergency Operating Costs,2022,"VILAJ LAJWA ADHC, LLC",Education,BENEFIT PROGRAMS (RR),2021-07-01 00:00:00,2021-07-01 00:00:00,6216.54,6216.54
Child and Adult Care Food Program Emergency Operating Costs,2022,WALTHAM BOYS & GIRLS CLUB INC,Education,BENEFIT PROGRAMS (RR),2021-07-01 00:00:00,2021-07-01 00:00:00,8898.19,8898.19
Child and Adult Care Food Program Emergency Operating Costs,2022,WORCESTER COMMUNITY ACTION,Education,BENEFIT PROGRAMS (RR),2021-07-01 00:00:00,2021-07-01 00:00:00,24376.89,24376.89
Child and Adult Care Food Program Emergency Operating Costs,2022,WORCESTER COMPREHENSIVE ED & CARE INC,Education,BENEFIT PROGRAMS (RR),2021-07-01 00:00:00,2021-07-01 00:00:00,10016.79,10016.79
Child and Adult Care Food Program Emergency Operating Costs,2022,YMCA OF CENTRAL MASSACHUSETTS,Education,BENEFIT PROGRAMS (RR),2021-07-01 00:00:00,2021-07-01 00:00:00,49873.46,49873.46
Child and Adult Care Food Program Emergency Operating Costs,2022,YMCA OF GREATER,Education,BENEFIT PROGRAMS (RR),2021-07-01 00:00:00,2021-07-01 00:00:00,50334.33,50334.33
Child and Adult Care Food Program Emergency Operating Costs,2022,YMCA OF GREATER BOSTON,Education,BENEFIT PROGRAMS (RR),2021-07-01 00:00:00,2021-07-01 00:00:00,115599.68,115599.68
Child and Adult Care Food Program Emergency Operating Costs,2022,YMCA OF THE NORTH SHORE INC,Education,BENEFIT PROGRAMS (RR),2021-07-01 00:00:00,2021-07-01 00:00:00,17951.72,17951.72
Child and Adult Care Food Program Emergency Operating Costs,2022,YOURS FOR CHILDREN,Education,BENEFIT PROGRAMS (RR),2021-07-01 00:00:00,2021-07-01 00:00:00,682506.1299999999,682506.1299999999
Child and Adult Care Food Program Emergency Operating Costs,2022,"YWCA NORTHEASTERN MASSACHUSETTTS, INC.",Education,BENEFIT PROGRAMS (RR),2021-07-01 00:00:00,2021-07-01 00:00:00,9541.01,9541.01
Child Care and Development Block Grant - State,2021,CARES Stipend Payments,Education,BENEFIT PROGRAMS (RR),2020-07-01 00:00:00,2020-12-31 00:00:00,20493500,20493500
Child Care and Development Block Grant - State,2021,CARES Stipend Payments,Education,PURCHASED CLIENT/PROGRAM SVCS (MM),2020-07-01 00:00:00,2020-12-31 00:00:00,11506500,11506500
Child Care and Development Block Grant - State,2021,COVID-19 Parent Fees,Education,BENEFIT PROGRAMS (RR),2020-07-01 00:00:00,2020-11-30 00:00:00,1000000,1000000
Child Care and Development Block Grant - State,2021,COVID-19 Parent Fees,Education,PURCHASED CLIENT/PROGRAM SVCS (MM),2020-07-01 00:00:00,2020-11-30 00:00:00,12698950,12698950
Child Care Stabilization Funding,2022,,Education,PURCHASED CLIENT/PROGRAM SVCS (MM),,,3102157.49,0
Child Care Stabilization Funding,2022,"ACRE FAMILY CHILD CARE, INC",Education,PURCHASED CLIENT/PROGRAM SVCS (MM),2021-07-01 00:00:00,2022-01-31 00:00:00,103889.5,103889.5
Child Care Stabilization Funding,2022,BETHEL CHILD CARE SERVICES INC,Education,PURCHASED CLIENT/PROGRAM SVCS (MM),2021-07-01 00:00:00,2022-01-31 00:00:00,161000,161000
Child Care Stabilization Funding,2022,BEVERLY CHILDRENS LEARNING CTR INC,Education,PURCHASED CLIENT/PROGRAM SVCS (MM),2021-07-01 00:00:00,2022-01-31 00:00:00,17250,17250
Child Care Stabilization Funding,2022,BOSTON CHINATOWN NEIGHBORHOOD CENTER,Education,PURCHASED CLIENT/PROGRAM SVCS (MM),2021-07-01 00:00:00,2022-01-31 00:00:00,3500,3500
Child Care Stabilization Funding,2022,CATHOLIC CHARITABLE BUREAU OF,Education,PURCHASED CLIENT/PROGRAM SVCS (MM),2021-07-01 00:00:00,2022-01-31 00:00:00,102925,102925
Child Care Stabilization Funding,2022,"CHILD CARE OF THE BERKSHIRES, INC.",Education,PURCHASED CLIENT/PROGRAM SVCS (MM),2021-07-01 00:00:00,2022-01-31 00:00:00,31785,31785
Child Care Stabilization Funding,2022,CHILD DEVELOPMENT AND EDUCATION INC,Education,PURCHASED CLIENT/PROGRAM SVCS (MM),2021-07-01 00:00:00,2022-01-31 00:00:00,396400,396400
Child Care Stabilization Funding,2022,CHILDRENS AID & FAMILY SERVICE INC,Education,PURCHASED CLIENT/PROGRAM SVCS (MM),2021-07-01 00:00:00,2022-01-31 00:00:00,16585,16585
Child Care Stabilization Funding,2022,"CHILDREN'S SERVICES OF ROXBURY, INC.",Education,PURCHASED CLIENT/PROGRAM SVCS (MM),2021-07-01 00:00:00,2022-01-31 00:00:00,110500,110500
Child Care Stabilization Funding,2022,CITIZENS FOR CITIZENS INC,Education,PURCHASED CLIENT/PROGRAM SVCS (MM),2021-07-01 00:00:00,2022-01-31 00:00:00,28500,28500
Child Care Stabilization Funding,2022,"CLARENDON EARLY EDUCATION SERVICES, INC.",Education,PURCHASED CLIENT/PROGRAM SVCS (MM),2021-07-01 00:00:00,2022-01-31 00:00:00,162500,162500
Child Care Stabilization Funding,2022,COMMUNITY ACTION INC,Education,PURCHASED CLIENT/PROGRAM SVCS (MM),2021-07-01 00:00:00,2022-01-31 00:00:00,32300,32300
Child Care Stabilization Funding,2022,COMMUNITY DAY CARE CENTER OF LAWRENCE,Education,PURCHASED CLIENT/PROGRAM SVCS (MM),2021-07-01 00:00:00,2022-01-31 00:00:00,108000,108000
Child Care Stabilization Funding,2022,COMMUNITY TEAMWORK  INC,Education,PURCHASED CLIENT/PROGRAM SVCS (MM),2021-07-01 00:00:00,2022-01-31 00:00:00,109500,109500
Child Care Stabilization Funding,2022,ENABLE INC,Education,PURCHASED CLIENT/PROGRAM SVCS (MM),2021-07-01 00:00:00,2022-01-31 00:00:00,108075,108075
Child Care Stabilization Funding,2022,GUIDEHOUSE HOLDING CORP,Education,CONSULTANT SVCS (TO DEPTS) (HH),2021-10-01 00:00:00,2021-10-31 00:00:00,-3012499.8,404160.2
Child Care Stabilization Funding,2022,GUIDEHOUSE HOLDLING CORP,Education,CONSULTANT SVCS (TO DEPTS) (HH),2021-08-01 00:00:00,2021-09-30 00:00:00,4570760.2,820820.2
Child Care Stabilization Funding,2022,GUILD OF ST AGNESOF WORCESTER,Education,PURCHASED CLIENT/PROGRAM SVCS (MM),2021-07-01 00:00:00,2022-01-31 00:00:00,164500,164500
Child Care Stabilization Funding,2022,Indirect Costs,Education,ADMINISTRATIVE EXPENSES (EE),,,14550,14550
Child Care Stabilization Funding,2022,Interaccount transfer,Education,CONSULTANT SVCS (TO DEPTS) (HH),2021-11-04 00:00:00,2021-11-04 00:00:00,416660,416660
Child Care Stabilization Funding,2022,JAMAICA PLAIN NEIGHBORHOOD DEVEL CORP,Education,PURCHASED CLIENT/PROGRAM SVCS (MM),2021-07-01 00:00:00,2022-01-31 00:00:00,70132,70132
Child Care Stabilization Funding,2022,KIDS UNLIMITED SERVICES INC,Education,PURCHASED CLIENT/PROGRAM SVCS (MM),2021-07-01 00:00:00,2022-01-31 00:00:00,102000,102000
Child Care Stabilization Funding,2022,KID-START INCORPORATED,Education,PURCHASED CLIENT/PROGRAM SVCS (MM),2021-07-01 00:00:00,2022-01-31 00:00:00,69994,69994
Child Care Stabilization Funding,2022,MAKING OPPORTUNITY COUNT INC,Education,PURCHASED CLIENT/PROGRAM SVCS (MM),2021-07-01 00:00:00,2022-01-31 00:00:00,9000,9000
Child Care Stabilization Funding,2022,MTX GROUP INC,Education,IT Non-Payroll Expenses (UU),2021-07-02 00:00:00,2022-02-13 00:00:00,4176860.1799999997,1840234.1799999992
Child Care Stabilization Funding,2022,"NURTURY, INC.",Education,PURCHASED CLIENT/PROGRAM SVCS (MM),2021-07-01 00:00:00,2022-01-31 00:00:00,169000,169000
Child Care Stabilization Funding,2022,PAKACHOAG ACRES DAY CARE CTR,Education,PURCHASED CLIENT/PROGRAM SVCS (MM),2021-07-01 00:00:00,2022-01-31 00:00:00,60500,60500
Child Care Stabilization Funding,2022,"Payees under $50,000",Education,PURCHASED CLIENT/PROGRAM SVCS (MM),2021-07-01 00:00:00,2022-01-31 00:00:00,121447.75,121447.75
Child Care Stabilization Funding,2022,"PROJECT HOPE BOSTON, INC",Education,PURCHASED CLIENT/PROGRAM SVCS (MM),2021-07-01 00:00:00,2022-01-31 00:00:00,37500,37500
Child Care Stabilization Funding,2022,SOUTH MIDDLESEX OPPORTUNITY COUNCIL INC,Education,PURCHASED CLIENT/PROGRAM SVCS (MM),2021-07-01 00:00:00,2022-01-31 00:00:00,55940,55940
Child Care Stabilization Funding,2022,"SOUTH SHORE STARS, INC.",Education,PURCHASED CLIENT/PROGRAM SVCS (MM),2021-07-01 00:00:00,2022-01-31 00:00:00,17920,17920
Child Care Stabilization Funding,2022,SPRINGFIELD DAY NURSERY CORP,Education,PURCHASED CLIENT/PROGRAM SVCS (MM),2021-07-01 00:00:00,2022-01-31 00:00:00,65500,65500
Child Care Stabilization Funding,2022,SPRUCE TECHNOLOGY INC,Education,CONSULTANT SVCS (TO DEPTS) (HH),2021-07-01 00:00:00,2022-01-31 00:00:00,13494470.609999998,7493965.440000001
Child Care Stabilization Funding,2022,SPRUCE TECHNOLOGY INC,Education,STATE AID/POL SUB (PP),2021-07-01 00:00:00,2022-02-01 00:00:00,284999999.9999999,257071976.28999996
Child Care Stabilization Funding,2022,VALLEY OPPORTUNITY COUNCIL INC,Education,PURCHASED CLIENT/PROGRAM SVCS (MM),2021-07-01 00:00:00,2022-01-31 00:00:00,110600,110600
Child Care Stabilization Funding,2022,WORCESTER COMPREHENSIVE ED & CARE INC,Education,PURCHASED CLIENT/PROGRAM SVCS (MM),2021-07-01 00:00:00,2022-01-31 00:00:00,66653.26,66653.26
Child Care Stabilization Funding,2022,YMCA OF CENTRAL MASSACHUSETTS,Education,PURCHASED CLIENT/PROGRAM SVCS (MM),2021-07-01 00:00:00,2022-01-31 00:00:00,34446,34446
Child Nutrition and National School Lunch Programs,2020,18 DEGREES INC,Education,BENEFIT PROGRAMS (RR),2020-03-27 00:00:00,2020-03-27 00:00:00,3457.27,3457.27
Child Nutrition and National School Lunch Programs,2020,"A JOYFUL ADULT HEA CARE CENTER, LLC",Education,BENEFIT PROGRAMS (RR),2020-03-27 00:00:00,2020-03-27 00:00:00,12280.96,12280.96
Child Nutrition and National School Lunch Programs,2020,"ACTIVE LIFE HEALTH CARE MANAGEMENT, LLC",Education,BENEFIT PROGRAMS (RR),2020-03-27 00:00:00,2020-03-27 00:00:00,28442.86,28442.86
Child Nutrition and National School Lunch Programs,2020,ACTON-BOXBOROUGH,Education,BENEFIT PROGRAMS (RR),2020-03-27 00:00:00,2020-03-27 00:00:00,95502.16,95502.16
Child Nutrition and National School Lunch Programs,2020,ADULT DAY HEALTH INC,Education,BENEFIT PROGRAMS (RR),2020-03-27 00:00:00,2020-03-27 00:00:00,11635.220000000001,11635.220000000001
Child Nutrition and National School Lunch Programs,2020,ALMA DEL MAR CHARTER SCHOOL,Education,BENEFIT PROGRAMS (RR),2020-03-27 00:00:00,2020-03-27 00:00:00,102457.5,102457.5
Child Nutrition and National School Lunch Programs,2020,AMHERST-PELHAM RSD,Education,BENEFIT PROGRAMS (RR),2020-03-27 00:00:00,2020-03-27 00:00:00,92870.94,92870.94
Child Nutrition and National School Lunch Programs,2020,ARCHWAY INC,Education,BENEFIT PROGRAMS (RR),2020-03-27 00:00:00,2020-03-27 00:00:00,3629.8199999999997,3629.8199999999997
Child Nutrition and National School Lunch Programs,2020,ASHBURNHAM-WESTMINSTER,Education,BENEFIT PROGRAMS (RR),2020-03-27 00:00:00,2020-03-27 00:00:00,6793.28,6793.28
Child Nutrition and National School Lunch Programs,2020,ASPIRE DEVELOPMENTAL SERVICES INC,Education,BENEFIT PROGRAMS (RR),2020-03-27 00:00:00,2020-03-27 00:00:00,1204.54,1204.54
Child Nutrition and National School Lunch Programs,2020,ASSABET VALLEY   RVSD,Education,BENEFIT PROGRAMS (RR),2020-03-27 00:00:00,2020-03-27 00:00:00,3544.32,3544.32
Child Nutrition and National School Lunch Programs,2020,ATHOL-ROYALSTON REGIONAL,Education,BENEFIT PROGRAMS (RR),2020-03-27 00:00:00,2020-03-27 00:00:00,218912.85,218912.85
Child Nutrition and National School Lunch Programs,2020,ATLANTIS CHARTER SCHOOL,Education,BENEFIT PROGRAMS (RR),2020-03-27 00:00:00,2020-03-27 00:00:00,2907,2907
Child Nutrition and National School Lunch Programs,2020,AYER-SHIRLEY REGIONAL SCHOOL DISTR,Education,BENEFIT PROGRAMS (RR),2020-03-27 00:00:00,2020-03-27 00:00:00,43440.71000000001,43440.71000000001
Child Nutrition and National School Lunch Programs,2020,BAY STATE COMMUNITY SERVICES INC,Education,BENEFIT PROGRAMS (RR),2020-03-27 00:00:00,2020-03-27 00:00:00,9098.400000000001,9098.400000000001
Child Nutrition and National School Lunch Programs,2020,BERKSHIRE HILLS REGIONAL SCHOOL DISTRICT,Education,BENEFIT PROGRAMS (RR),2020-03-27 00:00:00,2020-03-27 00:00:00,93415.07,93415.07
Child Nutrition and National School Lunch Programs,2020,BERLIN BOYLSTON REG SCHOOL DIST,Education,BENEFIT PROGRAMS (RR),2020-03-27 00:00:00,2020-03-27 00:00:00,6713.980000000001,6713.980000000001
Child Nutrition and National School Lunch Programs,2020,BEST CHOICE ADULT DAY HEALTH CARE INC,Education,BENEFIT PROGRAMS (RR),2020-03-27 00:00:00,2020-03-27 00:00:00,22025.1,22025.1
Child Nutrition and National School Lunch Programs,2020,BEVERLY CHILDRENS LEARNING CTR INC,Education,BENEFIT PROGRAMS (RR),2020-03-27 00:00:00,2020-03-27 00:00:00,9462.77,9462.77
Child Nutrition and National School Lunch Programs,2020,"BEYOND ADULT DAY HEALTH CENTER, LLC",Education,BENEFIT PROGRAMS (RR),2020-03-27 00:00:00,2020-03-27 00:00:00,16348.5,16348.5
Child Nutrition and National School Lunch Programs,2020,BLACKSTONE VALLEY VOC RSD,Education,BENEFIT PROGRAMS (RR),2020-03-27 00:00:00,2020-03-27 00:00:00,2112.96,2112.96
Child Nutrition and National School Lunch Programs,2020,BLACKSTONE-MILLVILLE REGIONAL SCHL DIST,Education,BENEFIT PROGRAMS (RR),2020-03-27 00:00:00,2020-03-27 00:00:00,185472.08,185472.08
Child Nutrition and National School Lunch Programs,2020,BOSTON MEDICAL CENTER,Education,BENEFIT PROGRAMS (RR),2020-03-27 00:00:00,2020-03-27 00:00:00,580.12,580.12
Child Nutrition and National School Lunch Programs,2020,BOSTON PREPARATORY,Education,BENEFIT PROGRAMS (RR),2020-03-27 00:00:00,2020-03-27 00:00:00,2433.8999999999996,2433.8999999999996
Child Nutrition and National School Lunch Programs,2020,BOSTON RENAISSANCE CHARTER,Education,BENEFIT PROGRAMS (RR),2020-03-27 00:00:00,2020-03-27 00:00:00,23417.46,23417.46
Child Nutrition and National School Lunch Programs,2020,BOYS & GIRLS CLUB,Education,BENEFIT PROGRAMS (RR),2020-03-27 00:00:00,2020-03-27 00:00:00,214567.2,214567.2
Child Nutrition and National School Lunch Programs,2020,BOYS & GIRLS CLUB OF GREATER,Education,BENEFIT PROGRAMS (RR),2020-03-27 00:00:00,2020-03-27 00:00:00,303352.87,303352.87
Child Nutrition and National School Lunch Programs,2020,BOYS & GIRLS CLUBS OF METRO SOUTH,Education,BENEFIT PROGRAMS (RR),2020-03-27 00:00:00,2020-03-27 00:00:00,24734.269999999997,24734.269999999997
Child Nutrition and National School Lunch Programs,2020,"BOYS AND GIRLS CLUB OF DORCHESTER, INC.",Education,BENEFIT PROGRAMS (RR),2020-03-27 00:00:00,2020-03-27 00:00:00,16295.150000000001,16295.150000000001
Child Nutrition and National School Lunch Programs,2020,BOYS AND GIRLS CLUB OF GREATER LOWELL,Education,BENEFIT PROGRAMS (RR),2020-03-27 00:00:00,2020-03-27 00:00:00,64040.75,64040.75
Child Nutrition and National School Lunch Programs,2020,BOYS AND GIRLS CLUBS OF,Education,BENEFIT PROGRAMS (RR),2020-03-27 00:00:00,2020-03-27 00:00:00,57288.44,57288.44
Child Nutrition and National School Lunch Programs,2020,BRIDGEWATER-RAYNHAM REGIONAL,Education,BENEFIT PROGRAMS (RR),2020-03-27 00:00:00,2020-03-27 00:00:00,45195.76,45195.76
Child Nutrition and National School Lunch Programs,2020,CARDINAL CUSHING CENTERS INC,Education,BENEFIT PROGRAMS (RR),2020-03-27 00:00:00,2020-03-27 00:00:00,19409.020000000004,19409.020000000004
Child Nutrition and National School Lunch Programs,2020,CATHOLIC CHARITABLE BUREAU OF,Education,BENEFIT PROGRAMS (RR),2020-03-27 00:00:00,2020-03-27 00:00:00,12592.81,12592.81
Child Nutrition and National School Lunch Programs,2020,CENTER FOR HUMAN,Education,BENEFIT PROGRAMS (RR),2020-03-27 00:00:00,2020-03-27 00:00:00,5713.780000000001,5713.780000000001
Child Nutrition and National School Lunch Programs,2020,CENTRAL BERKSHIRE REGIONAL SCHL DIST,Education,BENEFIT PROGRAMS (RR),2020-03-27 00:00:00,2020-03-27 00:00:00,9286.8,9286.8
Child Nutrition and National School Lunch Programs,2020,"CHILD CARE OF THE BERKSHIRES, INC.",Education,BENEFIT PROGRAMS (RR),2020-03-27 00:00:00,2020-03-27 00:00:00,7685.469999999999,7685.469999999999
Child Nutrition and National School Lunch Programs,2020,CHILD DEVELOPMENT HEALTH & NUTRITION INC,Education,BENEFIT PROGRAMS (RR),2020-03-27 00:00:00,2020-03-27 00:00:00,153408.25,153408.25
Child Nutrition and National School Lunch Programs,2020,CHILDRENS AID & FAMILY SERVICE INC,Education,BENEFIT PROGRAMS (RR),2020-03-27 00:00:00,2020-03-27 00:00:00,4428.09,4428.09
Child Nutrition and National School Lunch Programs,2020,CHURCH OF THE HOLY SPIRIT,Education,BENEFIT PROGRAMS (RR),2020-03-27 00:00:00,2020-03-27 00:00:00,239088.07999999996,239088.07999999996
Child Nutrition and National School Lunch Programs,2020,CITIZENS INN INC,Education,BENEFIT PROGRAMS (RR),2020-03-27 00:00:00,2020-03-27 00:00:00,4729.7,4729.7
Child Nutrition and National School Lunch Programs,2020,CITY OF ATTLEBORO,Education,BENEFIT PROGRAMS (RR),2020-03-27 00:00:00,2020-03-27 00:00:00,11438.96,11438.96
Child Nutrition and National School Lunch Programs,2020,CITY OF BEVERLY,Education,BENEFIT PROGRAMS (RR),2020-03-27 00:00:00,2020-03-27 00:00:00,117806.48999999999,117806.48999999999
Child Nutrition and National School Lunch Programs,2020,CITY OF BOSTON,Education,BENEFIT PROGRAMS (RR),2020-03-27 00:00:00,2020-03-27 00:00:00,3275659.42,3275659.42
Child Nutrition and National School Lunch Programs,2020,CITY OF BROCKTON,Education,BENEFIT PROGRAMS (RR),2020-03-27 00:00:00,2020-03-27 00:00:00,1290754.52,1290754.52
Child Nutrition and National School Lunch Programs,2020,CITY OF CAMBRIDGE,Education,BENEFIT PROGRAMS (RR),2020-03-27 00:00:00,2020-03-27 00:00:00,71401.73,71401.73
Child Nutrition and National School Lunch Programs,2020,CITY OF CHELSEA,Education,BENEFIT PROGRAMS (RR),2020-03-27 00:00:00,2020-03-27 00:00:00,1109887.11,1109887.11
Child Nutrition and National School Lunch Programs,2020,CITY OF CHICOPEE,Education,BENEFIT PROGRAMS (RR),2020-03-27 00:00:00,2020-03-27 00:00:00,985408.4299999999,985408.4299999999
Child Nutrition and National School Lunch Programs,2020,CITY OF EASTHAMPTON,Education,BENEFIT PROGRAMS (RR),2020-03-27 00:00:00,2020-03-27 00:00:00,103774.8,103774.8
Child Nutrition and National School Lunch Programs,2020,CITY OF EVERETT,Education,BENEFIT PROGRAMS (RR),2020-03-27 00:00:00,2020-03-27 00:00:00,194963.84,194963.84
Child Nutrition and National School Lunch Programs,2020,CITY OF FALL RIVER,Education,BENEFIT PROGRAMS (RR),2020-03-27 00:00:00,2020-03-27 00:00:00,1136289.2999999998,1136289.2999999998
Child Nutrition and National School Lunch Programs,2020,CITY OF FITCHBURG,Education,BENEFIT PROGRAMS (RR),2020-03-27 00:00:00,2020-03-27 00:00:00,446469.68,446469.68
Child Nutrition and National School Lunch Programs,2020,CITY OF FRAMINGHAM,Education,BENEFIT PROGRAMS (RR),2020-03-27 00:00:00,2020-03-27 00:00:00,129905.54,129905.54
Child Nutrition and National School Lunch Programs,2020,CITY OF GARDNER,Education,BENEFIT PROGRAMS (RR),2020-03-27 00:00:00,2020-03-27 00:00:00,173918.75999999998,173918.75999999998
Child Nutrition and National School Lunch Programs,2020,CITY OF GLOUCESTER,Education,BENEFIT PROGRAMS (RR),2020-03-27 00:00:00,2020-03-27 00:00:00,10505.8,10505.8
Child Nutrition and National School Lunch Programs,2020,CITY OF HAVERHILL,Education,BENEFIT PROGRAMS (RR),2020-03-27 00:00:00,2020-03-27 00:00:00,455448.63999999996,455448.63999999996
Child Nutrition and National School Lunch Programs,2020,CITY OF HOLYOKE,Education,BENEFIT PROGRAMS (RR),2020-03-27 00:00:00,2020-03-27 00:00:00,901666.2800000003,901666.2800000003
Child Nutrition and National School Lunch Programs,2020,CITY OF LAWRENCE,Education,BENEFIT PROGRAMS (RR),2020-03-27 00:00:00,2020-03-27 00:00:00,504011.27,504011.27
Child Nutrition and National School Lunch Programs,2020,CITY OF LEOMINSTER,Education,BENEFIT PROGRAMS (RR),2020-03-27 00:00:00,2020-03-27 00:00:00,586339.28,586339.28
Child Nutrition and National School Lunch Programs,2020,CITY OF LOWELL,Education,BENEFIT PROGRAMS (RR),2020-03-27 00:00:00,2020-03-27 00:00:00,1541236.8600000003,1541236.8600000003
Child Nutrition and National School Lunch Programs,2020,CITY OF LYNN,Education,BENEFIT PROGRAMS (RR),2020-03-27 00:00:00,2020-03-27 00:00:00,538748.61,538748.61
Child Nutrition and National School Lunch Programs,2020,CITY OF MALDEN,Education,BENEFIT PROGRAMS (RR),2020-03-27 00:00:00,2020-03-27 00:00:00,255494.24999999997,255494.24999999997
Child Nutrition and National School Lunch Programs,2020,CITY OF MARLBOROUGH,Education,BENEFIT PROGRAMS (RR),2020-03-27 00:00:00,2020-03-27 00:00:00,348641.56,348641.56
Child Nutrition and National School Lunch Programs,2020,CITY OF MELROSE,Education,BENEFIT PROGRAMS (RR),2020-03-27 00:00:00,2020-03-27 00:00:00,42190.16,42190.16
Child Nutrition and National School Lunch Programs,2020,CITY OF METHUEN,Education,BENEFIT PROGRAMS (RR),2020-03-27 00:00:00,2020-03-27 00:00:00,185465.89,185465.89
Child Nutrition and National School Lunch Programs,2020,CITY OF NEW BEDFORD,Education,BENEFIT PROGRAMS (RR),2020-03-27 00:00:00,2020-03-27 00:00:00,464382.18999999994,464382.18999999994
Child Nutrition and National School Lunch Programs,2020,CITY OF NEWBURYPORT,Education,BENEFIT PROGRAMS (RR),2020-03-27 00:00:00,2020-03-27 00:00:00,11570.16,11570.16
Child Nutrition and National School Lunch Programs,2020,CITY OF NEWTON,Education,BENEFIT PROGRAMS (RR),2020-03-27 00:00:00,2020-03-27 00:00:00,100479.20000000001,100479.20000000001
Child Nutrition and National School Lunch Programs,2020,CITY OF NORTH ADAMS,Education,BENEFIT PROGRAMS (RR),2020-03-27 00:00:00,2020-03-27 00:00:00,245940.46000000002,245940.46000000002
Child Nutrition and National School Lunch Programs,2020,CITY OF NORTHAMPTON,Education,BENEFIT PROGRAMS (RR),2020-03-27 00:00:00,2020-03-27 00:00:00,90888.19,90888.19
Child Nutrition and National School Lunch Programs,2020,CITY OF PEABODY,Education,BENEFIT PROGRAMS (RR),2020-03-27 00:00:00,2020-03-27 00:00:00,364332.6,364332.6
Child Nutrition and National School Lunch Programs,2020,CITY OF PITTSFIELD,Education,BENEFIT PROGRAMS (RR),2020-03-27 00:00:00,2020-03-27 00:00:00,277817.78,277817.78
Child Nutrition and National School Lunch Programs,2020,CITY OF QUINCY,Education,BENEFIT PROGRAMS (RR),2020-03-27 00:00:00,2020-03-27 00:00:00,285598.32,285598.32
Child Nutrition and National School Lunch Programs,2020,CITY OF REVERE,Education,BENEFIT PROGRAMS (RR),2020-03-27 00:00:00,2020-03-27 00:00:00,386574.23,386574.23
Child Nutrition and National School Lunch Programs,2020,CITY OF SALEM,Education,BENEFIT PROGRAMS (RR),2020-03-27 00:00:00,2020-03-27 00:00:00,545320.5800000001,545320.5800000001
Child Nutrition and National School Lunch Programs,2020,CITY OF SOMERVILLE,Education,BENEFIT PROGRAMS (RR),2020-03-27 00:00:00,2020-03-27 00:00:00,221617.22999999998,221617.22999999998
Child Nutrition and National School Lunch Programs,2020,CITY OF SPRINGFIELD,Education,BENEFIT PROGRAMS (RR),2020-03-27 00:00:00,2020-03-27 00:00:00,4380496.03,4380496.03
Child Nutrition and National School Lunch Programs,2020,CITY OF TAUNTON,Education,BENEFIT PROGRAMS (RR),2020-03-27 00:00:00,2020-03-27 00:00:00,355506.70000000007,355506.70000000007
Child Nutrition and National School Lunch Programs,2020,CITY OF WALTHAM,Education,BENEFIT PROGRAMS (RR),2020-03-27 00:00:00,2020-03-27 00:00:00,77718,77718
Child Nutrition and National School Lunch Programs,2020,CITY OF WESTFIELD,Education,BENEFIT PROGRAMS (RR),2020-03-27 00:00:00,2020-03-27 00:00:00,88826.69,88826.69
Child Nutrition and National School Lunch Programs,2020,CITY OF WOBURN,Education,BENEFIT PROGRAMS (RR),2020-03-27 00:00:00,2020-03-27 00:00:00,127289.23999999998,127289.23999999998
Child Nutrition and National School Lunch Programs,2020,CITY OF WORCESTER,Education,BENEFIT PROGRAMS (RR),2020-03-27 00:00:00,2020-03-27 00:00:00,680824.3200000001,680824.3200000001
Child Nutrition and National School Lunch Programs,2020,"CLARENDON EARLY EDUCATION SERVICES, INC.",Education,BENEFIT PROGRAMS (RR),2020-03-27 00:00:00,2020-03-27 00:00:00,88450.5,88450.5
Child Nutrition and National School Lunch Programs,2020,COMMUNITY ACTION INC,Education,BENEFIT PROGRAMS (RR),2020-03-27 00:00:00,2020-03-27 00:00:00,2224.97,2224.97
Child Nutrition and National School Lunch Programs,2020,"COMMUNITY ACTION PIONEER VALLEY, INC.",Education,BENEFIT PROGRAMS (RR),2020-03-27 00:00:00,2020-03-27 00:00:00,1753.71,1753.71
Child Nutrition and National School Lunch Programs,2020,COMMUNITY ACTION PROGRAMS,Education,BENEFIT PROGRAMS (RR),2020-03-27 00:00:00,2020-03-27 00:00:00,1275.88,1275.88
Child Nutrition and National School Lunch Programs,2020,COMMUNITY DAY CARE CENTER OF LAWRENCE,Education,BENEFIT PROGRAMS (RR),2020-03-27 00:00:00,2020-03-27 00:00:00,43747.28,43747.28
Child Nutrition and National School Lunch Programs,2020,CRAYON CAMPUS INC.,Education,BENEFIT PROGRAMS (RR),2020-03-27 00:00:00,2020-03-27 00:00:00,10028.899999999998,10028.899999999998
Child Nutrition and National School Lunch Programs,2020,"CRYSTAL SPRINGS, INC.",Education,BENEFIT PROGRAMS (RR),2020-03-27 00:00:00,2020-03-27 00:00:00,15888.1,15888.1
Child Nutrition and National School Lunch Programs,2020,CUTCHINS PROGRAMS,Education,BENEFIT PROGRAMS (RR),2020-03-27 00:00:00,2020-03-27 00:00:00,13492.529999999999,13492.529999999999
Child Nutrition and National School Lunch Programs,2020,DENNIS-YARMOUTH RSD,Education,BENEFIT PROGRAMS (RR),2020-03-27 00:00:00,2020-03-27 00:00:00,523760.15,523760.15
Child Nutrition and National School Lunch Programs,2020,DIGHTON-REHOBOTH REGIONAL SCHL DIST,Education,BENEFIT PROGRAMS (RR),2020-03-27 00:00:00,2020-03-27 00:00:00,28757.839999999997,28757.839999999997
Child Nutrition and National School Lunch Programs,2020,DIMOCK COMMUNITY HEALTH CTR,Education,BENEFIT PROGRAMS (RR),2020-03-27 00:00:00,2020-03-27 00:00:00,3396.14,3396.14
Child Nutrition and National School Lunch Programs,2020,DOCTOR FRANKLIN PERKINS SCHOOL,Education,BENEFIT PROGRAMS (RR),2020-03-27 00:00:00,2020-03-27 00:00:00,22880.46,22880.46
Child Nutrition and National School Lunch Programs,2020,DUDLEY CHARLTON REGIONAL,Education,BENEFIT PROGRAMS (RR),2020-03-27 00:00:00,2020-03-27 00:00:00,162976.24,162976.24
Child Nutrition and National School Lunch Programs,2020,ESSEX N S AGRCLTRL AND TECH SCHL DIST,Education,BENEFIT PROGRAMS (RR),2020-03-27 00:00:00,2020-03-27 00:00:00,4140.72,4140.72
Child Nutrition and National School Lunch Programs,2020,EVERGREEN CENTER INC,Education,BENEFIT PROGRAMS (RR),2020-03-27 00:00:00,2020-03-27 00:00:00,49873.44,49873.44
Child Nutrition and National School Lunch Programs,2020,EXCEL ACADEMY CHARTER SCHOOL,Education,BENEFIT PROGRAMS (RR),2020-03-27 00:00:00,2020-03-27 00:00:00,24434.720000000005,24434.720000000005
Child Nutrition and National School Lunch Programs,2020,FALL RIVER DEACONESS HOME,Education,BENEFIT PROGRAMS (RR),2020-03-27 00:00:00,2020-03-27 00:00:00,15042.4,15042.4
Child Nutrition and National School Lunch Programs,2020,FARMINGTON RIVER REG SCHL DIST,Education,BENEFIT PROGRAMS (RR),2020-03-27 00:00:00,2020-03-27 00:00:00,17134.480000000003,17134.480000000003
Child Nutrition and National School Lunch Programs,2020,FOR KIDS ONLY AFTER SCHOOL INC,Education,BENEFIT PROGRAMS (RR),2020-03-27 00:00:00,2020-03-27 00:00:00,105374.5,105374.5
Child Nutrition and National School Lunch Programs,2020,FOURTH PRESBYTERIAN CHURCH,Education,BENEFIT PROGRAMS (RR),2020-03-27 00:00:00,2020-03-27 00:00:00,23144.030000000002,23144.030000000002
Child Nutrition and National School Lunch Programs,2020,FRANCISCAN HOSPITAL FOR CHILDREN,Education,BENEFIT PROGRAMS (RR),2020-03-27 00:00:00,2020-03-27 00:00:00,4411.280000000001,4411.280000000001
Child Nutrition and National School Lunch Programs,2020,FRANKLIN COUNTY TECHNICAL SCHOOL,Education,BENEFIT PROGRAMS (RR),2020-03-27 00:00:00,2020-03-27 00:00:00,116451.35999999999,116451.35999999999
Child Nutrition and National School Lunch Programs,2020,FREETOWN LAKEVILLE REGIONAL,Education,BENEFIT PROGRAMS (RR),2020-03-27 00:00:00,2020-03-27 00:00:00,9661.68,9661.68
Child Nutrition and National School Lunch Programs,2020,FRIENDLY HOUSE INC,Education,BENEFIT PROGRAMS (RR),2020-03-27 00:00:00,2020-03-27 00:00:00,340458.85,340458.85
Child Nutrition and National School Lunch Programs,2020,FRONTIER REGIONAL SCHOOL DISTRICT,Education,BENEFIT PROGRAMS (RR),2020-03-27 00:00:00,2020-03-27 00:00:00,29398.559999999998,29398.559999999998
Child Nutrition and National School Lunch Programs,2020,GATEWAY REGIONAL SCHOOL DIST,Education,BENEFIT PROGRAMS (RR),2020-03-27 00:00:00,2020-03-27 00:00:00,17460.32,17460.32
Child Nutrition and National School Lunch Programs,2020,GILL MONTAGUE RSD,Education,BENEFIT PROGRAMS (RR),2020-03-27 00:00:00,2020-03-27 00:00:00,162844.57,162844.57
Child Nutrition and National School Lunch Programs,2020,GIRLS INCORPORATED OF LYNN,Education,BENEFIT PROGRAMS (RR),2020-03-27 00:00:00,2020-03-27 00:00:00,1961.33,1961.33
Child Nutrition and National School Lunch Programs,2020,GREATER FALL RIVER RE-CREATION,Education,BENEFIT PROGRAMS (RR),2020-03-27 00:00:00,2020-03-27 00:00:00,40000,40000
Child Nutrition and National School Lunch Programs,2020,GREATER LAWRENCE COMMUNITY,Education,BENEFIT PROGRAMS (RR),2020-03-27 00:00:00,2020-03-27 00:00:00,24802.76,24802.76
Child Nutrition and National School Lunch Programs,2020,GREATER LOWELL REGIONAL,Education,BENEFIT PROGRAMS (RR),2020-03-27 00:00:00,2020-03-27 00:00:00,575.7,575.7
Child Nutrition and National School Lunch Programs,2020,GROTON DUNSTABLE REGIONAL,Education,BENEFIT PROGRAMS (RR),2020-03-27 00:00:00,2020-03-27 00:00:00,2763.12,2763.12
Child Nutrition and National School Lunch Programs,2020,GUILD OF ST AGNESOF WORCESTER,Education,BENEFIT PROGRAMS (RR),2020-03-27 00:00:00,2020-03-27 00:00:00,10929.16,10929.16
Child Nutrition and National School Lunch Programs,2020,HAMPDEN-WILBRAHAM REG SCH DIST,Education,BENEFIT PROGRAMS (RR),2020-03-27 00:00:00,2020-03-27 00:00:00,14489.68,14489.68
Child Nutrition and National School Lunch Programs,2020,HAMPSHIRE R S D,Education,BENEFIT PROGRAMS (RR),2020-03-27 00:00:00,2020-03-27 00:00:00,10766.8,10766.8
Child Nutrition and National School Lunch Programs,2020,HAWLEMONT R S D,Education,BENEFIT PROGRAMS (RR),2020-03-27 00:00:00,2020-03-27 00:00:00,39119.350000000006,39119.350000000006
Child Nutrition and National School Lunch Programs,2020,HEALTHY DIRECTIONS INC,Education,BENEFIT PROGRAMS (RR),2020-03-27 00:00:00,2020-03-27 00:00:00,4053.94,4053.94
Child Nutrition and National School Lunch Programs,2020,HILLCREST EDUCATIONAL CTRS INC,Education,BENEFIT PROGRAMS (RR),2020-03-27 00:00:00,2020-03-27 00:00:00,50837.020000000004,50837.020000000004
Child Nutrition and National School Lunch Programs,2020,HOCKOMOCK YOUNG MENS CHRIS ASSOC INC,Education,BENEFIT PROGRAMS (RR),2020-03-27 00:00:00,2020-03-27 00:00:00,275218.73,275218.73
Child Nutrition and National School Lunch Programs,2020,HOLYOKE COMMUNITY CHARTER SCHL,Education,BENEFIT PROGRAMS (RR),2020-03-27 00:00:00,2020-03-27 00:00:00,37620,37620
Child Nutrition and National School Lunch Programs,2020,HOME FOR LITTLE WANDERERS INC,Education,BENEFIT PROGRAMS (RR),2020-03-27 00:00:00,2020-03-27 00:00:00,28534.86,28534.86
Child Nutrition and National School Lunch Programs,2020,HOOSAC VALLEY REGIONAL SCHOOL DISTRICT,Education,BENEFIT PROGRAMS (RR),2020-03-27 00:00:00,2020-03-27 00:00:00,87984.18,87984.18
Child Nutrition and National School Lunch Programs,2020,Interaccount transfer,Education,BENEFIT PROGRAMS (RR),2020-07-09 00:00:00,2020-07-09 00:00:00,36989394.809999995,36989394.809999995
Child Nutrition and National School Lunch Programs,2020,ITALIAN HOME FOR CHILDREN,Education,BENEFIT PROGRAMS (RR),2020-03-27 00:00:00,2020-03-27 00:00:00,21475.579999999998,21475.579999999998
Child Nutrition and National School Lunch Programs,2020,JAMES F FARR ACADEMY INC,Education,BENEFIT PROGRAMS (RR),2020-03-27 00:00:00,2020-03-27 00:00:00,4143,4143
Child Nutrition and National School Lunch Programs,2020,JUDGE ROTENBERG EDUCATIONAL,Education,BENEFIT PROGRAMS (RR),2020-03-27 00:00:00,2020-03-27 00:00:00,21988.7,21988.7
Child Nutrition and National School Lunch Programs,2020,KIDDIE KAMPAS INC,Education,BENEFIT PROGRAMS (RR),2020-03-27 00:00:00,2020-03-27 00:00:00,18712.45,18712.45
Child Nutrition and National School Lunch Programs,2020,KIDS PLACE INC,Education,BENEFIT PROGRAMS (RR),2020-03-27 00:00:00,2020-03-27 00:00:00,2036.86,2036.86
Child Nutrition and National School Lunch Programs,2020,KIDS UNLIMITED SERVICES INC,Education,BENEFIT PROGRAMS (RR),2020-03-27 00:00:00,2020-03-27 00:00:00,13050.41,13050.41
Child Nutrition and National School Lunch Programs,2020,KINDERCARE LEARNING CENTERS LLC,Education,BENEFIT PROGRAMS (RR),2020-03-27 00:00:00,2020-03-27 00:00:00,1743.61,1743.61
Child Nutrition and National School Lunch Programs,2020,L P  COLLEGE INC,Education,BENEFIT PROGRAMS (RR),2020-03-27 00:00:00,2020-03-27 00:00:00,40990.72,40990.72
Child Nutrition and National School Lunch Programs,2020,LEO INC.,Education,BENEFIT PROGRAMS (RR),2020-03-27 00:00:00,2020-03-27 00:00:00,8912.64,8912.64
Child Nutrition and National School Lunch Programs,2020,LOWELL COMMUNITY CHARTER SCHL,Education,BENEFIT PROGRAMS (RR),2020-03-27 00:00:00,2020-03-27 00:00:00,3898.8,3898.8
Child Nutrition and National School Lunch Programs,2020,LYNN ZABOTA ADULT DAY CARE,Education,BENEFIT PROGRAMS (RR),2020-03-27 00:00:00,2020-03-27 00:00:00,73530.9,73530.9
Child Nutrition and National School Lunch Programs,2020,MAKING OPPORTUNITY COUNT INC,Education,BENEFIT PROGRAMS (RR),2020-03-27 00:00:00,2020-03-27 00:00:00,29887.259999999995,29887.259999999995
Child Nutrition and National School Lunch Programs,2020,MAP ACADEMY CHARTER SCHOOL,Education,BENEFIT PROGRAMS (RR),2020-03-27 00:00:00,2020-03-27 00:00:00,12224.189999999997,12224.189999999997
Child Nutrition and National School Lunch Programs,2020,MARTHAS VINEYARD COMMUNITY,Education,BENEFIT PROGRAMS (RR),2020-03-27 00:00:00,2020-03-27 00:00:00,990.62,990.62
Child Nutrition and National School Lunch Programs,2020,MARTHAS VINEYARD REGIONAL HIG,Education,BENEFIT PROGRAMS (RR),2020-03-27 00:00:00,2020-03-27 00:00:00,28427.760000000002,28427.760000000002
Child Nutrition and National School Lunch Programs,2020,MASCONOMET REGIONAL,Education,BENEFIT PROGRAMS (RR),2020-03-27 00:00:00,2020-03-27 00:00:00,3347.76,3347.76
Child Nutrition and National School Lunch Programs,2020,MATCH CHARTER PUBLIC SCHOOL,Education,BENEFIT PROGRAMS (RR),2020-03-27 00:00:00,2020-03-27 00:00:00,4959,4959
Child Nutrition and National School Lunch Programs,2020,MCAULEY NAZARETH HOME,Education,BENEFIT PROGRAMS (RR),2020-03-27 00:00:00,2020-03-27 00:00:00,12277.740000000002,12277.740000000002
Child Nutrition and National School Lunch Programs,2020,"MEDFORD ADULT DAY HEALTH CARE CENTER, LL",Education,BENEFIT PROGRAMS (RR),2020-03-27 00:00:00,2020-03-27 00:00:00,69794.25,69794.25
Child Nutrition and National School Lunch Programs,2020,MENDON-UPTON REGIONAL SCHOOL DISTRICT,Education,BENEFIT PROGRAMS (RR),2020-03-27 00:00:00,2020-03-27 00:00:00,15387.12,15387.12
Child Nutrition and National School Lunch Programs,2020,MERRIMACK VALLEY FOOD BANK,Education,BENEFIT PROGRAMS (RR),2020-03-27 00:00:00,2020-03-27 00:00:00,5317.99,5317.99
Child Nutrition and National School Lunch Programs,2020,MERRIMACK VALLEY YMCA,Education,BENEFIT PROGRAMS (RR),2020-03-27 00:00:00,2020-03-27 00:00:00,43758.79,43758.79
Child Nutrition and National School Lunch Programs,2020,METROWEST YMCA INC.,Education,BENEFIT PROGRAMS (RR),2020-03-27 00:00:00,2020-03-27 00:00:00,59836.100000000006,59836.100000000006
Child Nutrition and National School Lunch Programs,2020,MOHAWK TRAIL REGIONAL SCHOOL,Education,BENEFIT PROGRAMS (RR),2020-03-27 00:00:00,2020-03-27 00:00:00,8906.24,8906.24
Child Nutrition and National School Lunch Programs,2020,MONOMOY REGIONAL SCHOOL DISTRICT,Education,BENEFIT PROGRAMS (RR),2020-03-27 00:00:00,2020-03-27 00:00:00,46939.52,46939.52
Child Nutrition and National School Lunch Programs,2020,MOUNT GREYLOCK,Education,BENEFIT PROGRAMS (RR),2020-03-27 00:00:00,2020-03-27 00:00:00,29180.98,29180.98
Child Nutrition and National School Lunch Programs,2020,NARRAGANSETT REGIONAL SCH DIST,Education,BENEFIT PROGRAMS (RR),2020-03-27 00:00:00,2020-03-27 00:00:00,47235.899999999994,47235.899999999994
Child Nutrition and National School Lunch Programs,2020,NASHOBA REGIONAL SCHOOL,Education,BENEFIT PROGRAMS (RR),2020-03-27 00:00:00,2020-03-27 00:00:00,44366.84,44366.84
Child Nutrition and National School Lunch Programs,2020,NASHOBA VALLEY TECHNICAL,Education,BENEFIT PROGRAMS (RR),2020-03-27 00:00:00,2020-03-27 00:00:00,14694,14694
Child Nutrition and National School Lunch Programs,2020,NEIGHBORHOOD HOUSE,Education,BENEFIT PROGRAMS (RR),2020-03-27 00:00:00,2020-03-27 00:00:00,4343,4343
Child Nutrition and National School Lunch Programs,2020,NEW ENGLAND CENTER FOR CHILDREN INC,Education,BENEFIT PROGRAMS (RR),2020-03-27 00:00:00,2020-03-27 00:00:00,39447.2,39447.2
Child Nutrition and National School Lunch Programs,2020,NEW HEIGHTS CHARTER SCHOOL OF BROCKTON,Education,BENEFIT PROGRAMS (RR),2020-03-27 00:00:00,2020-03-27 00:00:00,61065.600000000006,61065.600000000006
Child Nutrition and National School Lunch Programs,2020,NEW HOPE INC,Education,BENEFIT PROGRAMS (RR),2020-03-27 00:00:00,2020-03-27 00:00:00,5130.83,5130.83
Child Nutrition and National School Lunch Programs,2020,NEW NORTH CITIZENS COUNCIL,Education,BENEFIT PROGRAMS (RR),2020-03-27 00:00:00,2020-03-27 00:00:00,1545.93,1545.93
Child Nutrition and National School Lunch Programs,2020,NEW SALEM/WENDELL UNION SCHOOL,Education,BENEFIT PROGRAMS (RR),2020-03-27 00:00:00,2020-03-27 00:00:00,7011,7011
Child Nutrition and National School Lunch Programs,2020,"NFI MASSACHUSETTS, INC.",Education,BENEFIT PROGRAMS (RR),2020-03-27 00:00:00,2020-03-27 00:00:00,23345,23345
Child Nutrition and National School Lunch Programs,2020,NORTH MIDDLESEX REGIONAL,Education,BENEFIT PROGRAMS (RR),2020-03-27 00:00:00,2020-03-27 00:00:00,6901.2,6901.2
Child Nutrition and National School Lunch Programs,2020,NORTHBOROUGH-SOUTHBOROUGH REG SCHL DIST,Education,BENEFIT PROGRAMS (RR),2020-03-27 00:00:00,2020-03-27 00:00:00,7196.64,7196.64
Child Nutrition and National School Lunch Programs,2020,NORTHERN BERKSHIRE VOCATIONAL,Education,BENEFIT PROGRAMS (RR),2020-03-27 00:00:00,2020-03-27 00:00:00,12722.4,12722.4
Child Nutrition and National School Lunch Programs,2020,"NURTURY, INC.",Education,BENEFIT PROGRAMS (RR),2020-03-27 00:00:00,2020-03-27 00:00:00,51471.310000000005,51471.310000000005
Child Nutrition and National School Lunch Programs,2020,OLD COLONY YMCA INC,Education,BENEFIT PROGRAMS (RR),2020-03-27 00:00:00,2020-03-27 00:00:00,17350.159999999996,17350.159999999996
Child Nutrition and National School Lunch Programs,2020,OLD ROCHESTER REGIONAL SCHOOL DIST,Education,BENEFIT PROGRAMS (RR),2020-03-27 00:00:00,2020-03-27 00:00:00,27025.44,27025.44
Child Nutrition and National School Lunch Programs,2020,PAKACHOAG ACRES DAY CARE CTR,Education,BENEFIT PROGRAMS (RR),2020-03-27 00:00:00,2020-03-27 00:00:00,60.63,60.63
Child Nutrition and National School Lunch Programs,2020,"Payees under $50,000",Education,BENEFIT PROGRAMS (RR),2020-03-27 00:00:00,2020-03-27 00:00:00,415397.2100000001,415397.2100000001
Child Nutrition and National School Lunch Programs,2020,Payroll and other payments to individuals,Education,BENEFIT PROGRAMS (RR),2020-03-27 00:00:00,2020-03-27 00:00:00,5261.74,5261.74
Child Nutrition and National School Lunch Programs,2020,PEOPLE ACTING IN COMMUNITY,Education,BENEFIT PROGRAMS (RR),2020-03-27 00:00:00,2020-03-27 00:00:00,3487.8,3487.8
Child Nutrition and National School Lunch Programs,2020,PEOPLE INCORPORATED,Education,BENEFIT PROGRAMS (RR),2020-03-27 00:00:00,2020-03-27 00:00:00,9955.03,9955.03
Child Nutrition and National School Lunch Programs,2020,PIONEER VALLEY REGNL SCH,Education,BENEFIT PROGRAMS (RR),2020-03-27 00:00:00,2020-03-27 00:00:00,26920.32,26920.32
Child Nutrition and National School Lunch Programs,2020,PROVIDER RESOURCEINC,Education,BENEFIT PROGRAMS (RR),2020-03-27 00:00:00,2020-03-27 00:00:00,195982.27,195982.27
Child Nutrition and National School Lunch Programs,2020,QUABBIN REGIONAL SCHOOL DISTRICT,Education,BENEFIT PROGRAMS (RR),2020-03-27 00:00:00,2020-03-27 00:00:00,134777.08999999997,134777.08999999997
Child Nutrition and National School Lunch Programs,2020,QUABOAG REGIONAL SCH DIST,Education,BENEFIT PROGRAMS (RR),2020-03-27 00:00:00,2020-03-27 00:00:00,105460.61,105460.61
Child Nutrition and National School Lunch Programs,2020,QUINCY COMMUNITY ACTION PROGRAMS INC,Education,BENEFIT PROGRAMS (RR),2020-03-27 00:00:00,2020-03-27 00:00:00,3153.66,3153.66
Child Nutrition and National School Lunch Programs,2020,RAINBOW ADHC LLC,Education,BENEFIT PROGRAMS (RR),2020-03-27 00:00:00,2020-03-27 00:00:00,39232.22,39232.22
Child Nutrition and National School Lunch Programs,2020,RAINBOW ADHC OF QUINCY,Education,BENEFIT PROGRAMS (RR),2020-03-27 00:00:00,2020-03-27 00:00:00,23955.18,23955.18
Child Nutrition and National School Lunch Programs,2020,RALPH C MAHAR REG SCHOOL DIST,Education,BENEFIT PROGRAMS (RR),2020-03-27 00:00:00,2020-03-27 00:00:00,187734.71,187734.71
Child Nutrition and National School Lunch Programs,2020,RFK CHILDRENS ACTION CORP INC,Education,BENEFIT PROGRAMS (RR),2020-03-27 00:00:00,2020-03-27 00:00:00,12349.34,12349.34
Child Nutrition and National School Lunch Programs,2020,"SAINT VINCENT'S SERIVCES, INC",Education,BENEFIT PROGRAMS (RR),2020-03-27 00:00:00,2020-03-27 00:00:00,32091.559999999998,32091.559999999998
Child Nutrition and National School Lunch Programs,2020,SELF HELP INC,Education,BENEFIT PROGRAMS (RR),2020-03-27 00:00:00,2020-03-27 00:00:00,1200.72,1200.72
Child Nutrition and National School Lunch Programs,2020,SHALOH SCHOOL OHOLEI TORAH,Education,BENEFIT PROGRAMS (RR),2020-03-27 00:00:00,2020-03-27 00:00:00,4010.43,4010.43
Child Nutrition and National School Lunch Programs,2020,SHAWSHEEN VALLEY TECHNICAL,Education,BENEFIT PROGRAMS (RR),2020-03-27 00:00:00,2020-03-27 00:00:00,1772.16,1772.16
Child Nutrition and National School Lunch Programs,2020,SILVER LAKE REGIONAL SCHOOL DISTRICT,Education,BENEFIT PROGRAMS (RR),2020-03-27 00:00:00,2020-03-27 00:00:00,67685.28,67685.28
Child Nutrition and National School Lunch Programs,2020,SOUTH COAST EDUCATIONAL COLLAB,Education,BENEFIT PROGRAMS (RR),2020-03-27 00:00:00,2020-03-27 00:00:00,4410.98,4410.98
Child Nutrition and National School Lunch Programs,2020,SOUTH SHORE COMM ACTION,Education,BENEFIT PROGRAMS (RR),2020-03-27 00:00:00,2020-03-27 00:00:00,32496.21,32496.21
Child Nutrition and National School Lunch Programs,2020,"SOUTH SHORE STARS, INC.",Education,BENEFIT PROGRAMS (RR),2020-03-27 00:00:00,2020-03-27 00:00:00,6122.93,6122.93
Child Nutrition and National School Lunch Programs,2020,SOUTHEASTERN VOCATIONAL REGIONAL,Education,BENEFIT PROGRAMS (RR),2020-03-27 00:00:00,2020-03-27 00:00:00,83926.8,83926.8
Child Nutrition and National School Lunch Programs,2020,SOUTHERN BERKSHIRE RSD,Education,BENEFIT PROGRAMS (RR),2020-03-27 00:00:00,2020-03-27 00:00:00,49529.46000000001,49529.46000000001
Child Nutrition and National School Lunch Programs,2020,SPANISH AMERICAN CENTER INC,Education,BENEFIT PROGRAMS (RR),2020-03-27 00:00:00,2020-03-27 00:00:00,45752.92999999999,45752.92999999999
Child Nutrition and National School Lunch Programs,2020,SPENCER-EAST BROOKFIELD,Education,BENEFIT PROGRAMS (RR),2020-03-27 00:00:00,2020-03-27 00:00:00,62339.47,62339.47
Child Nutrition and National School Lunch Programs,2020,SPRINGFIELD DAY NURSERY CORP,Education,BENEFIT PROGRAMS (RR),2020-03-27 00:00:00,2020-03-27 00:00:00,13220.160000000002,13220.160000000002
Child Nutrition and National School Lunch Programs,2020,SPRINGFIELD PARTNERS FOR,Education,BENEFIT PROGRAMS (RR),2020-03-27 00:00:00,2020-03-27 00:00:00,5119.62,5119.62
Child Nutrition and National School Lunch Programs,2020,SPRINGFIELD PREPARATORY,Education,BENEFIT PROGRAMS (RR),2020-03-27 00:00:00,2020-03-27 00:00:00,2946.9,2946.9
Child Nutrition and National School Lunch Programs,2020,ST ANNS HOME INC,Education,BENEFIT PROGRAMS (RR),2020-03-27 00:00:00,2020-03-27 00:00:00,80728.62,80728.62
Child Nutrition and National School Lunch Programs,2020,ST MARYS CTR FOR WOMEN & CHILDREN INC,Education,BENEFIT PROGRAMS (RR),2020-03-27 00:00:00,2020-03-27 00:00:00,17522.35,17522.35
Child Nutrition and National School Lunch Programs,2020,STETSON SCHOOL INC,Education,BENEFIT PROGRAMS (RR),2020-03-27 00:00:00,2020-03-27 00:00:00,21191.84,21191.84
Child Nutrition and National School Lunch Programs,2020,STEVENS CHILDRENS HOME INC,Education,BENEFIT PROGRAMS (RR),2020-03-27 00:00:00,2020-03-27 00:00:00,11894.759999999998,11894.759999999998
Child Nutrition and National School Lunch Programs,2020,TANTASQUA REGIONAL SCHOOL DIST,Education,BENEFIT PROGRAMS (RR),2020-03-27 00:00:00,2020-03-27 00:00:00,58376.72,58376.72
Child Nutrition and National School Lunch Programs,2020,THE CHILDRENS STUDY HOME INC,Education,BENEFIT PROGRAMS (RR),2020-03-27 00:00:00,2020-03-27 00:00:00,10739.9,10739.9
Child Nutrition and National School Lunch Programs,2020,THE DEVEREUX FOUNDATION,Education,BENEFIT PROGRAMS (RR),2020-03-27 00:00:00,2020-03-27 00:00:00,18048.9,18048.9
Child Nutrition and National School Lunch Programs,2020,THE GUILD FOR HUMAN SERVICES INC,Education,BENEFIT PROGRAMS (RR),2020-03-27 00:00:00,2020-03-27 00:00:00,30402.160000000003,30402.160000000003
Child Nutrition and National School Lunch Programs,2020,THE LEARNING CENTER FOR THE DEAF INC,Education,BENEFIT PROGRAMS (RR),2020-03-27 00:00:00,2020-03-27 00:00:00,4150.51,4150.51
Child Nutrition and National School Lunch Programs,2020,THE MAY INSTITUTE INC,Education,BENEFIT PROGRAMS (RR),2020-03-27 00:00:00,2020-03-27 00:00:00,50928.94,50928.94
Child Nutrition and National School Lunch Programs,2020,THE OPEN DOOR CAPE ANN FOOD,Education,BENEFIT PROGRAMS (RR),2020-03-27 00:00:00,2020-03-27 00:00:00,62424.439999999995,62424.439999999995
Child Nutrition and National School Lunch Programs,2020,THE SALVATION ARMY,Education,BENEFIT PROGRAMS (RR),2020-03-27 00:00:00,2020-03-27 00:00:00,3085.95,3085.95
Child Nutrition and National School Lunch Programs,2020,THE WHITNEY ACADEMY INC,Education,BENEFIT PROGRAMS (RR),2020-03-27 00:00:00,2020-03-27 00:00:00,23072.7,23072.7
Child Nutrition and National School Lunch Programs,2020,TOWN  OF PLYMOUTH,Education,BENEFIT PROGRAMS (RR),2020-03-27 00:00:00,2020-03-27 00:00:00,256661.16999999998,256661.16999999998
Child Nutrition and National School Lunch Programs,2020,TOWN OF ABINGTON,Education,BENEFIT PROGRAMS (RR),2020-03-27 00:00:00,2020-03-27 00:00:00,33455.2,33455.2
Child Nutrition and National School Lunch Programs,2020,TOWN OF AGAWAM,Education,BENEFIT PROGRAMS (RR),2020-03-27 00:00:00,2020-03-27 00:00:00,12795.86,12795.86
Child Nutrition and National School Lunch Programs,2020,TOWN OF AMESBURY,Education,BENEFIT PROGRAMS (RR),2020-03-27 00:00:00,2020-03-27 00:00:00,9903.12,9903.12
Child Nutrition and National School Lunch Programs,2020,TOWN OF ANDOVER,Education,BENEFIT PROGRAMS (RR),2020-03-27 00:00:00,2020-03-27 00:00:00,508061.1999999999,508061.1999999999
Child Nutrition and National School Lunch Programs,2020,TOWN OF ARLINGTON,Education,BENEFIT PROGRAMS (RR),2020-03-27 00:00:00,2020-03-27 00:00:00,136422.16,136422.16
Child Nutrition and National School Lunch Programs,2020,TOWN OF ASHLAND,Education,BENEFIT PROGRAMS (RR),2020-03-27 00:00:00,2020-03-27 00:00:00,31620.560000000005,31620.560000000005
Child Nutrition and National School Lunch Programs,2020,TOWN OF AUBURN,Education,BENEFIT PROGRAMS (RR),2020-03-27 00:00:00,2020-03-27 00:00:00,29700.72,29700.72
Child Nutrition and National School Lunch Programs,2020,TOWN OF AVON,Education,BENEFIT PROGRAMS (RR),2020-03-27 00:00:00,2020-03-27 00:00:00,1988,1988
Child Nutrition and National School Lunch Programs,2020,TOWN OF BARNSTABLE,Education,BENEFIT PROGRAMS (RR),2020-03-27 00:00:00,2020-03-27 00:00:00,162616.99,162616.99
Child Nutrition and National School Lunch Programs,2020,TOWN OF BEDFORD,Education,BENEFIT PROGRAMS (RR),2020-03-27 00:00:00,2020-03-27 00:00:00,23915.84,23915.84
Child Nutrition and National School Lunch Programs,2020,TOWN OF BELCHERTOWN,Education,BENEFIT PROGRAMS (RR),2020-03-27 00:00:00,2020-03-27 00:00:00,202159.44,202159.44
Child Nutrition and National School Lunch Programs,2020,TOWN OF BELMONT,Education,BENEFIT PROGRAMS (RR),2020-03-27 00:00:00,2020-03-27 00:00:00,68884.12,68884.12
Child Nutrition and National School Lunch Programs,2020,TOWN OF BERKLEY,Education,BENEFIT PROGRAMS (RR),2020-03-27 00:00:00,2020-03-27 00:00:00,10570.48,10570.48
Child Nutrition and National School Lunch Programs,2020,TOWN OF BILLERICA,Education,BENEFIT PROGRAMS (RR),2020-03-27 00:00:00,2020-03-27 00:00:00,564673.12,564673.12
Child Nutrition and National School Lunch Programs,2020,TOWN OF BOURNE,Education,BENEFIT PROGRAMS (RR),2020-03-27 00:00:00,2020-03-27 00:00:00,72545.25,72545.25
Child Nutrition and National School Lunch Programs,2020,TOWN OF BRAINTREE,Education,BENEFIT PROGRAMS (RR),2020-03-27 00:00:00,2020-03-27 00:00:00,355296.01,355296.01
Child Nutrition and National School Lunch Programs,2020,TOWN OF BRIMFIELD,Education,BENEFIT PROGRAMS (RR),2020-03-27 00:00:00,2020-03-27 00:00:00,11771.2,11771.2
Child Nutrition and National School Lunch Programs,2020,TOWN OF BROOKFIELD,Education,BENEFIT PROGRAMS (RR),2020-03-27 00:00:00,2020-03-27 00:00:00,14972.48,14972.48
Child Nutrition and National School Lunch Programs,2020,TOWN OF BROOKLINE,Education,BENEFIT PROGRAMS (RR),2020-03-27 00:00:00,2020-03-27 00:00:00,41723.8,41723.8
Child Nutrition and National School Lunch Programs,2020,TOWN OF CANTON,Education,BENEFIT PROGRAMS (RR),2020-03-27 00:00:00,2020-03-27 00:00:00,50492.16,50492.16
Child Nutrition and National School Lunch Programs,2020,TOWN OF CARVER,Education,BENEFIT PROGRAMS (RR),2020-03-27 00:00:00,2020-03-27 00:00:00,8711.52,8711.52
Child Nutrition and National School Lunch Programs,2020,TOWN OF CHELMSFORD,Education,BENEFIT PROGRAMS (RR),2020-03-27 00:00:00,2020-03-27 00:00:00,5339.2,5339.2
Child Nutrition and National School Lunch Programs,2020,TOWN OF CLINTON,Education,BENEFIT PROGRAMS (RR),2020-03-27 00:00:00,2020-03-27 00:00:00,179680.88,179680.88
Child Nutrition and National School Lunch Programs,2020,TOWN OF COHASSET,Education,BENEFIT PROGRAMS (RR),2020-03-27 00:00:00,2020-03-27 00:00:00,1706.7199999999996,1706.7199999999996
Child Nutrition and National School Lunch Programs,2020,TOWN OF CONWAY,Education,BENEFIT PROGRAMS (RR),2020-03-27 00:00:00,2020-03-27 00:00:00,2601.44,2601.44
Child Nutrition and National School Lunch Programs,2020,TOWN OF DANVERS,Education,BENEFIT PROGRAMS (RR),2020-03-27 00:00:00,2020-03-27 00:00:00,1635.6,1635.6
Child Nutrition and National School Lunch Programs,2020,TOWN OF DARTMOUTH,Education,BENEFIT PROGRAMS (RR),2020-03-27 00:00:00,2020-03-27 00:00:00,39095.44,39095.44
Child Nutrition and National School Lunch Programs,2020,TOWN OF DEDHAM,Education,BENEFIT PROGRAMS (RR),2020-03-27 00:00:00,2020-03-27 00:00:00,194343.44,194343.44
Child Nutrition and National School Lunch Programs,2020,TOWN OF DRACUT,Education,BENEFIT PROGRAMS (RR),2020-03-27 00:00:00,2020-03-27 00:00:00,130727.62,130727.62
Child Nutrition and National School Lunch Programs,2020,TOWN OF DUXBURY,Education,BENEFIT PROGRAMS (RR),2020-03-27 00:00:00,2020-03-27 00:00:00,19959.52,19959.52
Child Nutrition and National School Lunch Programs,2020,TOWN OF EAST BRIDGEWATER,Education,BENEFIT PROGRAMS (RR),2020-03-27 00:00:00,2020-03-27 00:00:00,12055.88,12055.88
Child Nutrition and National School Lunch Programs,2020,TOWN OF EASTON,Education,BENEFIT PROGRAMS (RR),2020-03-27 00:00:00,2020-03-27 00:00:00,15676.8,15676.8
Child Nutrition and National School Lunch Programs,2020,TOWN OF EDGARTOWN,Education,BENEFIT PROGRAMS (RR),2020-03-27 00:00:00,2020-03-27 00:00:00,56398.680000000015,56398.680000000015
Child Nutrition and National School Lunch Programs,2020,TOWN OF ERVING,Education,BENEFIT PROGRAMS (RR),2020-03-27 00:00:00,2020-03-27 00:00:00,12882,12882
Child Nutrition and National School Lunch Programs,2020,TOWN OF FAIRHAVEN,Education,BENEFIT PROGRAMS (RR),2020-03-27 00:00:00,2020-03-27 00:00:00,29746.160000000003,29746.160000000003
Child Nutrition and National School Lunch Programs,2020,TOWN OF FALMOUTH,Education,BENEFIT PROGRAMS (RR),2020-03-27 00:00:00,2020-03-27 00:00:00,94265.24000000002,94265.24000000002
Child Nutrition and National School Lunch Programs,2020,TOWN OF FOXBOROUGH,Education,BENEFIT PROGRAMS (RR),2020-03-27 00:00:00,2020-03-27 00:00:00,23509.52,23509.52
Child Nutrition and National School Lunch Programs,2020,TOWN OF FRANKLIN,Education,BENEFIT PROGRAMS (RR),2020-03-27 00:00:00,2020-03-27 00:00:00,40926.880000000005,40926.880000000005
Child Nutrition and National School Lunch Programs,2020,TOWN OF GEORGETOWN,Education,BENEFIT PROGRAMS (RR),2020-03-27 00:00:00,2020-03-27 00:00:00,2021.72,2021.72
Child Nutrition and National School Lunch Programs,2020,TOWN OF GRAFTON,Education,BENEFIT PROGRAMS (RR),2020-03-27 00:00:00,2020-03-27 00:00:00,15336,15336
Child Nutrition and National School Lunch Programs,2020,TOWN OF GRANBY,Education,BENEFIT PROGRAMS (RR),2020-03-27 00:00:00,2020-03-27 00:00:00,4129.360000000001,4129.360000000001
Child Nutrition and National School Lunch Programs,2020,TOWN OF GREENFIELD,Education,BENEFIT PROGRAMS (RR),2020-03-27 00:00:00,2020-03-27 00:00:00,220838.45,220838.45
Child Nutrition and National School Lunch Programs,2020,TOWN OF HADLEY,Education,BENEFIT PROGRAMS (RR),2020-03-27 00:00:00,2020-03-27 00:00:00,24144.699999999997,24144.699999999997
Child Nutrition and National School Lunch Programs,2020,TOWN OF HANOVER,Education,BENEFIT PROGRAMS (RR),2020-03-27 00:00:00,2020-03-27 00:00:00,25161.44,25161.44
Child Nutrition and National School Lunch Programs,2020,TOWN OF HATFIELD,Education,BENEFIT PROGRAMS (RR),2020-03-27 00:00:00,2020-03-27 00:00:00,3027.24,3027.24
Child Nutrition and National School Lunch Programs,2020,TOWN OF HINGHAM,Education,BENEFIT PROGRAMS (RR),2020-03-27 00:00:00,2020-03-27 00:00:00,2119.32,2119.32
Child Nutrition and National School Lunch Programs,2020,TOWN OF HOLBROOK,Education,BENEFIT PROGRAMS (RR),2020-03-27 00:00:00,2020-03-27 00:00:00,25858.459999999995,25858.459999999995
Child Nutrition and National School Lunch Programs,2020,TOWN OF HOLLAND,Education,BENEFIT PROGRAMS (RR),2020-03-27 00:00:00,2020-03-27 00:00:00,8633.6,8633.6
Child Nutrition and National School Lunch Programs,2020,TOWN OF HOLLISTON,Education,BENEFIT PROGRAMS (RR),2020-03-27 00:00:00,2020-03-27 00:00:00,45587.04,45587.04
Child Nutrition and National School Lunch Programs,2020,TOWN OF HOPEDALE,Education,BENEFIT PROGRAMS (RR),2020-03-27 00:00:00,2020-03-27 00:00:00,29178.56,29178.56
Child Nutrition and National School Lunch Programs,2020,TOWN OF HOPKINTON,Education,BENEFIT PROGRAMS (RR),2020-03-27 00:00:00,2020-03-27 00:00:00,3924.8,3924.8
Child Nutrition and National School Lunch Programs,2020,TOWN OF HUDSON,Education,BENEFIT PROGRAMS (RR),2020-03-27 00:00:00,2020-03-27 00:00:00,12734.56,12734.56
Child Nutrition and National School Lunch Programs,2020,TOWN OF HULL,Education,BENEFIT PROGRAMS (RR),2020-03-27 00:00:00,2020-03-27 00:00:00,82484.40000000001,82484.40000000001
Child Nutrition and National School Lunch Programs,2020,TOWN OF IPSWICH,Education,BENEFIT PROGRAMS (RR),2020-03-27 00:00:00,2020-03-27 00:00:00,28535.599999999995,28535.599999999995
Child Nutrition and National School Lunch Programs,2020,TOWN OF LEE,Education,BENEFIT PROGRAMS (RR),2020-03-27 00:00:00,2020-03-27 00:00:00,11742,11742
Child Nutrition and National School Lunch Programs,2020,TOWN OF LEICESTER,Education,BENEFIT PROGRAMS (RR),2020-03-27 00:00:00,2020-03-27 00:00:00,12762.96,12762.96
Child Nutrition and National School Lunch Programs,2020,TOWN OF LEVERETT,Education,BENEFIT PROGRAMS (RR),2020-03-27 00:00:00,2020-03-27 00:00:00,23077.96,23077.96
Child Nutrition and National School Lunch Programs,2020,TOWN OF LEXINGTON,Education,BENEFIT PROGRAMS (RR),2020-03-27 00:00:00,2020-03-27 00:00:00,52040.8,52040.8
Child Nutrition and National School Lunch Programs,2020,TOWN OF LINCOLN,Education,BENEFIT PROGRAMS (RR),2020-03-27 00:00:00,2020-03-27 00:00:00,1914,1914
Child Nutrition and National School Lunch Programs,2020,TOWN OF LITTLETON,Education,BENEFIT PROGRAMS (RR),2020-03-27 00:00:00,2020-03-27 00:00:00,18113.52,18113.52
Child Nutrition and National School Lunch Programs,2020,TOWN OF LUDLOW,Education,BENEFIT PROGRAMS (RR),2020-03-27 00:00:00,2020-03-27 00:00:00,63002.56,63002.56
Child Nutrition and National School Lunch Programs,2020,TOWN OF LUNENBURG,Education,BENEFIT PROGRAMS (RR),2020-03-27 00:00:00,2020-03-27 00:00:00,22560.96,22560.96
Child Nutrition and National School Lunch Programs,2020,TOWN OF MANSFIELD,Education,BENEFIT PROGRAMS (RR),2020-03-27 00:00:00,2020-03-27 00:00:00,23259.6,23259.6
Child Nutrition and National School Lunch Programs,2020,TOWN OF MARBLEHEAD,Education,BENEFIT PROGRAMS (RR),2020-03-27 00:00:00,2020-03-27 00:00:00,12933.6,12933.6
Child Nutrition and National School Lunch Programs,2020,TOWN OF MARSHFIELD,Education,BENEFIT PROGRAMS (RR),2020-03-27 00:00:00,2020-03-27 00:00:00,8679.04,8679.04
Child Nutrition and National School Lunch Programs,2020,TOWN OF MASHPEE,Education,BENEFIT PROGRAMS (RR),2020-03-27 00:00:00,2020-03-27 00:00:00,39569.4,39569.4
Child Nutrition and National School Lunch Programs,2020,TOWN OF MEDFIELD,Education,BENEFIT PROGRAMS (RR),2020-03-27 00:00:00,2020-03-27 00:00:00,8466.88,8466.88
Child Nutrition and National School Lunch Programs,2020,TOWN OF MEDWAY,Education,BENEFIT PROGRAMS (RR),2020-03-27 00:00:00,2020-03-27 00:00:00,37428.159999999996,37428.159999999996
Child Nutrition and National School Lunch Programs,2020,TOWN OF MIDDLEBOROUGH,Education,BENEFIT PROGRAMS (RR),2020-03-27 00:00:00,2020-03-27 00:00:00,52970.67999999999,52970.67999999999
Child Nutrition and National School Lunch Programs,2020,TOWN OF MILLBURY,Education,BENEFIT PROGRAMS (RR),2020-03-27 00:00:00,2020-03-27 00:00:00,64814.47999999999,64814.47999999999
Child Nutrition and National School Lunch Programs,2020,TOWN OF MILLIS,Education,BENEFIT PROGRAMS (RR),2020-03-27 00:00:00,2020-03-27 00:00:00,38507.4,38507.4
Child Nutrition and National School Lunch Programs,2020,TOWN OF MILTON,Education,BENEFIT PROGRAMS (RR),2020-03-27 00:00:00,2020-03-27 00:00:00,105076.16,105076.16
Child Nutrition and National School Lunch Programs,2020,TOWN OF MONSON,Education,BENEFIT PROGRAMS (RR),2020-03-27 00:00:00,2020-03-27 00:00:00,83196.92,83196.92
Child Nutrition and National School Lunch Programs,2020,TOWN OF NAHANT,Education,BENEFIT PROGRAMS (RR),2020-03-27 00:00:00,2020-03-27 00:00:00,215.76,215.76
Child Nutrition and National School Lunch Programs,2020,TOWN OF NANTUCKET,Education,BENEFIT PROGRAMS (RR),2020-03-27 00:00:00,2020-03-27 00:00:00,8911.92,8911.92
Child Nutrition and National School Lunch Programs,2020,TOWN OF NATICK,Education,BENEFIT PROGRAMS (RR),2020-03-27 00:00:00,2020-03-27 00:00:00,16585.6,16585.6
Child Nutrition and National School Lunch Programs,2020,TOWN OF NEEDHAM,Education,BENEFIT PROGRAMS (RR),2020-03-27 00:00:00,2020-03-27 00:00:00,90409.04000000001,90409.04000000001
Child Nutrition and National School Lunch Programs,2020,TOWN OF NORFOLK,Education,BENEFIT PROGRAMS (RR),2020-03-27 00:00:00,2020-03-27 00:00:00,1505.2,1505.2
Child Nutrition and National School Lunch Programs,2020,TOWN OF NORTH ANDOVER,Education,BENEFIT PROGRAMS (RR),2020-03-27 00:00:00,2020-03-27 00:00:00,452269.12,452269.12
Child Nutrition and National School Lunch Programs,2020,TOWN OF NORTH ATTLEBOROUGH,Education,BENEFIT PROGRAMS (RR),2020-03-27 00:00:00,2020-03-27 00:00:00,109184.94,109184.94
Child Nutrition and National School Lunch Programs,2020,TOWN OF NORTH BROOKFIELD,Education,BENEFIT PROGRAMS (RR),2020-03-27 00:00:00,2020-03-27 00:00:00,2114.7,2114.7
Child Nutrition and National School Lunch Programs,2020,TOWN OF NORTH READING,Education,BENEFIT PROGRAMS (RR),2020-03-27 00:00:00,2020-03-27 00:00:00,17784.08,17784.08
Child Nutrition and National School Lunch Programs,2020,TOWN OF NORTHBRIDGE,Education,BENEFIT PROGRAMS (RR),2020-03-27 00:00:00,2020-03-27 00:00:00,31142.64,31142.64
Child Nutrition and National School Lunch Programs,2020,TOWN OF NORTON,Education,BENEFIT PROGRAMS (RR),2020-03-27 00:00:00,2020-03-27 00:00:00,108919.68000000001,108919.68000000001
Child Nutrition and National School Lunch Programs,2020,TOWN OF NORWELL,Education,BENEFIT PROGRAMS (RR),2020-03-27 00:00:00,2020-03-27 00:00:00,23119.620000000003,23119.620000000003
Child Nutrition and National School Lunch Programs,2020,TOWN OF NORWOOD,Education,BENEFIT PROGRAMS (RR),2020-03-27 00:00:00,2020-03-27 00:00:00,409013.19999999995,409013.19999999995
Child Nutrition and National School Lunch Programs,2020,TOWN OF OAK BLUFFS,Education,BENEFIT PROGRAMS (RR),2020-03-27 00:00:00,2020-03-27 00:00:00,6959.7,6959.7
Child Nutrition and National School Lunch Programs,2020,TOWN OF ORANGE,Education,BENEFIT PROGRAMS (RR),2020-03-27 00:00:00,2020-03-27 00:00:00,50289.1,50289.1
Child Nutrition and National School Lunch Programs,2020,TOWN OF OXFORD,Education,BENEFIT PROGRAMS (RR),2020-03-27 00:00:00,2020-03-27 00:00:00,59961.619999999995,59961.619999999995
Child Nutrition and National School Lunch Programs,2020,TOWN OF PALMER,Education,BENEFIT PROGRAMS (RR),2020-03-27 00:00:00,2020-03-27 00:00:00,29697,29697
Child Nutrition and National School Lunch Programs,2020,TOWN OF PEMBROKE,Education,BENEFIT PROGRAMS (RR),2020-03-27 00:00:00,2020-03-27 00:00:00,32512.27,32512.27
Child Nutrition and National School Lunch Programs,2020,TOWN OF PLAINVILLE,Education,BENEFIT PROGRAMS (RR),2020-03-27 00:00:00,2020-03-27 00:00:00,22265.6,22265.6
Child Nutrition and National School Lunch Programs,2020,TOWN OF PROVINCETOWN,Education,BENEFIT PROGRAMS (RR),2020-03-27 00:00:00,2020-03-27 00:00:00,32507.1,32507.1
Child Nutrition and National School Lunch Programs,2020,TOWN OF RANDOLPH,Education,BENEFIT PROGRAMS (RR),2020-03-27 00:00:00,2020-03-27 00:00:00,174134.15,174134.15
Child Nutrition and National School Lunch Programs,2020,TOWN OF READING,Education,BENEFIT PROGRAMS (RR),2020-03-27 00:00:00,2020-03-27 00:00:00,54447.119999999995,54447.119999999995
